Workbook

Sheet 汇总
A1: 农业保险结算汇总表
A2: 申请单位：中国人民财产保险股份有限公司南通市通州支公司 | Q2: 审核单位：
A3: 险种名称 | B3: 投保农户数量 (户次) | C3: 投保面积/投保数量 (亩/头/只等) | D3: 单位保额（元） | E3: 费率 | F3: 单位保险费（元） | G3: 总保险费（元） | H3: 保费构成 | R3: 农户已缴保费（元） | S3: 申请补贴（元）
H4: 中央财政 | J4: 省级财政 | L4: 设区市财政 | N4: 县（市、区）财政 | P4: 农户自缴
H5: 比例 | I5: 金额（元） | J5: 比例 | K5: 金额（元） | L5: 比例 | M5: 金额（元） | N5: 比例 | O5: 金额（元） | P5: 比例 | Q5: 金额（元）
A6: 水稻完全成本 | B6: 22002 | C6: 250022.35 | D6: 1300.00 | E6: 2.10% | F6: 27.30 | G6: 6825610.29 | H6: 35% | I6: 2388964.06 | J6: 30% | K6: 2047683.26 | L6: 0% | M6: 0.00 | N6: 20% | O6: 1365120.92 | P6: 15% | Q6: 1023842.05 | R6: =Q6 -> 1023842.05 | S6: =G6-R6 -> 5801768.24
A7: 设施大棚 | B7: 115 | C7: 11616.61 | D7: / | E7: 2.7%/1.1%/18% | F7: / | G7: 5364191.92 | H7: 0% | I7: 0.00 | J7: 0% | K7: 0.00 | L7: 0% | M7: 0.00 | N7: 90% | O7: 4827772.71 | P7: 10% | Q7: 536419.21 | R7: 536419.21 | S7: =G7-R7 -> 4827772.71
A8: 大豆 | B8: 725 | C8: 2702.10 | D8: 500.00 | E8: 5.50% | F8: 27.50 | G8: 74307.80 | H8: 35% | I8: 26007.81 | J8: 25% | K8: 18577.03 | L8: 0% | M8: 0.00 | N8: 20% | O8: 14861.36 | P8: 20% | Q8: 14861.60 | R8: 14861.60 | S8: =G8-Q8 -> 59446.20
A9: 花生 | B9: 34 | C9: 14.49 | D9: 800.00 | E9: 4.50% | F9: 36.00 | G9: 521.64 | H9: 35% | I9: 182.57 | J9: 25% | K9: 130.41 | L9: 0% | M9: 0.00 | N9: 10% | O9: 52.17 | P9: 30% | Q9: 156.49 | R9: 156.49 | S9: =G9-Q9 -> 365.15
A10: 露地葡萄 | B10: 6 | C10: 173.00 | D10: 1000.00 | E10: 8.00% | F10: 80.00 | G10: 13840.00 | H10: 0% | I10: 0.00 | J10: 0% | K10: 0.00 | L10: 0% | M10: 0.00 | N10: 70% | O10: 9688.00 | P10: 30% | Q10: 4152.00 | R10: 4152.00 | S10: =G10-Q10 -> 9688.00
A11: 露地旱生蔬菜 | B11: 3 | C11: 419.52 | D11: 1000.00 | E11: 7.00% | F11: 70.00 | G11: 29366.40 | H11: 0% | I11: 0.00 | J11: 0% | K11: 0.00 | L11: 0% | M11: 0.00 | N11: 80% | O11: 23493.12 | P11: 20% | Q11: 5873.28 | R11: 5873.28 | S11: =G11-R11 -> 23493.12
A12: 棉花 | B12: 4 | C12: 3.50 | D12: 550.00 | E12: 4.00% | F12: 22.00 | G12: 77.00 | H12: 35% | I12: 26.95 | J12: 25% | K12: 19.25 | L12: 0% | M12: 0.00 | N12: 10% | O12: 7.70 | P12: 30% | Q12: 23.10 | R12: 23.10 | S12: 53.90
A13: 蛋鸡 | B13: 2 | C13: 43205.00 | D13: 20.00 | E13: 6.00% | F13: 1.20 | G13: 51846.00 | H13: 0% | I13: 0.00 | J13: 0% | K13: 0.00 | L13: 0% | M13: 0.00 | N13: 70% | O13: 36292.20 | P13: 30% | Q13: 15553.80 | R13: 15553.80 | S13: 36292.20
A14: 羊 | B14: 8 | C14: 10291.00 | D14: 900.00 | E14: 8.00% | F14: 72.00 | G14: 740952.00 | H14: 0% | I14: 0.00 | J14: 0% | K14: 0.00 | L14: 0% | M14: 0.00 | N14: 85% | O14: 629809.20 | P14: 15% | Q14: 111142.80 | R14: 111142.80 | S14: 629809.20
A15: 育肥猪 | B15: 78 | C15: 4327.00 | D15: 1000.00 | E15: 4.00% | F15: 40.00 | G15: 173080.00 | H15: 40% | I15: 69232.00 | J15: 20% | K15: 34616.00 | L15: 0% | M15: 0.00 | N15: 20% | O15: 34616.00 | P15: 20% | Q15: 34616.00 | R15: 34616.00 | S15: 138464.00
A16: 能繁母猪 | B16: 136 | C16: 363.00 | D16: 1500.00 | E16: 7.00% | F16: 105.00 | G16: 38115.00 | H16: 40% | I16: 15246.00 | J16: 20% | K16: 7623.00 | L16: 0% | M16: 0.00 | N16: 20% | O16: 7623.00 | P16: 20% | Q16: 7623.00 | R16: 7623.00 | S16: 30492.00
A17: 玉米完全成本 | B17: 488 | C17: 2085.62 | D17: 1000.00 | E17: 3.00% | F17: 30.00 | G17: 62568.60 | H17: 35% | I17: 21899.06 | J17: 30% | K17: 18770.58 | L17: 0% | M17: 0.00 | N17: 30% | O17: 18770.48 | P17: 5% | Q17: 3128.48 | R17: 3128.48 | S17: 59440.12
A18: 棚内作物 | B18: 212 | C18: 6003.45 | D18: / | E18: 6.00% | F18: / | G18: 1440750.00 | H18: 0% | I18: 0.00 | J18: 0% | K18: 0.00 | L18: 0% | M18: 0.00 | N18: 80% | O18: 1152600.00 | P18: 20% | Q18: 288150.00 | R18: 288150.00 | S18: =G18-Q18 -> 1152600.00
A19: 合计 | B19: =SUM(B6:B18) -> 23813 | C19: =SUM(C6:C18) -> 331226.64 | G19: =SUM(G6:G18) -> 14815226.65 | I19: =SUM(I6:I18) -> 2521558.45 | K19: =SUM(K6:K18) -> 2127419.53 | M19: =SUM(M6:M18) -> 0.00 | O19: =SUM(O6:O18) -> 8120706.86 | Q19: =SUM(Q6:Q18) -> 2045541.81 | R19: =SUM(R6:R18) -> 2045541.81 | S19: =SUM(S6:S18) -> 12769684.84
A20: 保险公司负责人： 保险公司复核人： 保险公司制表人：

Sheet 水稻
A1: 种植业保险明细表（险种：水稻完全成本）
A2: 序号 | B2: 乡镇 | C2: 险种代码 | D2: 投保组织者 | E2: 保单号 | F2: 被保险人或投保人 | G2: 标的地址 | H2: 被保险人身份证号 | I2: 联系电话 | J2: 导入清单号 | K2: 投保单号 | L2: 保单号 | M2: 保单流水号 | N2: 保险金额（元） | O2: 保期启 | P2: 保期止 | Q2: 承保户次 | R2: 承保数量（亩） | S2: 标准保费 | T2: 总保费（元） | U2: 自缴标准 | V2: 农户自缴保费（元） | W2: 各级财政补贴（元） | X2: 汇款日期 | Y2: 汇款金额 | Z2: 汇款人 | AA2: 交易流水号（网银回单） | AB2: 备注
A3: 1 | B3: 金沙街道 | E3: P4AD20253206N000000015 | F3: 邱训平等78户 | G3: 通州区金沙街道金北村8组等 | Q3: 78 | R3: 83.90 | S3: 27.30 | T3: 2290.47 | U3: 4.10 | V3: 343.57 | W3: =T3-V3 -> 1946.90 | X3: 2025-05-27 | Y3: 343.58 | Z3: 张钡 | AA3: 10064784
A4: 2 | B4: 金沙街道 | E4: P4AD20253206N000000014 | F4: 张启国 | G4: 通州区金沙街道金北村43组 | Q4: 1 | R4: 320.00 | S4: 27.30 | T4: 8736.00 | U4: 4.10 | V4: 1310.40 | W4: =T4-V4 -> 7425.60 | X4: 2025-05-27 | Y4: 13683.65 | Z4: 张钡 | AA4: 10062784
A5: 3 | B5: 金沙街道 | E5: P4AD20253206N000000013 | F5: 陶建忠 | G5: 通州区金沙街道金北村77组 | Q5: 1 | R5: 142.36 | S5: 27.30 | T5: 3886.43 | U5: 4.10 | V5: 582.96 | W5: 3303.47 | X5: 2025-05-27 | Y5: 13683.65 | Z5: 张钡 | AA5: 10062784
A6: 4 | B6: 金沙街道 | E6: P4AD20253206N000000012 | F6: 瞿国华 | G6: 通州区金沙街道金北村45组 | Q6: 1 | R6: 428.25 | S6: 27.30 | T6: 11691.23 | U6: 4.10 | V6: 1753.68 | W6: 9937.55 | X6: 2025-05-27 | Y6: 13683.65 | Z6: 张钡 | AA6: 10062784
A7: 5 | B7: 金沙街道 | E7: P4AD20253206N000000011 | F7: 瞿炎 | G7: 通州区金沙街道金北村45组 | Q7: 1 | R7: 447.00 | S7: 27.30 | T7: 12203.10 | U7: 4.10 | V7: 1830.47 | W7: 10372.63 | X7: 2025-05-27 | Y7: 13683.65 | Z7: 张钡 | AA7: 10062784
A8: 6 | B8: 金沙街道 | E8: P4AD20253206N000000010 | F8: 喻作才 | G8: 通州区金沙街道金北村54组 | Q8: 1 | R8: 96.96 | S8: 27.30 | T8: 2647.01 | U8: 4.10 | V8: 397.05 | W8: 2249.96 | X8: 2025-05-27 | Y8: 13683.65 | Z8: 张钡 | AA8: 10062784
A9: 7 | B9: 金沙街道 | E9: P4AD20253206N000000009 | F9: 张菊平 | G9: 通州区金沙街道金北村（西五里村）1组 | Q9: 1 | R9: 424.44 | S9: 27.30 | T9: 11587.21 | U9: 4.10 | V9: 1738.08 | W9: 9849.13 | X9: 2025-05-27 | Y9: 13683.65 | Z9: 张钡 | AA9: 10062784
A10: 8 | B10: 金沙街道 | E10: P4AD20253206N000000008 | F10: 卞有汉 | G10: 通州区金沙街道金北村19组 | Q10: 1 | R10: 300.00 | S10: 27.30 | T10: 8190.00 | U10: 4.10 | V10: 1228.50 | W10: 6961.50 | X10: 2025-05-27 | Y10: 13683.65 | Z10: 张钡 | AA10: 10062784
A11: 9 | B11: 金沙街道 | E11: P4AD20253206N000000007 | F11: 王孝飞 | G11: 通州区金沙街道金北村77组 | Q11: 1 | R11: 388.31 | S11: 27.30 | T11: 10600.86 | U11: 4.10 | V11: 1590.13 | W11: 9010.73 | X11: 2025-05-27 | Y11: 13683.65 | Z11: 张钡 | AA11: 10062784
A12: 10 | B12: 金沙街道 | E12: P4AD20253206N000000006 | F12: 陈海军 | G12: 通州区金沙街道金北村74组 | Q12: 1 | R12: 250.00 | S12: 27.30 | T12: 6825.00 | U12: 4.10 | V12: 1023.75 | W12: 5801.25 | X12: 2025-05-27 | Y12: 13683.65 | Z12: 张钡 | AA12: 10062784
A13: 11 | B13: 金沙街道 | E13: P4AD20253206N000000005 | F13: 王国法 | G13: 通州区金沙街道金北村18组 | Q13: 1 | R13: 140.00 | S13: 27.30 | T13: 3822.00 | U13: 4.10 | V13: 573.30 | W13: 3248.70 | X13: 2025-05-27 | Y13: 13683.65 | Z13: 张钡 | AA13: 10062784
A14: 12 | B14: 金沙街道 | E14: P4AD20253206N000000004 | F14: 潘海清 | G14: 通州区金沙街道金北村7组 | Q14: 1 | R14: 50.00 | S14: 27.30 | T14: 1365.00 | U14: 4.10 | V14: 204.75 | W14: 1160.25 | X14: 2025-05-27 | Y14: 13683.65 | Z14: 张钡 | AA14: 10062784
A15: 13 | B15: 金沙街道 | E15: P4AD20253206N000000003 | F15: 季建明 | G15: 通州区金沙街道金北村73组 | Q15: 1 | R15: 81.86 | S15: 27.30 | T15: 2234.78 | U15: 4.10 | V15: 335.22 | W15: 1899.56 | X15: 2025-05-27 | Y15: 13683.65 | Z15: 张钡 | AA15: 10062784
A16: 14 | B16: 金沙街道 | E16: P4AD20253206N000000718 | F16: 房自民 | G16: 通州区金沙街道金北村26组40亩，新三园村25组等60亩 | Q16: 1 | R16: 100.00 | S16: 27.30 | T16: 2730.00 | U16: 4.10 | V16: 409.50 | W16: 2320.50 | X16: 2025/05/27 2025/06/27 | Y16: 13683.65 245.7 | Z16: 张钡 房自民 | AA16: 10062784/01246745
A17: 15 | B17: 金沙街道 | E17: P4AD20253206N000000002 | F17: 张圣斌 | G17: 通州区金沙街道金北村47组 | Q17: 1 | R17: 100.59 | S17: 27.30 | T17: 2746.11 | U17: 4.10 | V17: 411.92 | W17: 2334.19 | X17: 2025-05-27 | Y17: 13683.65 | Z17: 张钡 | AA17: 10062784
A18: 16 | B18: 金沙街道 | E18: P4AD20253206N000000001 | F18: 瞿江 | G18: 通州区金沙街道城东村18组等129亩，平桥镇村50组321亩 | Q18: 1 | R18: 450.00 | S18: 27.30 | T18: 12285.00 | U18: 4.10 | V18: 1842.75 | W18: 10442.25 | X18: 2025-06-20 | Y18: 1842.75 | Z18: 瞿江 | AA18: 67714232
A19: 17 | B19: 金沙街道 | E19: P4AD20253206N000000016 | F19: 姚志才 | G19: 通州区金沙街道平桥镇村8组等 | Q19: 1 | R19: 234.00 | S19: 27.30 | T19: 6388.20 | U19: 4.10 | V19: 958.23 | W19: 5429.97 | X19: 2025-06-23 | Y19: 958.23 | Z19: 姚志才 | AA19: 24168247
A20: 18 | B20: 金沙街道 | E20: P4AD20253206N000000025 | F20: 通州区才付友农业种植专业合作社 | G20: 通州区金沙街道新三园村66组等 | Q20: 1 | R20: 768.42 | S20: 27.30 | T20: 20977.87 | U20: 4.10 | V20: 3146.68 | W20: 17831.19 | X20: 2025-06-23 | Y20: 3357.90 | Z20: 姚志才 | AA20: 67714232
A21: 19 | B21: 金沙街道 | E21: P4AD20253206N000000696 | F21: 张水华 | G21: 通州区金沙街道虹西村西4组等 | Q21: 1 | R21: 638.00 | S21: 27.30 | T21: 17417.40 | U21: 4.10 | V21: 2612.61 | W21: 14804.79 | X21: 2025-06-23 | Y21: 6773.13 | Z21: 季红琴 | AA21: 27772717
A22: 20 | B22: 金沙街道 | E22: P4AD20253206N000003584 | F22: 通粮农业发展有限公司 | G22: 通州区金沙街道港北村1组等 | Q22: 1 | R22: 3295.55 | S22: 27.30 | T22: 89968.52 | U22: 4.10 | V22: 13495.28 | W22: 76473.24 | X22: 2025-06-30 | Y22: 13495.28 | Z22: 南通市通粮农业发展有限公司 | AA22: 13989681
A23: 21 | B23: 西亭镇 | E23: P4AD20253206N000000060 | F23: 丁顺华等88户 | G23: 通州区西亭镇八总桥村41组等 | Q23: 88 | R23: 160.10 | S23: 27.30 | T23: 4370.73 | U23: 4.10 | V23: 655.61 | W23: 3715.12 | X23: 2025-05-27 | Y23: 655.61 | Z23: 顾焱 | AA23: 94300428
A24: 22 | B24: 西亭镇 | E24: P4AD20253206N000000682 | F24: 张武成等59户 | G24: 通州区西亭镇草庙村七组等 | Q24: 59 | R24: 136.86 | S24: 27.30 | T24: 3736.28 | U24: 4.10 | V24: 560.44 | W24: 3175.84 | X24: 2025-06-23 | Y24: 637.10 | Z24: 于丹丹 | AA24: 17201715
A25: 23 | B25: 西亭镇 | E25: P4AD20253206N000001718 | F25: 王建新等94户 | G25: 通州区西亭镇华芦村1组等 | Q25: 94 | R25: 124.24 | S25: 27.30 | T25: 3391.75 | U25: 4.10 | V25: 508.76 | W25: 2882.99 | X25: 2025-05-22 | Y25: 508.77 | Z25: 朱玲珊 | AA25: 4166788
A26: 24 | B26: 西亭镇 | E26: P4AD20253206N000001717 | F26: 于德贤等61户 | G26: 通州区西亭镇九总渡村4组等 | Q26: 61 | R26: 132.83 | S26: 27.30 | T26: 3626.26 | U26: 4.10 | V26: 543.94 | W26: 3082.32 | X26: 2025-05-26 | Y26: 543.94 | Z26: 许灿 | AA26: 41191815
A27: 25 | B27: 西亭镇 | E27: P4AD20253206N000001716 | F27: 汤美霞等131户 | G27: 通州区西亭镇李庄村一组等 | Q27: 131 | R27: 199.85 | S27: 27.30 | T27: 5455.91 | U27: 4.10 | V27: 818.39 | W27: 4637.52 | X27: 2025-05-19 | Y27: 818.39 | Z27: 张璐 | AA27: 33136392
A28: 26 | B28: 西亭镇 | E28: P4AD20253206N000001712 | F28: 成一华等65户 | G28: 通州区西亭镇龙坝村1组等 | Q28: 65 | R28: 113.00 | S28: 27.30 | T28: 3084.90 | U28: 4.10 | V28: 462.74 | W28: 2622.16 | X28: 2025-05-23 | Y28: 462.74 | Z28: 范欢 | AA28: 69315802
A29: 27 | B29: 西亭镇 | E29: P4AD20253206N000001709 | F29: 邵淑平等63户 | G29: 通州区西亭镇纱场居三组等 | Q29: 63 | R29: 77.60 | S29: 27.30 | T29: 2118.48 | U29: 4.10 | V29: 317.77 | W29: 1800.71 | X29: 2025/05/20 2025/05/28 | Y29: 316.67 1.23 | Z29: 易建梅 | AA29: 91753772/83255829
A30: 28 | B30: 西亭镇 | E30: P4AD20253206N000001707 | F30: 张建永等91户 | G30: 通州区西亭镇亭东村一组等 | Q30: 91 | R30: 136.65 | S30: 27.30 | T30: 3730.55 | U30: 4.10 | V30: 559.58 | W30: 3170.97 | X30: 2025-05-23 | Y30: 559.59 | Z30: 陈建平 | AA30: 85930794
A31: 29 | B31: 西亭镇 | E31: P4AD20253206N000000681 | F31: 徐彬等53户 | G31: 通州区西亭镇同乐村二十九组等 | Q31: 53 | R31: 57.70 | S31: 27.30 | T31: 1575.21 | U31: 4.10 | V31: 236.28 | W31: 1338.93 | X31: 2025-05-20 | Y31: 236.39 | Z31: 邱晓灵 | AA31: 12126396
A32: 30 | B32: 西亭镇 | E32: P4AD20253206N000001705 | F32: 祖先康等40户 | G32: 通州区西亭镇西禅寺村二十九组等 | Q32: 40 | R32: 57.60 | S32: 27.30 | T32: 1572.48 | U32: 4.10 | V32: 235.87 | W32: 1336.61 | X32: 2025-05-29 | Y32: 334.32 | Z32: 顾倩倩 | AA32: 5496835
A33: 31 | B33: 西亭镇 | E33: P4AD20253206N000002651 | F33: 何允飞等113户 | G33: 通州区西亭镇西亭社区二组等 | Q33: 113 | R33: 169.10 | S33: 27.30 | T33: 4616.43 | U33: 4.10 | V33: 692.46 | W33: 3923.97 | X33: 2025-06-27 | Y33: 717.20 | Z33: 宋圆圆 | AA33: 63196742
A34: 32 | B34: 西亭镇 | E34: P4AD20253206N000000683 | F34: 钱金中等6户 | G34: 通州区西亭镇同乐村20组 | Q34: 6 | R34: 7.50 | S34: 27.30 | T34: 204.75 | U34: 4.10 | V34: 30.71 | W34: 174.04 | X34: 2025-05-26 | Y34: 30.74 | Z34: 邱晓灵 | AA34: 54520818
A35: 33 | B35: 西亭镇 | E35: P4AD20253206N000001856 | F35: 葛蒋新 | G35: 通州区西亭镇八总桥村1-2组等 | Q35: 1 | R35: 595.87 | S35: 27.30 | T35: 16267.25 | U35: 4.10 | V35: 2440.09 | W35: 13827.16 | X35: 2025-06-22 | Y35: 2579.85 | Z35: 葛蒋新 | AA35: 51260239
A36: 34 | B36: 西亭镇 | E36: P4AD20253206N000001857 | F36: 季小炎 | G36: 通州区西亭镇李庄村1组等 | Q36: 1 | R36: 320.00 | S36: 27.30 | T36: 8736.00 | U36: 4.10 | V36: 1310.40 | W36: 7425.60 | X36: 2025-06-19 | Y36: 1310.40 | Z36: 季小炎 | AA36: 4769980
A37: 35 | B37: 西亭镇 | E37: P4AD20253206N000001858 | F37: 王建国 | G37: 通州区西亭镇纱场居2组等 | Q37: 1 | R37: 143.98 | S37: 27.30 | T37: 3930.65 | U37: 4.10 | V37: 589.60 | W37: 3341.05 | X37: 2025-06-25 | Y37: 778.05 | Z37: 陆中华 | AA37: 32275731
A38: 36 | B38: 西亭镇 | E38: P4AD20253206N000002585 | F38: 唐小飞 | G38: 通州区西亭镇八总桥村10组等 | Q38: 1 | R38: 340.00 | S38: 27.30 | T38: 9282.00 | U38: 4.10 | V38: 1392.30 | W38: 7889.70 | X38: 2025-06-27 | Y38: 1392.30 | Z38: 唐小飞 | AA38: 82011742
A39: 37 | B39: 西亭镇 | E39: P4AD20253206N000001859 | F39: 何建涛 | G39: 通州区西亭镇李庄村16组等355亩，西亭居2组等70亩 | Q39: 1 | R39: 425.00 | S39: 27.30 | T39: 11602.50 | U39: 4.10 | V39: 1740.38 | W39: 9862.12 | X39: 2025-06-21 | Y39: 1740.38 | Z39: 何建涛 | AA39: 49674235
A40: 38 | B40: 西亭镇 | E40: P4AD20253206N000001860 | F40: 黄艳 | G40: 通州区西亭镇九总渡村28组202亩，龙坝村1-2、16组82亩 | Q40: 1 | R40: 284.00 | S40: 27.30 | T40: 7753.20 | U40: 4.10 | V40: 1162.98 | W40: 6590.22 | X40: 2025-06-19 | Y40: 1392.30 | Z40: 黄艳 | AA40: 62457228
A41: 39 | B41: 西亭镇 | E41: P4AD20253206N000001861 | F41: 姜明 | G41: 通州区西亭镇李庄村1组等 | Q41: 1 | R41: 448.00 | S41: 27.30 | T41: 12230.40 | U41: 4.10 | V41: 1834.56 | W41: 10395.84 | X41: 2025-06-20 | Y41: 1834.56 | Z41: 姜丽华 | AA41: 67587230
A42: 40 | B42: 西亭镇 | E42: P4AD20253206N000001864 | F42: 许飞 | G42: 通州区西亭镇李庄村3组等438亩，西禅寺村45组等190亩 | Q42: 1 | R42: 628.00 | S42: 27.30 | T42: 17144.40 | U42: 4.10 | V42: 2571.66 | W42: 14572.74 | X42: 2025-06-17 | Y42: 2571.66 | Z42: 许飞 | AA42: 72494217
A43: 41 | B43: 西亭镇 | E43: P4AD20253206N000002401 | F43: 姜丽华 | G43: 通州区西亭镇西禅寺村12组等 | Q43: 1 | R43: 270.00 | S43: 27.30 | T43: 7371.00 | U43: 4.10 | V43: 1105.65 | W43: 6265.35 | X43: 2025-06-20 | Y43: 1105.65 | Z43: 姜丽华 | AA43: 40168230
A44: 42 | B44: 西亭镇 | E44: P4AD20253206N000002587 | F44: 羌建成 | G44: 通州区西亭镇草庙村18组等 | Q44: 1 | R44: 120.00 | S44: 27.30 | T44: 3276.00 | U44: 4.10 | V44: 491.40 | W44: 2784.60 | X44: 2025-06-26 | Y44: 511.88 | Z44: 羌雨勤 | AA44: 24117738
A45: 43 | B45: 西亭镇 | E45: P4AD20253206N000003475 | F45: 徐润生 | G45: 通州区西亭镇同乐村19组等 | Q45: 1 | R45: 952.00 | S45: 27.30 | T45: 25989.60 | U45: 4.10 | V45: 3898.44 | W45: 22091.16 | X45: 2025-06-27 | Y45: 3898.44 | Z45: 徐润生 | AA45: 28655266
A46: 44 | B46: 西亭镇 | E46: P4AD20253206N000001921 | F46: 陆中华 | G46: 通州区西亭镇华芦村14组等 | Q46: 1 | R46: 80.00 | S46: 27.30 | T46: 2184.00 | U46: 4.10 | V46: 327.60 | W46: 1856.40 | X46: 2025-06-18 | Y46: 912.42 | Z46: 陆中华 | AA46: 18857216
A47: 45 | B47: 西亭镇 | E47: P4AD20253206N000001865 | F47: 高加男 | G47: 通州区西亭镇西禅寺村1组等364亩，李庄村5组等308亩，亭东村7组等170亩 | Q47: 1 | R47: 842.00 | S47: 27.30 | T47: 22986.60 | U47: 4.10 | V47: 3447.99 | W47: 19538.61 | X47: 2025-06-21 | Y47: 3447.99 | Z47: 高加男 | AA47: 70124235
A48: 46 | B48: 西亭镇 | E48: P4AD20253206N000003476 | F48: 周锋 | G48: 通州区西亭镇八总桥村33组等360亩，亭东村30组等20.6亩 | Q48: 1 | R48: 380.60 | S48: 27.30 | T48: 10390.38 | U48: 4.10 | V48: 1558.56 | W48: 8831.82 | X48: 2025-06-27 | Y48: 1558.55 | Z48: 周锋 | AA48: 77682268
A49: 47 | B49: 西亭镇 | E49: P4AD20253206N000003477 | F49: 陈建林 | G49: 通州区西亭镇亭东村3组等 | Q49: 1 | R49: 237.00 | S49: 27.30 | T49: 6470.10 | U49: 4.10 | V49: 970.52 | W49: 5499.58 | X49: 2025-06-27 | Y49: 970.52 | Z49: 蒋娅楠 | AA49: 84038743
A50: 48 | B50: 西亭镇 | E50: P4AD20253206N000003478 | F50: 陆风林 | G50: 通州区西亭镇华芦村22组等 | Q50: 1 | R50: 568.00 | S50: 27.30 | T50: 15506.40 | U50: 4.10 | V50: 2325.96 | W50: 13180.44 | X50: 2025-06-26 | Y50: 2325.96 | Z50: 陆风林 | AA50: 68107257
A51: 49 | B51: 西亭镇 | E51: P4AD20253206N000002592 | F51: 成亚运 | G51: 通州区西亭镇九总渡村16-17组等 | Q51: 1 | R51: 175.00 | S51: 27.30 | T51: 4777.50 | U51: 4.10 | V51: 716.63 | W51: 4060.87 | X51: 2025-06-26 | Y51: 1105.5 9180.15 | Z51: 成亚运/姜丽华 | AA51: 79540555/32739739
A52: 50 | B52: 西亭镇 | E52: P4AD20253206N000001866 | F52: 周良平 | G52: 通州区西亭镇西禅寺村1组等 | Q52: 1 | R52: 519.77 | S52: 27.30 | T52: 14189.72 | U52: 4.10 | V52: 2128.46 | W52: 12061.26 | X52: 2025-06-21 | Y52: 2162.16 | Z52: 周良平 | AA52: 54767999
A53: 51 | B53: 西亭镇 | E53: P4AD20253206N000001867 | F53: 姜小兵 | G53: 通州区西亭镇纱场居11组等 | Q53: 1 | R53: 126.88 | S53: 27.30 | T53: 3463.82 | U53: 4.10 | V53: 519.57 | W53: 2944.25 | X53: 2025-06-21 | Y53: 532.35 | Z53: 姜小兵 | AA53: 84741236
A54: 52 | B54: 西亭镇 | E54: P4AD20253206N000003479 | F54: 周小六 | G54: 通州区西亭镇九总渡村3组等 | Q54: 1 | R54: 530.00 | S54: 27.30 | T54: 14469.00 | U54: 4.10 | V54: 2170.35 | W54: 12298.65 | X54: 2025-06-19 | Y54: 20190.35 | Z54: 谢平 | AA54: 69220226
A55: 53 | B55: 西亭镇 | E55: P4AD20253206N000001869 | F55: 钟建国 | G55: 通州区西亭镇亭东村11组等 | Q55: 1 | R55: 580.00 | S55: 27.30 | T55: 15834.00 | U55: 4.10 | V55: 2375.10 | W55: 13458.90 | X55: 2025-06-15 | Y55: 2375.10 | Z55: 钟强强 | AA55: 49553205
A56: 54 | B56: 西亭镇 | E56: P4AD20253206N000003480 | F56: 陈建华 | G56: 通州区西亭镇亭东村1组等 | Q56: 1 | R56: 591.00 | S56: 27.30 | T56: 16134.30 | U56: 4.10 | V56: 2420.15 | W56: 13714.15 | X56: 2025-06-27 | Y56: 2420.16 | Z56: 陈波 | AA56: 54210749
A57: 55 | B57: 西亭镇 | E57: P4AD20253206N000003481 | F57: 洪金保 | G57: 通州区西亭镇八总桥村8组等 | Q57: 1 | R57: 521.78 | S57: 27.30 | T57: 14244.59 | U57: 4.10 | V57: 2136.69 | W57: 12107.90 | X57: 2025-06-27 | Y57: 2162.16 | Z57: 洪金保 | AA57: 20056265
A58: 56 | B58: 西亭镇 | E58: P4AD20253206N000001870 | F58: 许震希 | G58: 通州区西亭镇九总渡村12组等250.55亩，亭东村42组等71.7亩，八总桥村30-31组103亩，西亭居26组79.89亩 | Q58: 1 | R58: 505.14 | S58: 27.30 | T58: 13790.32 | U58: 4.10 | V58: 2068.55 | W58: 11721.77 | X58: 2025-06-19 | Y58: 2178.54 | Z58: 许灿 | AA58: 67050225
A59: 57 | B59: 西亭镇 | E59: P4AD20253206N000001871 | F59: 杨建华 | G59: 通州区西亭镇同乐村6组等 | Q59: 1 | R59: 150.00 | S59: 27.30 | T59: 4095.00 | U59: 4.10 | V59: 614.25 | W59: 3480.75 | X59: 2025-06-18 | Y59: 614.25 | Z59: 杨小青 | AA59: 54155717
A60: 58 | B60: 西亭镇 | E60: P4AD20253206N000001872 | F60: 张武立 | G60: 通州区西亭镇同乐村4组等65亩，华芦村3组等25亩 | Q60: 1 | R60: 90.00 | S60: 27.30 | T60: 2457.00 | U60: 4.10 | V60: 368.55 | W60: 2088.45 | X60: 2025-06-18 | Y60: 368.55 | Z60: 张慎林 | AA60: 57556585
A61: 59 | B61: 西亭镇 | E61: P4AD20253206N000001873 | F61: 邢建均 | G61: 通州区西亭镇九总渡村9组等 | Q61: 1 | R61: 295.00 | S61: 27.30 | T61: 8053.50 | U61: 4.10 | V61: 1208.03 | W61: 6845.47 | X61: 2025-06-25 | Y61: 1208.03 | Z61: 陈佩芬 | AA61: 10663256
A62: 60 | B62: 西亭镇 | E62: P4AD20253206N000001874 | F62: 张学所 | G62: 通州区西亭镇草庙村31组等 | Q62: 1 | R62: 443.00 | S62: 27.30 | T62: 12093.90 | U62: 4.10 | V62: 1814.09 | W62: 10279.81 | X62: 2025-06-22 | Y62: 1991.36 | Z62: 张学所 | AA62: 19128241
A63: 61 | B63: 西亭镇 | E63: P4AD20253206N000001875 | F63: 成建忠 | G63: 通州区西亭镇亭东村9组等 | Q63: 1 | R63: 89.00 | S63: 27.30 | T63: 2429.70 | U63: 4.10 | V63: 364.46 | W63: 2065.24 | X63: 2025-06-21 | Y63: 364.46 | Z63: 许灿 | AA63: 77848238
A64: 62 | B64: 西亭镇 | E64: P4AD20253206N000001876 | F64: 夏士华 | G64: 通州区西亭镇草庙村1组等 | Q64: 1 | R64: 510.00 | S64: 27.30 | T64: 13923.00 | U64: 4.10 | V64: 2088.45 | W64: 11834.55 | X64: 2025-06-23 | Y64: 2145.78 | Z64: 高林红 | AA64: 74464244
A65: 63 | B65: 西亭镇 | E65: P4AD20253206N000001877 | F65: 张洪均 | G65: 通州区西亭镇亭东村27组等432亩，同乐村6组等468亩 | Q65: 1 | R65: 900.00 | S65: 27.30 | T65: 24570.00 | U65: 4.10 | V65: 3685.50 | W65: 20884.50 | X65: 2025-06-25 | Y65: 3685.50 | Z65: 张倩楠 | AA65: 88227732
A66: 64 | B66: 西亭镇 | E66: P4AD20253206N000001878 | F66: 刘成奇 | G66: 通州区西亭镇亭东村23组 | Q66: 1 | R66: 160.83 | S66: 27.30 | T66: 4390.66 | U66: 4.10 | V66: 658.60 | W66: 3732.06 | X66: 2025-06-23 | Y66: 658.60 | Z66: 刘明月 | AA66: 76352244
A67: 65 | B67: 西亭镇 | E67: P4AD20253206N000003482 | F67: 季伟 | G67: 通州区西亭镇八总桥村21组等574亩，亭东村10组等475亩 | Q67: 1 | R67: 1049.00 | S67: 27.30 | T67: 28637.70 | U67: 4.10 | V67: 4295.66 | W67: 24342.04 | X67: 2025-06-27 | Y67: 4295.66 | Z67: 蒋雪娟 | AA67: 34091266
A68: 66 | B68: 西亭镇 | E68: P4AD20253206N000001879 | F68: 宣建明 | G68: 通州区西亭镇九总渡村10组等515.4亩，龙坝村2组等525.90亩 | Q68: 1 | R68: 1041.30 | S68: 27.30 | T68: 28427.49 | U68: 4.10 | V68: 4264.12 | W68: =T68-V68 -> 24163.37 | X68: 2025-06-23 | Y68: 4264.12 | Z68: 宣建明 | AA68: 59908245
A69: 67 | B69: 西亭镇 | E69: P4AD20253206N000001880 | F69: 姜春锋 | G69: 通州区西亭镇龙坝村（建文村）18组等 | Q69: 1 | R69: 750.00 | S69: 27.30 | T69: 20475.00 | U69: 4.10 | V69: 3071.25 | W69: 17403.75 | X69: 2025-06-23 | Y69: 3071.25 | Z69: 姜春锋 | AA69: 26687245
A70: 68 | B70: 西亭镇 | E70: P4AD20253206N000001881 | F70: 许新根 | G70: 通州区西亭镇亭东村8组等 | Q70: 1 | R70: 560.00 | S70: 27.30 | T70: 15288.00 | U70: 4.10 | V70: 2293.20 | W70: 12994.80 | X70: 2025-06-19 | Y70: 2293.20 | Z70: 许甜甜 | AA70: 55882976
A71: 69 | B71: 西亭镇 | E71: P4AD20253206N000002596 | F71: 卞吉林 | G71: 通州区西亭镇龙坝村1组等 | Q71: 1 | R71: 300.00 | S71: 27.30 | T71: 8190.00 | U71: 4.10 | V71: 1228.50 | W71: 6961.50 | X71: 2025-06-26 | Y71: 1228.50 | Z71: 张卞磊 | AA71: 29801259
A72: 70 | B72: 西亭镇 | E72: P4AD20253206N000003535 | F72: 江建均 | G72: 通州区西亭镇九总渡村28组 | Q72: 1 | R72: 270.00 | S72: 27.30 | T72: 7371.00 | U72: 4.10 | V72: 1105.65 | W72: 6265.35 | X72: 2025-06-29 | Y72: 1105.65 | Z72: 张维江 | AA72: 51071275
A73: 71 | B73: 西亭镇 | E73: P4AD20253206N000001160 | F73: 王世昌 | G73: 通州区西亭镇亭东村39组等520亩，龙坝村5组等560亩 | Q73: 1 | R73: 1080.00 | S73: 27.30 | T73: 29484.00 | U73: 4.10 | V73: 4422.60 | W73: 25061.40 | X73: 2025-06-25 | Y73: 4422.60 | Z73: 王世昌 | AA73: 90888255
A74: 72 | B74: 西亭镇 | E74: P4AD20253206N000003483 | F74: 许新梁 | G74: 通州区西亭镇西亭居9组等 | Q74: 1 | R74: 277.60 | S74: 27.30 | T74: 7578.48 | U74: 4.10 | V74: 1136.77 | W74: 6441.71 | X74: 2025-06-27 | Y74: 1249.00 | Z74: 许新梁 | AA74: 9842267
A75: 73 | B75: 西亭镇 | E75: P4AD20253206N000003484 | F75: 许新栋 | G75: 通州区西亭镇李庄村21组等30亩，亭东村58组等430亩 | Q75: 1 | R75: 460.00 | S75: 27.30 | T75: 12558.00 | U75: 4.10 | V75: 1883.70 | W75: 10674.30 | X75: 2025-06-27 | Y75: 1884.00 | Z75: 许新梁 | AA75: 43282742
A76: 74 | B76: 西亭镇 | E76: P4AD20253206N000003536 | F76: 张维江 | G76: 通州区西亭镇九总渡村28组等 | Q76: 1 | R76: 249.00 | S76: 27.30 | T76: 6797.70 | U76: 4.10 | V76: 1019.66 | W76: 5778.04 | X76: 2025-06-29 | Y76: 1019.66 | Z76: 张维江 | AA76: 85067274
A77: 75 | B77: 西亭镇 | E77: P4AD20253206N000001882 | F77: 许名朱 | G77: 通州区西亭镇草庙村19组等380亩，亭东村40组80亩 | Q77: 1 | R77: 460.00 | S77: 27.30 | T77: 12558.00 | U77: 4.10 | V77: 1883.70 | W77: 10674.30 | X77: 2025-06-25 | Y77: 1883.70 | Z77: 许名朱 | AA77: 9453727
A78: 76 | B78: 西亭镇 | E78: P4AD20253206N000002600 | F78: 王成 | G78: 通州区西亭镇华芦村45组等 | Q78: 1 | R78: 212.00 | S78: 27.30 | T78: 5787.60 | U78: 4.10 | V78: 868.14 | W78: 4919.46 | X78: 2025-06-26 | Y78: 868.14 | Z78: 王成 | AA78: 41853735
A79: 77 | B79: 西亭镇 | E79: P4AD20253206N000001883 | F79: 蔡军 | G79: 通州区西亭镇华芦村43组等 | Q79: 1 | R79: 180.00 | S79: 27.30 | T79: 4914.00 | U79: 4.10 | V79: 737.10 | W79: 4176.90 | X79: 2025-06-22 | Y79: 6857.10 | Z79: 周旭 | AA79: 18506754
A80: 78 | B80: 西亭镇 | E80: P4AD20253206N000001884 | F80: 朱立其 | G80: 通州区西亭镇西禅寺村14组等 | Q80: 1 | R80: 190.00 | S80: 27.30 | T80: 5187.00 | U80: 4.10 | V80: 778.05 | W80: 4408.95 | X80: 2025-06-22 | Y80: 778.05 | Z80: 朱立其 | AA80: 87243707
A81: 79 | B81: 西亭镇 | E81: P4AD20253206N000001886 | F81: 费荣满 | G81: 通州区西亭镇草庙村7组等 | Q81: 1 | R81: 305.00 | S81: 27.30 | T81: 8326.50 | U81: 4.10 | V81: 1248.98 | W81: 7077.52 | X81: 2025-06-23 | Y81: 1306.31 | Z81: 费荣满 | AA81: 34666244
A82: 80 | B82: 西亭镇 | E82: P4AD20253206N000001888 | F82: 费荣堂 | G82: 通州区西亭镇草庙村13组等 | Q82: 1 | R82: 458.06 | S82: 27.30 | T82: 12505.04 | U82: 4.10 | V82: 1875.76 | W82: 10629.28 | X82: 2025-06-23 | Y82: 1904.18 | Z82: 费荣堂 | AA82: 16522245
A83: 81 | B83: 西亭镇 | E83: P4AD20253206N000001889 | F83: 孙海波 | G83: 通州区西亭镇华芦村33组等385亩，西亭居39组等67亩,纱场居27组等133亩，李庄村35组等399亩 | Q83: 1 | R83: 984.00 | S83: 27.30 | T83: 26863.20 | U83: 4.10 | V83: 4029.48 | W83: 22833.72 | X83: 2025-06-17 | Y83: 4029.48 | Z83: 孙海波 | AA83: 67200215
A84: 82 | B84: 西亭镇 | E84: P4AD20253206N000001891 | F84: 张奇慧 | G84: 通州区西亭镇华芦村37组等 | Q84: 1 | R84: 635.00 | S84: 27.30 | T84: 17335.50 | U84: 4.10 | V84: 2600.33 | W84: 14735.17 | X84: 2025-06-26 | Y84: 24190.33 | Z84: 张奇慧 | AA84: 63102736
A85: 83 | B85: 西亭镇 | E85: P4AD20253206N000002604 | F85: 王锦荣 | G85: 通州区西亭镇西禅寺村7组等 | Q85: 1 | R85: 293.30 | S85: 27.30 | T85: 8007.09 | U85: 4.10 | V85: 1201.06 | W85: 6806.03 | X85: 2025-06-26 | Y85: 1201.06 | Z85: 王玉祥 | AA85: 46968738
A86: 84 | B86: 二甲镇 | E86: P4AD20253206N000000032 | F86: 曹竹銮 | G86: 通州区二甲镇定兴桥村38组 | Q86: 1 | R86: 20.00 | S86: 27.30 | T86: 546.00 | U86: 4.10 | V86: 81.90 | W86: 464.10 | X86: 2025-06-03 | Y86: 454.75 | Z86: 黄艳 | AA86: 28594456
A87: 85 | B87: 二甲镇 | E87: P4AD20253206N000000040 | F87: 金泽胜 | G87: 通州区二甲镇六甲镇村38组等165亩，袁南居42组等58亩 | Q87: 1 | R87: 223.00 | S87: 27.30 | T87: 6087.90 | U87: 4.10 | V87: 913.19 | W87: 5174.71 | X87: 2025/05/29 2025/05/22 | Y87: 2956.53 2203.09 | Z87: 刘静 施爱华 | AA87: 59129441/28776788
A88: 86 | B88: 二甲镇 | E88: P4AD20253206N000000039 | F88: 江顺高 | G88: 通州区二甲镇通运桥村37组120亩 | Q88: 1 | R88: 120.00 | S88: 27.30 | T88: 3276.00 | U88: 4.10 | V88: 491.40 | W88: 2784.60 | X88: 2025/05/29 2025/5/31 | Y88: 2956.53 1289.7 | Z88: 刘静 胡凤珍 | AA88: 59129441/41020848
A89: 87 | B89: 二甲镇 | E89: P4AD20253206N000000035 | F89: 武海林 | G89: 通州区二甲镇袁南居11组等 | Q89: 1 | R89: 170.00 | S89: 27.30 | T89: 4641.00 | U89: 4.10 | V89: 696.15 | W89: 3944.85 | X89: 2025-05-29 | Y89: 2956.53 | Z89: 刘静 | AA89: 59129441
A90: 88 | B90: 二甲镇 | E90: P4AD20253206N000001725 | F90: 李飞文 | G90: 通州区二甲镇袁南居12组等 | Q90: 1 | R90: 46.00 | S90: 27.30 | T90: 1255.80 | U90: 4.10 | V90: 188.37 | W90: 1067.43 | X90: 2025-05-29 | Y90: 2956.53 | Z90: 刘静 | AA90: 59129441
A91: 89 | B91: 二甲镇 | E91: P4AD20253206N000001463 | F91: 丁云满 | G91: 通州区二甲镇袁南居13组等 | Q91: 1 | R91: 95.00 | S91: 27.30 | T91: 2593.50 | U91: 4.10 | V91: 389.03 | W91: 2204.47 | X91: 2025-05-27 | Y91: 491.40 | Z91: 丁云满 | AA91: 65097825
A92: 90 | B92: 二甲镇 | E92: P4AD20253206N000000038 | F92: 胡道香 | G92: 通州区二甲镇六甲镇村45组等 | Q92: 1 | R92: 136.00 | S92: 27.30 | T92: 3712.80 | U92: 4.10 | V92: 556.92 | W92: 3155.88 | X92: 2025-05-22 | Y92: 2203.09 | Z92: 施爱华 | AA92: 28776788
A93: 91 | B93: 二甲镇 | E93: P4AD20253206N000001724 | F93: 徐华建 | G93: 通州区二甲镇通运桥村1组等 | Q93: 1 | R93: 110.00 | S93: 27.30 | T93: 3003.00 | U93: 4.10 | V93: 450.45 | W93: 2552.55 | X93: 2025-05-31 | Y93: 1289.70 | Z93: 胡凤珍 | AA93: 41020848
A94: 92 | B94: 二甲镇 | E94: P4AD20253206N000000045 | F94: 高怀平 | G94: 通州区二甲镇余西居14组等150亩，坨墩村19组45亩，宝云山村48组16亩 | Q94: 1 | R94: 211.00 | S94: 27.30 | T94: 5760.30 | U94: 4.10 | V94: 864.05 | W94: 4896.25 | X94: 2025-06-22 | Y94: 864.05 | Z94: 高怀平 | AA94: 67320238
A95: 93 | B95: 二甲镇 | E95: P4AD20253206N000000043 | F95: 张春香 | G95: 通州区二甲镇余西居21组等 | Q95: 1 | R95: 20.00 | S95: 27.30 | T95: 546.00 | U95: 4.10 | V95: 81.90 | W95: 464.10 | X95: 2025-06-27 | Y95: 782.70 | Z95: 徐华建 | AA95: 62332741
A96: 94 | B96: 东社镇 | E96: P4AD20253206N000001704 | F96: 曹国江等4户 | G96: 通州区东社镇白龙庙居9组等 | Q96: 4 | R96: 5.00 | S96: 27.30 | T96: 136.50 | U96: 4.10 | V96: 20.48 | W96: 116.02 | X96: 2025-06-26 | Y96: 1481.80 | Z96: 南通市通州区东社镇财政工作办公室收付中心 | AA96: 13127259
A97: 95 | B97: 东社镇 | E97: P4AD20253206N000002647 | F97: 何炳义 | G97: 通州区东社镇陈墩村二十六组 | Q97: 1 | R97: 1.00 | S97: 27.30 | T97: 27.30 | U97: 4.10 | V97: 4.10 | W97: 23.20 | X97: 2025-06-26 | Y97: 1481.80 | Z97: 南通市通州区东社镇财政工作办公室收付中心 | AA97: 13127259
A98: 96 | B98: 东社镇 | E98: P4AD20253206N000002513 | F98: 张丽娟等3户 | G98: 通州区东社镇福利村九组等 | Q98: 3 | R98: 3.98 | S98: 27.30 | T98: 108.65 | U98: 4.10 | V98: 16.30 | W98: 92.35 | X98: 2025-06-26 | Y98: 1481.80 | Z98: 南通市通州区东社镇财政工作办公室收付中心 | AA98: 13127259
A99: 97 | B99: 东社镇 | E99: P4AD20253206N000001894 | F99: 蔡祥林 | G99: 通州区东社镇河东村4组 | Q99: 1 | R99: 1.00 | S99: 27.30 | T99: 27.30 | U99: 4.10 | V99: 4.10 | W99: 23.20 | X99: 2025-06-26 | Y99: 1481.80 | Z99: 南通市通州区东社镇财政工作办公室收付中心 | AA99: 13127259
A100: 98 | B100: 东社镇 | E100: P4AD20253206N000001895 | F100: 袁锦华等4户 | G100: 通州区东社镇滥港桥村三十二组等 | Q100: 4 | R100: 5.50 | S100: 27.30 | T100: 150.15 | U100: 4.10 | V100: 22.52 | W100: 127.63 | X100: 2025-06-26 | Y100: 1481.80 | Z100: 南通市通州区东社镇财政工作办公室收付中心 | AA100: 13127259
A101: 99 | B101: 东社镇 | E101: P4AD20253206N000002512 | F101: 曹冲等16户 | G101: 通州区东社镇平和村四组等 | Q101: 16 | R101: 17.70 | S101: 27.30 | T101: 483.21 | U101: 4.10 | V101: 72.48 | W101: 410.73 | X101: 2025-06-26 | Y101: 1481.80 | Z101: 南通市通州区东社镇财政工作办公室收付中心 | AA101: 13127259
A102: 100 | B102: 东社镇 | E102: P4AD20253206N000002510 | F102: 张圣瑞等12组 | G102: 通州区东社镇庆丰居3组等 | Q102: 12 | R102: 18.50 | S102: 27.30 | T102: 505.05 | U102: 4.10 | V102: 75.76 | W102: 429.29 | X102: 2025-06-26 | Y102: 1481.80 | Z102: 南通市通州区东社镇财政工作办公室收付中心 | AA102: 13127259
A103: 101 | B103: 东社镇 | E103: P4AD20253206N000001900 | F103: 瞿子成等17户 | G103: 通州区东社镇兴隆灶村三组等 | Q103: 17 | R103: 28.84 | S103: 27.30 | T103: 787.33 | U103: 4.10 | V103: 118.10 | W103: 669.23 | X103: 2025-06-26 | Y103: 1481.80 | Z103: 南通市通州区东社镇财政工作办公室收付中心 | AA103: 13127259
A104: 102 | B104: 东社镇 | E104: P4AD20253206N000002508 | F104: 张圣兰等4户 | G104: 通州区东社镇中和村15组等 | Q104: 4 | R104: 10.00 | S104: 27.30 | T104: 273.00 | U104: 4.10 | V104: 40.95 | W104: 232.05 | X104: 2025-06-26 | Y104: 1481.80 | Z104: 南通市通州区东社镇财政工作办公室收付中心 | AA104: 13127259
A105: 103 | B105: 东社镇 | E105: P4AD20253206N000001901 | F105: 葛林冲 | G105: 通州区东社镇五甲苴居十四组 | Q105: 1 | R105: 1.00 | S105: 27.30 | T105: 27.30 | U105: 4.10 | V105: 4.10 | W105: 23.20 | X105: 2025-06-26 | Y105: 1481.80 | Z105: 南通市通州区东社镇财政工作办公室收付中心 | AA105: 13127259
A106: 104 | B106: 东社镇 | E106: P4AD20253206N000002507 | F106: 张勇等2户 | G106: 通州区东社镇香台村九组等 | Q106: 2 | R106: 5.00 | S106: 27.30 | T106: 136.50 | U106: 4.10 | V106: 20.48 | W106: 116.02 | X106: 2025-06-26 | Y106: 1481.80 | Z106: 南通市通州区东社镇财政工作办公室收付中心 | AA106: 13127259
A107: 105 | B107: 东社镇 | E107: P4AD20253206N000001903 | F107: 钟吉余 | G107: 通州区东社镇陈墩村20-31组1010亩，中和村8组96.5亩 | Q107: 1 | R107: 1106.50 | S107: 27.30 | T107: 30207.45 | U107: 4.10 | V107: 4531.12 | W107: 25676.33 | X107: 2025-06-18 | Y107: 4543.40 | Z107: 钟吉余 | AA107: 6933966
A108: 106 | B108: 东社镇 | E108: P4AD20253206N000003136 | F108: 季宏新 | G108: 通州区东社镇陈墩村8组等 | Q108: 1 | R108: 384.00 | S108: 27.30 | T108: 10483.20 | U108: 4.10 | V108: 1572.48 | W108: 8910.72 | X108: 2025-06-28 | Y108: 1572.48 | Z108: 季宏新 | AA108: 14790752
A109: 107 | B109: 东社镇 | E109: P4AD20253206N000003500 | F109: 李林冲 | G109: 通州区东社镇兴隆灶村1、3、5、6组等132亩,陈墩村1-4组33亩 | Q109: 1 | R109: 165.00 | S109: 27.30 | T109: 4504.50 | U109: 4.10 | V109: 675.68 | W109: 3828.82 | X109: 2025-06-27 | Y109: 675.68 | Z109: 李林冲 | AA109: 36862746
A110: 108 | B110: 东社镇 | E110: P4AD20253206N000001907 | F110: 胡飞 | G110: 通州区东社镇白龙庙居2、4、8组等 | Q110: 1 | R110: 261.00 | S110: 27.30 | T110: 7125.30 | U110: 4.10 | V110: 1068.80 | W110: 6056.50 | X110: 2025-06-19 | Y110: 1068.80 | Z110: 胡飞 | AA110: 45587979
A111: 109 | B111: 东社镇 | E111: P4AD20253206N000001909 | F111: 周春付 | G111: 通州区东社镇陈墩村11-15组 | Q111: 1 | R111: 296.00 | S111: 27.30 | T111: 8080.80 | U111: 4.10 | V111: 1212.12 | W111: 6868.68 | X111: 2025-06-24 | Y111: 1212.12 | Z111: 周春付 | AA111: 26012720
A112: 110 | B112: 东社镇 | E112: P4AD20253206N000003485 | F112: 顾喻建 | G112: 通州区东社镇陈墩村18-20组 | Q112: 1 | R112: 351.00 | S112: 27.30 | T112: 9582.30 | U112: 4.10 | V112: 1437.35 | W112: 8144.95 | X112: 2025-06-27 | Y112: 1437.35 | Z112: 顾喻建 | AA112: 52470747
A113: 111 | B113: 东社镇 | E113: P4AD20253206N000001910 | F113: 曹树成 | G113: 通州区东社镇东社居7组等 | Q113: 1 | R113: 528.00 | S113: 27.30 | T113: 14414.40 | U113: 4.10 | V113: 2162.16 | W113: 12252.24 | X113: 2025-06-25 | Y113: 2162.16 | Z113: 曹树成 | AA113: 79229257
A114: 112 | B114: 东社镇 | E114: P4AD20253206N000001911 | F114: 张凤华 | G114: 通州区东社镇庆丰居1-4、7-9、13、32组 | Q114: 1 | R114: 517.00 | S114: 27.30 | T114: 14114.10 | U114: 4.10 | V114: 2117.12 | W114: 11996.98 | X114: 2025-06-26 | Y114: 2117.12 | Z114: 张凤华 | AA114: 92978733
A115: 113 | B115: 东社镇 | E115: P4AD20253206N000001914 | F115: 张大川 | G115: 通州区东社镇庆丰居6、37、38组 | Q115: 1 | R115: 367.00 | S115: 27.30 | T115: 10019.10 | U115: 4.10 | V115: 1502.87 | W115: 8516.23 | X115: 2025-06-20 | Y115: 1502.87 | Z115: 张大川 | AA115: 29091994
A116: 114 | B116: 东社镇 | E116: P4AD20253206N000001918 | F116: 张正流 | G116: 通州区东社镇庆丰居26、41、42组 | Q116: 1 | R116: 156.00 | S116: 27.30 | T116: 4258.80 | U116: 4.10 | V116: 638.82 | W116: 3619.98 | X116: 2025-06-20 | Y116: 638.82 | Z116: 张正流 | AA116: 39874996
A117: 115 | B117: 东社镇 | E117: P4AD20253206N000001919 | F117: 洪名信 | G117: 通州区东社镇庆丰居14-16、27、28、30-33组 | Q117: 1 | R117: 472.00 | S117: 27.30 | T117: 12885.60 | U117: 4.10 | V117: 1932.84 | W117: 10952.76 | X117: 2025-06-22 | Y117: 1932.84 | Z117: 洪名信 | AA117: 47067708
A118: 116 | B118: 东社镇 | E118: P4AD20253206N000001920 | F118: 尹仕山 | G118: 通州区东社镇庆丰居8、10、11、30-32组 | Q118: 1 | R118: 336.00 | S118: 27.30 | T118: 9172.80 | U118: 4.10 | V118: 1375.92 | W118: 7796.88 | X118: 2025-06-22 | Y118: 1375.92 | Z118: 尹仕山 | AA118: 63181239
A119: 117 | B119: 东社镇 | E119: P4AD20253206N000001922 | F119: 高怀平 | G119: 通州区东社镇庆丰居17-21、35组 | Q119: 1 | R119: 553.00 | S119: 27.30 | T119: 15096.90 | U119: 4.10 | V119: 2264.54 | W119: 12832.36 | X119: 2025-06-22 | Y119: 2264.54 | Z119: 高怀平 | AA119: 42689708
A120: 118 | B120: 东社镇 | E120: P4AD20253206N000001923 | F120: 俞红兵 | G120: 通州区东社镇五甲苴居苴东村15组 | Q120: 1 | R120: 160.00 | S120: 27.30 | T120: 4368.00 | U120: 4.10 | V120: 655.20 | W120: 3712.80 | X120: 2025-06-24 | Y120: 655.20 | Z120: 南通市通州区金通联粮食种植专业合作社 | AA120: 79026720
A121: 119 | B121: 东社镇 | E121: P4AD20253206N000001924 | F121: 范新忠 | G121: 通州区东社镇五甲苴居苴北村22组等 | Q121: 1 | R121: 1533.00 | S121: 27.30 | T121: 41850.90 | U121: 4.10 | V121: 6277.64 | W121: 35573.26 | X121: 2025-06-23 | Y121: 6277.64 | Z121: 南通市通州区新忠粮食种植农民专业合作社 | AA121: 64155627
A122: 120 | B122: 东社镇 | E122: P4AD20253206N000001925 | F122: 王钦权 | G122: 通州区东社镇五甲苴居8组等 | Q122: 1 | R122: 720.00 | S122: 27.30 | T122: 19656.00 | U122: 4.10 | V122: 2948.40 | W122: 16707.60 | X122: 2025-06-25 | Y122: 2948.40 | Z122: 王钦权 | AA122: 95218728
A123: 121 | B123: 东社镇 | E123: P4AD20253206N000001926 | F123: 陈冲 | G123: 通州区东社镇香台村6组等 | Q123: 1 | R123: 402.00 | S123: 27.30 | T123: 10974.60 | U123: 4.10 | V123: 1646.19 | W123: 9328.41 | X123: 2025-06-22 | Y123: 1646.19 | Z123: 陈丹华 | AA123: 44452709
A124: 122 | B124: 东社镇 | E124: P4AD20253206N000001928 | F124: 夏保年 | G124: 通州区东社镇严北村29组180亩，香台村13-15组168亩 | Q124: 1 | R124: 348.00 | S124: 27.30 | T124: 9500.40 | U124: 4.10 | V124: 1425.06 | W124: 8075.34 | X124: 2025-06-24 | Y124: 1425.06 | Z124: 夏保年 | AA124: 126724
A125: 123 | B125: 东社镇 | E125: P4AD20253206N000001930 | F125: 王建民 | G125: 通州区东社镇兴隆灶村1组等 | Q125: 1 | R125: 102.00 | S125: 27.30 | T125: 2784.60 | U125: 4.10 | V125: 417.69 | W125: 2366.91 | X125: 2025-06-16 | Y125: 417.69 | Z125: 王建民 | AA125: 17689211
A126: 124 | B126: 东社镇 | E126: P4AD20253206N000001931 | F126: 张大方 | G126: 通州区东社镇庆丰居22-26、36-37、41-43组 | Q126: 1 | R126: 761.00 | S126: 27.30 | T126: 20775.30 | U126: 4.10 | V126: 3116.30 | W126: 17659.00 | X126: 2025-06-20 | Y126: 3116.30 | Z126: 张大方 | AA126: 35650998
A127: 125 | B127: 东社镇 | E127: P4AD20253206N000001934 | F127: 瞿林 | G127: 通州区东社镇兴隆灶村隆西村8组 | Q127: 1 | R127: 280.00 | S127: 27.30 | T127: 7644.00 | U127: 4.10 | V127: 1146.60 | W127: 6497.40 | X127: 2025-06-26 | Y127: 1146.60 | Z127: 张忠 | AA127: 50913258
A128: 126 | B128: 东社镇 | E128: P4AD20253206N000001936 | F128: 王军 | G128: 通州区东社镇严北村1组等440亩，唐洪村1组等80亩 | Q128: 1 | R128: 520.00 | S128: 27.30 | T128: 14196.00 | U128: 4.10 | V128: 2129.40 | W128: 12066.60 | X128: 2025-06-24 | Y128: 2129.40 | Z128: 王军 | AA128: 3075249
A129: 127 | B129: 东社镇 | E129: P4AD20253206N000001937 | F129: 瞿志华 | G129: 通州区东社镇严北村3组等 | Q129: 1 | R129: 486.00 | S129: 27.30 | T129: 13267.80 | U129: 4.10 | V129: 1990.17 | W129: 11277.63 | X129: 2025-06-17 | Y129: 1990.17 | Z129: 瞿志华 | AA129: 56935214
A130: 128 | B130: 东社镇 | E130: P4AD20253206N000001939 | F130: 袁花明 | G130: 通州区东社镇严北村1组等 | Q130: 1 | R130: 487.00 | S130: 27.30 | T130: 13295.10 | U130: 4.10 | V130: 1994.27 | W130: 11300.83 | X130: 2025-06-23 | Y130: 1994.27 | Z130: 袁花明 | AA130: 82306719
A131: 129 | B131: 东社镇 | E131: P4AD20253206N000001941 | F131: 夏登生 | G131: 通州区东社镇严北村1组等 | Q131: 1 | R131: 378.00 | S131: 27.30 | T131: 10319.40 | U131: 4.10 | V131: 1547.91 | W131: 8771.49 | X131: 2025-06-20 | Y131: 1547.91 | Z131: 夏登生 | AA131: 68432997
A132: 130 | B132: 东社镇 | E132: P4AD20253206N000001942 | F132: 孙宜帮 | G132: 通州区东社镇严北村1组等 | Q132: 1 | R132: 1160.00 | S132: 27.30 | T132: 31668.00 | U132: 4.10 | V132: 4750.20 | W132: =T132-V132 -> 26917.80 | X132: 2025-06-24 | Y132: 4750.20 | Z132: 孙宜帮 | AA132: 33404250
A133: 131 | B133: 东社镇 | E133: P4AD20253206N000001945 | F133: 蒋和林 | G133: 通州区东社镇严北村7组 | Q133: 1 | R133: 410.00 | S133: 27.30 | T133: 11193.00 | U133: 4.10 | V133: 1678.95 | W133: 9514.05 | X133: 2025-06-26 | Y133: 1678.95 | Z133: 蒋玉伟 | AA133: 52020772
A134: 132 | B134: 东社镇 | E134: P4AD20253206N000001946 | F134: 颜子寿 | G134: 通州区东社镇严北村10组等 | Q134: 1 | R134: 235.00 | S134: 27.30 | T134: 6415.50 | U134: 4.10 | V134: 962.33 | W134: 5453.17 | X134: 2025-06-26 | Y134: 962.33 | Z134: 颜子寿 | AA134: 19366264
A135: 133 | B135: 东社镇 | E135: P4AD20253206N000003501 | F135: 袁花能 | G135: 通州区东社镇严北村2组等 | Q135: 1 | R135: 303.00 | S135: 27.30 | T135: 8271.90 | U135: 4.10 | V135: 1240.79 | W135: 7031.11 | X135: 2025-06-21 | Y135: 1240.90 | Z135: 王蕾 | AA135: 44863236
A136: 134 | B136: 东社镇 | E136: P4AD20253206N000001950 | F136: 瞿江 | G136: 通州区东社镇严北村13、14组 | Q136: 1 | R136: 340.00 | S136: 27.30 | T136: 9282.00 | U136: 4.10 | V136: 1392.30 | W136: 7889.70 | X136: 2025-06-20 | Y136: 1392.30 | Z136: 瞿江 | AA136: 55774995
A137: 135 | B137: 东社镇 | E137: P4AD20253206N000001952 | F137: 瞿光春 | G137: 通州区东社镇白龙庙居2、10-11等组269亩，中和村6组106亩 | Q137: 1 | R137: 375.00 | S137: 27.30 | T137: 10237.50 | U137: 4.10 | V137: 1535.63 | W137: 8701.87 | X137: 2025-06-27 | Y137: 1535.63 | Z137: 瞿光春 | AA137: 74056265
A138: 136 | B138: 东社镇 | E138: P4AD20253206N000001955 | F138: 丁云满 | G138: 通州区东社镇白龙庙居7组等 | Q138: 1 | R138: 277.00 | S138: 27.30 | T138: 7562.10 | U138: 4.10 | V138: 1134.32 | W138: 6427.78 | X138: 2025-06-17 | Y138: 1138.41 | Z138: 丁云满 | AA138: 70182952
A139: 137 | B139: 东社镇 | E139: P4AD20253206N000001957 | F139: 陈亚华 | G139: 通州区东社镇白龙庙居9-10组291亩，福利村8组等102亩 | Q139: 1 | R139: 393.00 | S139: 27.30 | T139: 10728.90 | U139: 4.10 | V139: 1609.34 | W139: 9119.56 | X139: 2025-06-26 | Y139: 1609.34 | Z139: 陈亚华 | AA139: 40011734
A140: 138 | B140: 东社镇 | E140: P4AD20253206N000001958 | F140: 季锡华 | G140: 通州区东社镇白龙庙居6、21-23组 | Q140: 1 | R140: 366.00 | S140: 27.30 | T140: 9991.80 | U140: 4.10 | V140: 1498.77 | W140: 8493.03 | X140: 2025-06-23 | Y140: 1502.87 | Z140: 季锡华 | AA140: 34581244
A141: 139 | B141: 东社镇 | E141: P4AD20253206N000001960 | F141: 费大稳 | G141: 通州区东社镇唐洪村8组等 | Q141: 1 | R141: 758.00 | S141: 27.30 | T141: 20693.40 | U141: 4.10 | V141: 3104.01 | W141: 17589.39 | X141: 2025-06-23 | Y141: 3104.01 | Z141: 费大稳 | AA141: 17293716
A142: 140 | B142: 东社镇 | E142: P4AD20253206N000001962 | F142: 李伟 | G142: 通州区东社镇唐洪村2组等 | Q142: 1 | R142: 595.00 | S142: 27.30 | T142: 16243.50 | U142: 4.10 | V142: 2436.53 | W142: 13806.97 | X142: 2025-06-20 | Y142: 2436.53 | Z142: 李伟 | AA142: 23165231
A143: 141 | B143: 东社镇 | E143: P4AD20253206N000001966 | F143: 王蕾 | G143: 通州区东社镇唐洪村1组 | Q143: 1 | R143: 430.00 | S143: 27.30 | T143: 11739.00 | U143: 4.10 | V143: 1760.85 | W143: 9978.15 | X143: 2025-06-26 | Y143: 1760.85 | Z143: 王蕾 | AA143: 46088262
A144: 142 | B144: 东社镇 | E144: P4AD20253206N000001967 | F144: 张雄 | G144: 通州区东社镇横马村3、4、8组382亩，白龙庙居12、16组238亩 | Q144: 1 | R144: 620.00 | S144: 27.30 | T144: 16926.00 | U144: 4.10 | V144: 2538.90 | W144: 14387.10 | X144: 2025-06-26 | Y144: 2649.47 | Z144: 张雄 | AA144: 19595262
A145: 143 | B145: 东社镇 | E145: P4AD20253206N000001969 | F145: 陈蓓蓓 | G145: 通州区东社镇横马村5组等 | Q145: 1 | R145: 387.00 | S145: 27.30 | T145: 10565.10 | U145: 4.10 | V145: 1584.77 | W145: 8980.33 | X145: 2025-06-26 | Y145: 1658.48 | Z145: 陈蓓蓓 | AA145: 40990260
A146: 144 | B146: 东社镇 | E146: P4AD20253206N000001972 | F146: 徐于和 | G146: 通州区东社镇严北村22、23组等 | Q146: 1 | R146: 315.00 | S146: 27.30 | T146: 8599.50 | U146: 4.10 | V146: 1289.93 | W146: 7309.57 | X146: 2025-06-21 | Y146: 1289.93 | Z146: 徐于和 | AA146: 47859238
A147: 145 | B147: 东社镇 | E147: P4AD20253206N000003502 | F147: 陈义 | G147: 通州区东社镇滥港桥村29-30、37组等 | Q147: 1 | R147: 231.00 | S147: 27.30 | T147: 6306.30 | U147: 4.10 | V147: 945.95 | W147: 5360.35 | X147: 2025-06-23 | Y147: 1179.36 | Z147: 高菊梅 | AA147: 68582245
A148: 146 | B148: 东社镇 | E148: P4AD20253206N000001975 | F148: 顾锁平 | G148: 通州区东社镇滥港桥村22组等132亩，平和村38组等15亩 | Q148: 1 | R148: 147.00 | S148: 27.30 | T148: 4013.10 | U148: 4.10 | V148: 601.97 | W148: 3411.13 | X148: 2025-06-25 | Y148: 601.97 | Z148: 顾锁平 | AA148: 38721254
A149: 147 | B149: 东社镇 | E149: P4AD20253206N000001977 | F149: 高菊梅 | G149: 通州区东社镇滥港桥村14-16组 | Q149: 1 | R149: 353.50 | S149: 27.30 | T149: 9650.55 | U149: 4.10 | V149: 1447.58 | W149: 8202.97 | X149: 2025-06-23 | Y149: 1447.59 | Z149: 高菊梅 | AA149: 29481715
A150: 148 | B150: 东社镇 | E150: P4AD20253206N000001978 | F150: 曹新林 | G150: 通州区东社镇滥港桥村2-3、14组等 | Q150: 1 | R150: 340.00 | S150: 27.30 | T150: 9282.00 | U150: 4.10 | V150: 1392.30 | W150: 7889.70 | X150: 2025-06-24 | Y150: 1392.30 | Z150: 曹新林 | AA150: 12167724
A151: 149 | B151: 东社镇 | E151: P4AD20253206N000001979 | F151: 张忠 | G151: 通州区东社镇兴隆灶村隆西村23组186亩，庆丰居1组38亩 | Q151: 1 | R151: 224.00 | S151: 27.30 | T151: 6115.20 | U151: 4.10 | V151: 917.28 | W151: 5197.92 | X151: 2025-06-26 | Y151: 917.28 | Z151: 张忠 | AA151: 23903261
A152: 150 | B152: 东社镇 | E152: P4AD20253206N000003546 | F152: 王建彬 | G152: 通州区东社镇杨港居22、25组 | Q152: 1 | R152: 205.00 | S152: 27.30 | T152: 5596.50 | U152: 4.10 | V152: 839.48 | W152: 4757.02 | X152: 2025-06-29 | Y152: 839.48 | Z152: 王建彬 | AA152: 24550277
A153: 151 | B153: 东社镇 | E153: P4AD20253206N000003537 | F153: 徐宜明 | G153: 通州区东社镇杨港居23组 | Q153: 1 | R153: 57.00 | S153: 27.30 | T153: 1556.10 | U153: 4.10 | V153: 233.42 | W153: 1322.68 | X153: 2025-06-29 | Y153: 233.42 | Z153: 徐宜明 | AA153: 55175275
A154: 152 | B154: 东社镇 | E154: P4AD20253206N000003538 | F154: 丁祖方 | G154: 通州区东社镇横马村9组等 | Q154: 1 | R154: 479.00 | S154: 27.30 | T154: 13076.70 | U154: 4.10 | V154: 1961.51 | W154: 11115.19 | X154: 2025-06-29 | Y154: 1961.51 | Z154: 丁祖方 | AA154: 5216762
A155: 153 | B155: 十总镇 | E155: P4AD20253206N000001369 | F155: 丁宪华等139户 | G155: 通州区十总镇爱民村一组等 | Q155: 139 | R155: 298.41 | S155: 27.30 | T155: 8146.59 | U155: 4.10 | V155: 1221.99 | W155: 6924.60 | X155: 2025-06-13 | Y155: 1500.45 | Z155: 徐陈冰 | AA155: 3012758
A156: 154 | B156: 十总镇 | E156: P4AD20253206N000001380 | F156: 刘建忠等9户 | G156: 通州区十总镇岸西村三组等 | Q156: 9 | R156: 14.38 | S156: 27.30 | T156: 392.57 | U156: 4.10 | V156: 58.89 | W156: 333.68 | X156: 2025-06-09 | Y156: 76.89 | Z156: 季亮 | AA156: 42409478
A157: 155 | B157: 十总镇 | E157: P4AD20253206N000001388 | F157: 陶瑞兵等35户 | G157: 通州区十总镇柏树墩村一组等 | Q157: 35 | R157: 74.30 | S157: 27.30 | T157: 2028.39 | U157: 4.10 | V157: 304.26 | W157: 1724.13 | X157: 2025-06-12 | Y157: 304.75 | Z157: 翟允允 | AA157: 11335494
A158: 156 | B158: 十总镇 | E158: P4AD20253206N000001390 | F158: 徐新华等44户 | G158: 通州区十总镇沧南居2组等 | Q158: 44 | R158: 76.00 | S158: 27.30 | T158: 2074.80 | U158: 4.10 | V158: 311.22 | W158: 1763.58 | X158: 2025-06-13 | Y158: 311.22 | Z158: 王雪芹 | AA158: 36191930
A159: 157 | B159: 十总镇 | E159: P4AD20253206N000001394 | F159: 丁祝良等41户 | G159: 通州区十总镇东场村2组等 | Q159: 41 | R159: 137.40 | S159: 27.30 | T159: 3751.02 | U159: 4.10 | V159: 562.65 | W159: 3188.37 | X159: 2025-06-18 | Y159: 546.27/ 16.38 | Z159: 葛晓菊 | AA159: 87463963/25216966
A160: 158 | B160: 十总镇 | E160: P4AD20253206N000001534 | F160: 顾金义等292户 | G160: 通州区十总镇渡海亭村一组等 | Q160: 292 | R160: 777.72 | S160: 27.30 | T160: 21231.76 | U160: 4.10 | V160: 3184.76 | W160: 18047.00 | X160: 2025-06-26 | Y160: 3184.76 | Z160: 葛倩倩 | AA160: 43082737
A161: 159 | B161: 十总镇 | E161: P4AD20253206N000001409 | F161: 羌汉成等10户 | G161: 通州区十总镇季庄村12组等 | Q161: 10 | R161: 17.00 | S161: 27.30 | T161: 464.10 | U161: 4.10 | V161: 69.62 | W161: 394.48 | X161: 2025-06-18 | Y161: 69.62 | Z161: 卞艳芳 | AA161: 11361220
A162: 160 | B162: 十总镇 | E162: P4AD20253206N000001408 | F162: 丁胜华等19户 | G162: 通州区十总镇骑岸居一组等 | Q162: 19 | R162: 37.70 | S162: 27.30 | T162: 1029.21 | U162: 4.10 | V162: 154.38 | W162: 874.83 | X162: 2025-06-10 | Y162: 169.19 | Z162: 刘莉 | AA162: 38047604
A163: 161 | B163: 十总镇 | E163: P4AD20253206N000001728 | F163: 马仪海等37户 | G163: 通州区十总镇骑北村29组等 | Q163: 37 | R163: 60.70 | S163: 27.30 | T163: 1657.11 | U163: 4.10 | V163: 248.57 | W163: 1408.54 | X163: 2025/06/12 2025/06/13 | Y163: 244.47/ 4.1 | Z163: 顾陈飞 | AA163: 04693918/43903930
A164: 162 | B164: 十总镇 | E164: P4AD20253206N000001727 | F164: 张敬言等78户 | G164: 通州区十总镇上雁村七组等 | Q164: 78 | R164: 225.50 | S164: 27.30 | T164: 6156.15 | U164: 4.10 | V164: 923.42 | W164: 5232.73 | X164: 2025-06-13 | Y164: 923.43 | Z164: 曹菲菲 | AA164: 58397929
A165: 163 | B165: 十总镇 | E165: P4AD20253206N000003613 | F165: 彭汉兵等6户 | G165: 通州区十总镇十总居10组等 | Q165: 6 | R165: 8.00 | S165: 27.30 | T165: 218.40 | U165: 4.10 | V165: 32.76 | W165: 185.64 | X165: 2025/06/10 2025/06/28 | Y165: 28.67 4.5 | Z165: 陈佳雯/张伟 | AA165: 90589482/81040751
A166: 164 | B166: 十总镇 | E166: P4AD20253206N000001537 | F166: 徐艳红等46户 | G166: 通州区十总镇双墩村十五组等 | Q166: 46 | R166: 83.30 | S166: 27.30 | T166: 2274.09 | U166: 4.10 | V166: 341.11 | W166: 1932.98 | X166: 2025-05-21 | Y166: 432.87 | Z166: 张林莉 | AA166: 81463786
A167: 165 | B167: 十总镇 | E167: P4AD20253206N000001545 | F167: 陈汉芝等177户 | G167: 通州区十总镇五总居六组等 | Q167: 177 | R167: 432.72 | S167: 27.30 | T167: 11813.26 | U167: 4.10 | V167: 1771.99 | W167: 10041.27 | X167: 2025/06/10 2025/06/23 | Y167: 1616.31/ 157.85 | Z167: 钟亚平 | AA167: 94572482/49190716
A168: 166 | B168: 十总镇 | E168: P4AD20253206N000001722 | F168: 陈益明等76户 | G168: 通州区十总镇新雁村2组等 | Q168: 76 | R168: 227.10 | S168: 27.30 | T168: 6199.83 | U168: 4.10 | V168: 929.97 | W168: 5269.86 | X168: 2025-06-13 | Y168: 1047.88 | Z168: 季亚楠 | AA168: 47504498
A169: 167 | B169: 十总镇 | E169: P4AD20253206N000001542 | F169: 季正国等2户 | G169: 通州区十总镇于家坝村39组等 | Q169: 2 | R169: 53.00 | S169: 27.30 | T169: 1446.90 | U169: 4.10 | V169: 217.04 | W169: 1229.86 | X169: 2025-06-25 | Y169: 61.5 155.8 | Z169: 曹浩 | AA169: 36461255/27581254
A170: 168 | B170: 十总镇 | E170: P4AD20253206N000001721 | F170: 陈进华等153户 | G170: 通州区十总镇育民村七组等 | Q170: 153 | R170: 368.69 | S170: 27.30 | T170: 10065.24 | U170: 4.10 | V170: 1509.79 | W170: 8555.45 | X170: 2025-06-03 | Y170: 1509.80 | Z170: 王培玉 | AA170: 55004000
A171: 169 | B171: 十总镇 | E171: P4AD20253206N000001552 | F171: 丁国泉等270户 | G171: 通州区十总镇张沙村1组等 | Q171: 270 | R171: 458.17 | S171: 27.30 | T171: 12508.04 | U171: 4.10 | V171: 1876.21 | W171: 10631.83 | X171: 2025-06-06 | Y171: 1876.50 | Z171: 季田丽 | AA171: 47831883
A172: 170 | B172: 十总镇 | E172: P4AD20253206N000001719 | F172: 周月军等8户 | G172: 通州区十总镇志新村26组等 | Q172: 8 | R172: 48.50 | S172: 27.30 | T172: 1324.05 | U172: 4.10 | V172: 198.61 | W172: 1125.44 | X172: 2025/05/13 2025/06/10 | Y172: 135.14 63.45 | Z172: 周月军/刘斌 | AA172: 26557534/93293483
A173: 171 | B173: 十总镇 | E173: P4AD20253206N000003553 | F173: 丁时兵 | G173: 通州区十总镇爱民村32组 | Q173: 1 | R173: 110.00 | S173: 27.30 | T173: 3003.00 | U173: 4.10 | V173: 450.45 | W173: 2552.55 | X173: 2025-06-28 | Y173: 4190.45 | Z173: 张伟 | AA173: 54972268
A174: 172 | B174: 十总镇 | E174: P4AD20253206N000001420 | F174: 于建峰 | G174: 通州区十总镇季庄村3、8、9组 | Q174: 1 | R174: 310.95 | S174: 27.30 | T174: 8488.94 | U174: 4.10 | V174: 1273.34 | W174: 7215.60 | X174: 2025-06-11 | Y174: 1273.34 | Z174: 于建峰 | AA174: 81160488
A175: 173 | B175: 十总镇 | E175: P4AD20253206N000000752 | F175: 奚卫星 | G175: 通州区十总镇双墩村12等组688亩，柏树墩村11等组200亩 | Q175: 1 | R175: 888.00 | S175: 27.30 | T175: 24242.40 | U175: 4.10 | V175: 3636.36 | W175: 20606.04 | X175: 2025-06-27 | Y175: 3636.36 | Z175: 奚卫星 | AA175: 97262266
A176: 174 | B176: 十总镇 | E176: P4AD20253206N000000751 | F176: 蒋卫卫 | G176: 通州区十总镇柏树墩村22等组 | Q176: 1 | R176: 340.00 | S176: 27.30 | T176: 9282.00 | U176: 4.10 | V176: 1392.30 | W176: 7889.70 | X176: 2025-06-25 | Y176: 1392.30 | Z176: 蒋卫卫 | AA176: 90175254
A177: 175 | B177: 十总镇 | E177: P4AD20253206N000000755 | F177: 蒋兵 | G177: 通州区十总镇柏树墩村22等组 | Q177: 1 | R177: 336.00 | S177: 27.30 | T177: 9172.80 | U177: 4.10 | V177: 1375.92 | W177: 7796.88 | X177: 2025-06-29 | Y177: 1375.92 | Z177: 蒋军 | AA177: 66319276
A178: 176 | B178: 十总镇 | E178: P4AD20253206N000000754 | F178: 张圣君 | G178: 通州区十总镇柏树墩村29等组 | Q178: 1 | R178: 966.00 | S178: 27.30 | T178: 26371.80 | U178: 4.10 | V178: 3955.77 | W178: 22416.03 | X178: 2025-06-25 | Y178: 3955.77 | Z178: 蔡娟 | AA178: 61689732
A179: 177 | B179: 十总镇 | E179: P4AD20253206N000000753 | F179: 包华 | G179: 通州区十总镇于家坝村7、10等组790.91亩，柏树墩村29组240.81亩 | Q179: 1 | R179: 1031.72 | S179: 27.30 | T179: 28165.96 | U179: 4.10 | V179: 4224.89 | W179: 23941.07 | X179: 2025-06-24 | Y179: 4224.89 | Z179: 王云 | AA179: 18357723
A180: 178 | B180: 十总镇 | E180: P4AD20253206N000000756 | F180: 吴旭东 | G180: 通州区十总镇柏树墩村6组 | Q180: 1 | R180: 380.00 | S180: 27.30 | T180: 10374.00 | U180: 4.10 | V180: 1556.10 | W180: 8817.90 | X180: 2025-06-23 | Y180: 1556.10 | Z180: 吴旭东 | AA180: 89351715
A181: 179 | B181: 十总镇 | E181: P4AD20253206N000003616 | F181: 夏士华 | G181: 通州区十总镇沧南居16组264.76亩，季庄村1组19.51亩 | Q181: 1 | R181: 284.27 | S181: 27.30 | T181: 7760.57 | U181: 4.10 | V181: 1164.09 | W181: 6596.48 | X181: 2025-06-29 | Y181: 5381.94 | Z181: 张伟 | AA181: 86049762
A182: 180 | B182: 十总镇 | E182: P4AD20253206N000001682 | F182: 张志晶 | G182: 通州区十总镇张沙村2等组231.22亩，骑北村6等组62亩 | Q182: 1 | R182: 293.22 | S182: 27.30 | T182: 8004.91 | U182: 4.10 | V182: 1200.74 | W182: 6804.17 | X182: 2025-06-22 | Y182: 1377.80 | Z182: 张伟 | AA182: 76719707
A183: 181 | B183: 十总镇 | E183: P4AD20253206N000001532 | F183: 蒋维维 | G183: 通州区十总镇上雁村21组等 | Q183: 1 | R183: 600.00 | S183: 27.30 | T183: 16380.00 | U183: 4.10 | V183: 2457.00 | W183: 13923.00 | X183: 2025-06-26 | Y183: 2457.00 | Z183: 蒋维维 | AA183: 64444260
A184: 182 | B184: 十总镇 | E184: P4AD20253206N000000759 | F184: 孙汉清 | G184: 通州区十总镇上雁村42组 | Q184: 1 | R184: 79.37 | S184: 27.30 | T184: 2166.80 | U184: 4.10 | V184: 325.02 | W184: 1841.78 | X184: 2025-07-17 | Y184: 325.02 | Z184: 张伟 | AA184: 86419355
A185: 183 | B185: 十总镇 | E185: P4AD20253206N000000763 | F185: 张晓南 | G185: 通州区十总镇迎阳村31组等343亩，十总居21等组128.88亩 | Q185: 1 | R185: 471.88 | S185: 27.30 | T185: 12882.32 | U185: 4.10 | V185: 1932.35 | W185: 10949.97 | X185: 2025-06-25 | Y185: 1932.35 | Z185: 蔡娟 | AA185: 10765256
A186: 184 | B186: 十总镇 | E186: P4AD20253206N000000758 | F186: 徐长林 | G186: 通州区十总镇五总居12、13组56.8亩，新雁村1组18亩 | Q186: 1 | R186: 74.80 | S186: 27.30 | T186: 2042.04 | U186: 4.10 | V186: 306.31 | W186: 1735.73 | X186: 2025-06-28 | Y186: 327.60 | Z186: 徐长林 | AA186: 55024000
A187: 185 | B187: 十总镇 | E187: P4AD20253206N000001681 | F187: 南通君助农机专业合作社 | G187: 通州区十总镇五总居19-21组 | Q187: 1 | R187: 171.00 | S187: 27.30 | T187: 4668.30 | U187: 4.10 | V187: 700.25 | W187: 3968.05 | X187: 2025-06-24 | Y187: 700.25 | Z187: 葛新 | AA187: 67814249
A188: 186 | B188: 十总镇 | E188: P4AD20253206N000001680 | F188: 通州区骑岸镇顺鑫家庭农场 | G188: 通州区十总镇渡海亭村20等组128.48亩，五总居21、22组445亩 | Q188: 1 | R188: 573.48 | S188: 27.30 | T188: 15656.00 | U188: 4.10 | V188: 2348.40 | W188: 13307.60 | X188: 2025-06-24 | Y188: 2436.53 | Z188: 葛新 | AA188: 28790720
A189: 187 | B189: 十总镇 | E189: P4AD20253206N000001421 | F189: 葛新 | G189: 通州区十总镇育民村2等组 | Q189: 1 | R189: 347.92 | S189: 27.30 | T189: 9498.22 | U189: 4.10 | V189: 1424.73 | W189: 8073.49 | X189: 2025-06-24 | Y189: 1424.73 | Z189: 葛新 | AA189: 7893246
A190: 188 | B190: 十总镇 | E190: P4AD20253206N000003552 | F190: 王南山 | G190: 通州区十总镇五总居58组 | Q190: 1 | R190: 63.00 | S190: 27.30 | T190: 1719.90 | U190: 4.10 | V190: 257.99 | W190: 1461.91 | X190: 2025-06-28 | Y190: 257.96 | Z190: 王南山 | AA190: 55023000
A191: 189 | B191: 十总镇 | E191: P4AD20253206N000000757 | F191: 戴明勋 | G191: 通州区十总镇五总居54、59组 | Q191: 1 | R191: 83.00 | S191: 27.30 | T191: 2265.90 | U191: 4.10 | V191: 339.89 | W191: 1926.01 | X191: 2025-07-16 | Y191: 339.89 | Z191: 张伟 | AA191: 46788350
A192: 190 | B192: 十总镇 | E192: P4AD20253206N000000761 | F192: 张自虎 | G192: 通州区十总镇新雁村1组等 | Q192: 1 | R192: 285.00 | S192: 27.30 | T192: 7780.50 | U192: 4.10 | V192: 1167.08 | W192: 6613.42 | X192: 2025-06-26 | Y192: 1167.08 | Z192: 张自虎 | AA192: 44309734
A193: 191 | B193: 十总镇 | E193: P4AD20253206N000000762 | F193: 吴建 | G193: 通州区十总镇新雁村37组 | Q193: 1 | R193: 767.00 | S193: 27.30 | T193: 20939.10 | U193: 4.10 | V193: 3140.87 | W193: 17798.23 | X193: 2025-06-24 | Y193: 3140.86 | Z193: 钟亦明 | AA193: 45113720
A194: 192 | B194: 十总镇 | E194: P4AD20253206N000000766 | F194: 王成 | G194: 通州区十总镇于家坝村21-24组180亩，骑北村29等组270亩，张沙村18组77.89亩 | Q194: 1 | R194: 527.89 | S194: 27.30 | T194: 14411.40 | U194: 4.10 | V194: 2161.71 | W194: 12249.69 | X194: 2025-06-26 | Y194: 2161.71 | Z194: 王成 | AA194: 89868259
A195: 193 | B195: 十总镇 | E195: P4AD20253206N000000773 | F195: 张广成 | G195: 通州区十总镇于家坝村21-24组 | Q195: 1 | R195: 317.00 | S195: 27.30 | T195: 8654.10 | U195: 4.10 | V195: 1298.12 | W195: 7355.98 | X195: 2025-06-26 | Y195: 1298.12 | Z195: 王成 | AA195: 61899262
A196: 194 | B196: 十总镇 | E196: P4AD20253206N000003548 | F196: 洪金保 | G196: 通州区十总镇张沙村17等组 | Q196: 1 | R196: 570.00 | S196: 27.30 | T196: 15561.00 | U196: 4.10 | V196: 2334.15 | W196: =T196-V196 -> 13226.85 | X196: 2025-06-27 | Y196: 2334.15 | Z196: 洪金保 | AA196: 13057267
A197: 195 | B197: 十总镇 | E197: P4AD20253206N000001422 | F197: 张奇慧 | G197: 通州区十总镇张沙村12等组 | Q197: 1 | R197: 685.00 | S197: 27.30 | T197: 18700.50 | U197: 4.10 | V197: 2805.08 | W197: 15895.42 | X197: 2025-06-26 | Y197: 43498.78 | Z197: 张奇慧 | AA197: 86202258
A198: 196 | B198: 十总镇 | E198: P4AD20253206N000001424 | F198: 葛锦明 | G198: 通州区十总镇张沙村6等组 | Q198: 1 | R198: 735.55 | S198: 27.30 | T198: 20080.52 | U198: 4.10 | V198: 3012.08 | W198: 17068.44 | X198: 2025-06-18 | Y198: 3012.08 | Z198: 葛锦明 | AA198: 881220
A199: 197 | B199: 十总镇 | E199: P4AD20253206N000001425 | F199: 张烈骏 | G199: 通州区十总镇志新村23、26组 | Q199: 1 | R199: 121.20 | S199: 27.30 | T199: 3308.76 | U199: 4.10 | V199: 496.31 | W199: 2812.45 | X199: 2025/06/09 2025/06/16 | Y199: 321.1 293.15 | Z199: 张烈骏 | AA199: 68056482/62232950
A200: 198 | B200: 十总镇 | E200: P4AD20253206N000001515 | F200: 钟亦明 | G200: 通州区十总镇志新村34组等 | Q200: 1 | R200: 520.00 | S200: 27.30 | T200: 14196.00 | U200: 4.10 | V200: 2129.40 | W200: 12066.60 | X200: 2025-05-13 | Y200: 2129.40 | Z200: 钟亦明 | AA200: 84238731
... 410 more rows

Sheet 玉米
A1: 种植业保险明细表（险种：玉米完全成本）
A2: 序号 | B2: 乡镇 | C2: 险种代码 | D2: 投保组织者 | E2: 保单号 | F2: 被保险人或投保人 | G2: 标的地址 | H2: 被保险人身份证号 | I2: 联系电话 | J2: 导入清单号 | K2: 投保单号 | L2: 保单号 | M2: 保单流水号 | N2: 保险金额（元） | O2: 保期启 | P2: 保期止 | Q2: 承保户次 | R2: 承保数量（亩） | S2: 标准保费 | T2: 总保费（元） | U2: 自缴标准 | V2: 农户自缴保费（元） | W2: 各级财政补贴（元） | X2: 汇款日期 | Y2: 汇款金额 | Z2: 汇款人 | AA2: 交易流水号（网银回单） | AB2: 备注
A3: 1 | B3: 金沙街道 | E3: PP2L20253206N000000001 | F3: 卢军华等29户 | G3: 通州区金沙街道金北村10组等 | Q3: 29 | R3: 42.10 | S3: 30.00 | T3: 1263.00 | U3: 1.50 | V3: 63.15 | W3: =T3-V3 -> 1199.85 | X3: 2025-05-27 | Y3: 63.15 | Z3: 张钡 | AA3: 10066784
A4: 2 | B4: 西亭镇 | E4: PP2L20253206N000000133 | F4: 徐法广等7户 | G4: 通州区西亭镇八总桥村47组等 | Q4: 7 | R4: 7.50 | S4: 30.00 | T4: 225.00 | U4: 1.50 | V4: 11.25 | W4: =T4-V4 -> 213.75 | X4: 2025-05-27 | Y4: 11.25 | Z4: 顾焱 | AA4: 65262827
A5: 3 | B5: 西亭镇 | E5: PP2L20253206N000000134 | F5: 季学成 | G5: 通州区西亭镇草庙村十组 | Q5: 1 | R5: 2.00 | S5: 30.00 | T5: 60.00 | U5: 1.50 | V5: 3.00 | W5: 57.00 | X5: 2025-06-23 | Y5: 637.10 | Z5: 于丹丹 | AA5: 17201715
A6: 4 | B6: 西亭镇 | E6: PP2L20253206N000000422 | F6: 姜春华等38户 | G6: 通州区西亭镇华芦村1组等 | Q6: 38 | R6: 36.00 | S6: 30.00 | T6: 1080.00 | U6: 1.50 | V6: 54.00 | W6: 1026.00 | X6: 2025-05-22 | Y6: 54.00 | Z6: 朱玲珊 | AA6: 53177789
A7: 5 | B7: 西亭镇 | E7: PP2L20253206N000000421 | F7: 陶汉明等2户 | G7: 通州区西亭镇李庄村十二组等 | Q7: 2 | R7: 1.50 | S7: 30.00 | T7: 45.00 | U7: 1.50 | V7: 2.25 | W7: 42.75 | X7: 2025-05-19 | Y7: 2.25 | Z7: 张璐 | AA7: 82161393
A8: 6 | B8: 西亭镇 | E8: PP2L20253206N000000420 | F8: 杜可良等3户 | G8: 通州区西亭镇龙坝村9组等 | Q8: 3 | R8: 3.00 | S8: 30.00 | T8: 90.00 | U8: 1.50 | V8: 4.50 | W8: 85.50 | X8: 2025-05-23 | Y8: 4.50 | Z8: 范欢 | AA8: 37283800
A9: 7 | B9: 西亭镇 | E9: PP2L20253206N000000419 | F9: 祁德荣等67户 | G9: 通州区西亭镇纱场居三组等 | Q9: 67 | R9: 63.00 | S9: 30.00 | T9: 1890.00 | U9: 1.50 | V9: 94.50 | W9: 1795.50 | X9: 2025/05/20 2025/05/28 2025/05/28 | Y9: 92.25 0.75 1.5 | Z9: 易建梅 | AA9: 61818776/17315829/10223828
A10: 8 | B10: 西亭镇 | E10: PP2L20253206N000000418 | F10: 李锦成等3户 | G10: 通州区西亭镇亭东村一组等 | Q10: 3 | R10: 2.35 | S10: 30.00 | T10: 70.50 | U10: 1.50 | V10: 3.53 | W10: 66.97 | X10: 2025-05-23 | Y10: 3.60 | Z10: 陈建平 | AA10: 35094801
A11: 9 | B11: 西亭镇 | E11: PP2L20253206N000000135 | F11: 徐彬等42户 | G11: 通州区西亭镇同乐村二十九组等 | Q11: 42 | R11: 38.60 | S11: 30.00 | T11: 1158.00 | U11: 1.50 | V11: 57.90 | W11: 1100.10 | X11: 2025-05-20 | Y11: 57.90 | Z11: 邱晓灵 | AA11: 81072778
A12: 10 | B12: 西亭镇 | E12: PP2L20253206N000000137 | F12: 成夕林 | G12: 通州区西亭镇西亭社区二十一组 | Q12: 1 | R12: 0.70 | S12: 30.00 | T12: 21.00 | U12: 1.50 | V12: 1.05 | W12: 19.95 | X12: 2025-06-27 | Y12: 717.20 | Z12: 宋圆圆 | AA12: 63196742
A13: 11 | B13: 西亭镇 | E13: PP2L20253206N000000136 | F13: 周水琴 | G13: 通州区西亭镇同乐村20组 | Q13: 1 | R13: 1.00 | S13: 30.00 | T13: 30.00 | U13: 1.50 | V13: 1.50 | W13: 28.50 | X13: 2025-05-26 | Y13: 1.50 | Z13: 邱晓灵 | AA13: 97658425
A14: 12 | B14: 西亭镇 | E14: PP2L20253206N000000336 | F14: 陆中华 | G14: 通州区西亭镇华芦村15组等 | Q14: 1 | R14: 83.65 | S14: 30.00 | T14: 2509.50 | U14: 1.50 | V14: 125.48 | W14: 2384.02 | X14: 2025-06-18 | Y14: 912.42 | Z14: 陆中华 | AA14: 18857216
A15: 13 | B15: 西亭镇 | E15: PP2L20253206N000000549 | F15: 邱建华 | G15: 通州区西亭镇八总桥村1、14、15组 | Q15: 1 | R15: 46.80 | S15: 30.00 | T15: 1404.00 | U15: 1.50 | V15: 70.20 | W15: 1333.80 | X15: 2025-07-30 | Y15: 307.80 | Z15: 邱冬梅 | AA15: 47333409
A16: 14 | B16: 西亭镇 | E16: PP2L20253206N000000585 | F16: 姜春锋 | G16: 通州区西亭镇龙坝村7组等 | Q16: 1 | R16: 24.46 | S16: 30.00 | T16: 733.80 | U16: 1.50 | V16: 36.69 | W16: 697.11 | X16: 2025-08-23 | Y16: 160.83 | Z16: 姜春锋 | AA16: 5097498
A17: 15 | B17: 二甲镇 | E17: PP2L20253206N000000003 | F17: 施和标等2户 | G17: 通州区二甲镇六甲镇村38组等 | Q17: 2 | R17: 4.60 | S17: 30.00 | T17: 138.00 | U17: 1.50 | V17: 6.90 | W17: 131.10 | X17: 2025-05-22 | Y17: 2203.09 | Z17: 施爱华 | AA17: 28776788
A18: 16 | B18: 二甲镇 | E18: PP2L20253206N000000002 | F18: 胡可能 | G18: 通州区二甲镇三甲居32组 | Q18: 1 | R18: 2.00 | S18: 30.00 | T18: 60.00 | U18: 1.50 | V18: 3.00 | W18: 57.00 | X18: 2025-05-30 | Y18: 73.00 | Z18: 毛来萍 | AA18: 79514443
A19: 17 | B19: 二甲镇 | E19: PP2L20253206N000000004 | F19: 季昌林 | G19: 通州区二甲镇袁南居15组等50亩，六甲镇村5组50亩 | Q19: 1 | R19: 100.00 | S19: 30.00 | T19: 3000.00 | U19: 1.50 | V19: 150.00 | W19: 2850.00 | X19: 2025/06/03 2025/06/26 | Y19: 110 605 | Z19: 刘静/尹鹏鹏 | AA19: 17104457
A20: 18 | B20: 二甲镇 | E20: PP2L20253206N000000544 | F20: 赵庆全 | G20: 通州区二甲镇定兴桥村35组等57.92亩，六甲镇村19组7.03亩 | Q20: 1 | R20: 64.95 | S20: 30.00 | T20: 1948.50 | U20: 1.50 | V20: 97.43 | W20: 1851.07 | X20: 2025-06-25 | Y20: 799.50 | Z20: 赵庆全 | AA20: 4070255
A21: 19 | B21: 二甲镇 | E21: PP2L20253206N000000601 | F21: 王本好 | G21: 通州区二甲镇袁南居5组 | Q21: 1 | R21: 30.89 | S21: 30.00 | T21: 926.70 | U21: 1.50 | V21: 46.34 | W21: 880.36 | X21: 2025-06-21 | Y21: 280.00 | Z21: 王本好 | AA21: 46388236
A22: 20 | B22: 二甲镇 | E22: PP2L20253206N000000591 | F22: 季昌林 | G22: 通州区二甲镇袁南居15组等 | Q22: 1 | R22: 30.38 | S22: 30.00 | T22: 911.40 | U22: 1.50 | V22: 45.57 | W22: 865.83 | X22: 2025-06-26 | Y22: 605.00 | Z22: 尹鹏鹏 | AA22: 57343734
A23: 21 | B23: 二甲镇 | E23: PP2L20253206N000000542 | F23: 武海林 | G23: 通州区二甲镇袁南居12组等 | Q23: 1 | R23: 54.00 | S23: 30.00 | T23: 1620.00 | U23: 1.50 | V23: 81.00 | W23: 1539.00 | X23: 2024.12.19 | Y23: 3795.00 | Z23: 武海林 | AA23: 92664787
A24: 22 | B24: 二甲镇 | E24: PP2L20253206N000000590 | F24: 徐以梅 | G24: 通州区二甲镇袁南居2组 | Q24: 1 | R24: 14.49 | S24: 30.00 | T24: 434.70 | U24: 1.50 | V24: 21.74 | W24: 412.96 | X24: 2025-06-26 | Y24: 259.00 | Z24: 杨金芝 | AA24: 45483261
A25: 23 | B25: 二甲镇 | E25: PP2L20253206N000000589 | F25: 吴棉江 | G25: 通州区二甲镇六甲镇村35、36组 | Q25: 1 | R25: 35.41 | S25: 30.00 | T25: 1062.30 | U25: 1.50 | V25: 53.12 | W25: 1009.18 | X25: 2025-06-26 | Y25: 318.20 | Z25: 徐柳韵 | AA25: 37181261
A26: 24 | B26: 二甲镇 | E26: PP2L20253206N000000541 | F26: 袁春玉 | G26: 通州区二甲镇通运桥村33组15.75亩，六甲镇村19组9.33亩 | Q26: 1 | R26: 25.08 | S26: 30.00 | T26: 752.40 | U26: 1.50 | V26: 37.62 | W26: 714.78 | X26: 2025-06-22 | Y26: 303.40 | Z26: 徐华建 | AA26: 18007707
A27: 25 | B27: 二甲镇 | E27: PP2L20253206N000000600 | F27: 张春香 | G27: 通州区二甲镇六甲镇村16组等，余西居21组等 | Q27: 1 | R27: 99.80 | S27: 30.00 | T27: 2994.00 | U27: 1.50 | V27: 149.70 | W27: 2844.30 | X27: 2025-06-27 | Y27: 782.70 | Z27: 徐华建 | AA27: 62332741
A28: 26 | B28: 二甲镇 | E28: PP2L20253206N000000547 | F28: 徐华建 | G28: 通州区二甲镇通运桥村12组等31.5亩，余西居35组等16.2亩 | Q28: 1 | R28: 47.70 | S28: 30.00 | T28: 1431.00 | U28: 1.50 | V28: 71.55 | W28: 1359.45 | X28: 2025-06-16 | Y28: 403.60 | Z28: 徐华建 | AA28: 8456951
A29: 27 | B29: 二甲镇 | E29: PP2L20253206N000000545 | F29: 陈兴月 | G29: 通州区二甲镇通运桥村8组等 | Q29: 1 | R29: 34.42 | S29: 30.00 | T29: 1032.60 | U29: 1.50 | V29: 51.63 | W29: 980.97 | X29: 2025/06/22 2025/07/23 | Y29: 425.5 74 | Z29: 徐华建 | AA29: 39011706/13248380
A30: 28 | B30: 二甲镇 | E30: PP2L20253206N000000543 | F30: 陈凤英 | G30: 通州区二甲镇通运桥村8组等 | Q30: 1 | R30: 17.82 | S30: 30.00 | T30: 534.60 | U30: 1.50 | V30: 26.73 | W30: 507.87 | X30: 2025-06-27 | Y30: 148.00 | Z30: 李维杰 | AA30: 70126740
A31: 29 | B31: 二甲镇 | E31: PP2L20253206N000000408 | F31: 张仕林 | G31: 通州区二甲镇北潭村12组24组 | Q31: 1 | R31: 50.00 | S31: 30.00 | T31: 1500.00 | U31: 1.50 | V31: 75.00 | W31: 1425.00 | X31: 2025-06-27 | Y31: 1775.00 | Z31: 张仕林 | AA31: 34580744
A32: 30 | B32: 二甲镇 | E32: PP2L20253206N000000409 | F32: 王华新 | G32: 通州区二甲镇北潭村18组110亩，坨墩村54组等40亩 | Q32: 1 | R32: 150.00 | S32: 30.00 | T32: 4500.00 | U32: 1.50 | V32: 225.00 | W32: 4275.00 | X32: 2025-06-26 | Y32: 5325.00 | Z32: 王华新 | AA32: 34731736
A33: 31 | B33: 东社镇 | E33: PP2L20253206N000000417 | F33: 季华等13户 | G33: 通州区东社镇白龙庙居7组等 | Q33: 13 | R33: 22.66 | S33: 30.00 | T33: 679.80 | U33: 1.50 | V33: 33.99 | W33: 645.81 | X33: 2025-06-26 | Y33: 1481.80 | Z33: 南通市通州区东社镇财政工作办公室收付中心 | AA33: 13127259
A34: 32 | B34: 东社镇 | E34: PP2L20253206N000000125 | F34: 王怀陆 | G34: 通州区东社镇东平村17组 | Q34: 1 | R34: 14.00 | S34: 30.00 | T34: 420.00 | U34: 1.50 | V34: 21.00 | W34: 399.00 | X34: 2025-06-26 | Y34: 1481.80 | Z34: 南通市通州区东社镇财政工作办公室收付中心 | AA34: 13127259
A35: 33 | B35: 东社镇 | E35: PP2L20253206N000000416 | F35: 曹海旺等9户 | G35: 通州区东社镇福利村八组等 | Q35: 9 | R35: 18.66 | S35: 30.00 | T35: 559.80 | U35: 1.50 | V35: 27.99 | W35: 531.81 | X35: 2025-06-26 | Y35: 1481.80 | Z35: 南通市通州区东社镇财政工作办公室收付中心 | AA35: 13127259
A36: 34 | B36: 东社镇 | E36: PP2L20253206N000000414 | F36: 曹汝明等11户 | G36: 通州区东社镇河东村5组等 | Q36: 11 | R36: 15.83 | S36: 30.00 | T36: 474.90 | U36: 1.50 | V36: 23.75 | W36: 451.15 | X36: 2025-06-26 | Y36: 1481.80 | Z36: 南通市通州区东社镇财政工作办公室收付中心 | AA36: 13127259
A37: 35 | B37: 东社镇 | E37: PP2L20253206N000000129 | F37: 顾其等13户 | G37: 通州区东社镇滥港桥村三十二组等 | Q37: 13 | R37: 15.00 | S37: 30.00 | T37: 450.00 | U37: 1.50 | V37: 22.50 | W37: 427.50 | X37: 2025-06-26 | Y37: 1481.80 | Z37: 南通市通州区东社镇财政工作办公室收付中心 | AA37: 13127259
A38: 36 | B38: 东社镇 | E38: PP2L20253206N000000413 | F38: 曹祝进等13户 | G38: 通州区东社镇平和村四组等 | Q38: 13 | R38: 20.10 | S38: 30.00 | T38: 603.00 | U38: 1.50 | V38: 30.15 | W38: 572.85 | X38: 2025-06-26 | Y38: 1481.80 | Z38: 南通市通州区东社镇财政工作办公室收付中心 | AA38: 13127259
A39: 37 | B39: 东社镇 | E39: PP2L20253206N000000412 | F39: 刘学清等16户 | G39: 通州区东社镇庆丰居11组等 | Q39: 16 | R39: 17.16 | S39: 30.00 | T39: 514.80 | U39: 1.50 | V39: 25.74 | W39: 489.06 | X39: 2025-06-26 | Y39: 1481.80 | Z39: 南通市通州区东社镇财政工作办公室收付中心 | AA39: 13127259
A40: 38 | B40: 东社镇 | E40: PP2L20253206N000000411 | F40: 马忠等2户 | G40: 通州区东社镇五甲苴居十四组 | Q40: 2 | R40: 5.30 | S40: 30.00 | T40: 159.00 | U40: 1.50 | V40: 7.95 | W40: 151.05 | X40: 2025-06-26 | Y40: 1481.80 | Z40: 南通市通州区东社镇财政工作办公室收付中心 | AA40: 13127259
A41: 39 | B41: 东社镇 | E41: PP2L20253206N000000130 | F41: 张洪美 | G41: 通州区东社镇五马路村十组 | Q41: 1 | R41: 1.50 | S41: 30.00 | T41: 45.00 | U41: 1.50 | V41: 2.25 | W41: 42.75 | X41: 2025-06-26 | Y41: 1481.80 | Z41: 南通市通州区东社镇财政工作办公室收付中心 | AA41: 13127259
A42: 40 | B42: 东社镇 | E42: PP2L20253206N000000415 | F42: 张洪金等18户 | G42: 通州区东社镇香台村一组等 | Q42: 18 | R42: 25.90 | S42: 30.00 | T42: 777.00 | U42: 1.50 | V42: 38.85 | W42: 738.15 | X42: 2025-06-26 | Y42: 1481.80 | Z42: 南通市通州区东社镇财政工作办公室收付中心 | AA42: 13127259
A43: 41 | B43: 东社镇 | E43: PP2L20253206N000000132 | F43: 张翟林等19户 | G43: 通州区东社镇兴隆灶村二组等 | Q43: 19 | R43: 20.69 | S43: 30.00 | T43: 620.70 | U43: 1.50 | V43: 31.04 | W43: 589.66 | X43: 2025-06-26 | Y43: 1481.80 | Z43: 南通市通州区东社镇财政工作办公室收付中心 | AA43: 13127259
A44: 42 | B44: 东社镇 | E44: PP2L20253206N000000410 | F44: 杨国清等20户 | G44: 通州区东社镇中和村14组等 | Q44: 20 | R44: 28.00 | S44: 30.00 | T44: 840.00 | U44: 1.50 | V44: 42.00 | W44: 798.00 | X44: 2025-06-26 | Y44: 1481.80 | Z44: 南通市通州区东社镇财政工作办公室收付中心 | AA44: 13127259
A45: 43 | B45: 东社镇 | E45: PP2L20253206N000000405 | F45: 王华新 | G45: 通州区东社镇新桥村9组等 | Q45: 1 | R45: 110.00 | S45: 30.00 | T45: 3300.00 | U45: 1.50 | V45: 165.00 | W45: 3135.00 | X45: 2025-06-26 | Y45: 3905.00 | Z45: 王华新 | AA45: 98934258
A46: 44 | B46: 东社镇 | E46: PP2L20253206N000000586 | F46: 张立峰 | G46: 通州区东社镇严北村15组等 | Q46: 1 | R46: 92.70 | S46: 30.00 | T46: 2781.00 | U46: 1.50 | V46: 139.05 | W46: 2641.95 | X46: 2025-08-25 | Y46: 762.20 | Z46: 张立峰 | AA46: 55134207
A47: 45 | B47: 东社镇 | E47: PP2L20253206N000000588 | F47: 邱永进 | G47: 通州区东社镇杨港居2组等、严北村17组等 | Q47: 1 | R47: 27.00 | S47: 30.00 | T47: 810.00 | U47: 1.50 | V47: 40.50 | W47: 769.50 | X47: 2025-08-25 | Y47: 387.00 | Z47: 邱永进 | AA47: 46862807
A48: 46 | B48: 十总镇 | E48: PP2L20253206N000000430 | F48: 印国华等2户 | G48: 通州区十总镇岸西村三十五组 | Q48: 2 | R48: 1.00 | S48: 30.00 | T48: 30.00 | U48: 1.50 | V48: 1.50 | W48: 28.50 | X48: 2025-06-09 | Y48: 76.89 | Z48: 季亮 | AA48: 42409478
A49: 47 | B49: 十总镇 | E49: PP2L20253206N000000429 | F49: 陶寄钱等25户 | G49: 通州区十总镇柏树墩村一组等 | Q49: 25 | R49: 28.50 | S49: 30.00 | T49: 855.00 | U49: 1.50 | V49: 42.75 | W49: 812.25 | X49: 2025-06-12 | Y49: 42.75 | Z49: 翟允允 | AA49: 97317494
A50: 48 | B50: 十总镇 | E50: PP2L20253206N000000428 | F50: 沙水霞等4户 | G50: 通州区十总镇骑岸居三组等 | Q50: 4 | R50: 4.10 | S50: 30.00 | T50: 123.00 | U50: 1.50 | V50: 6.15 | W50: 116.85 | X50: 2025-06-10 | Y50: 169.19 | Z50: 刘莉 | AA50: 38047604
A51: 49 | B51: 十总镇 | E51: PP2L20253206N000000322 | F51: 顾建 | G51: 通州区十总镇十总居26组 | Q51: 1 | R51: 1.00 | S51: 30.00 | T51: 30.00 | U51: 1.50 | V51: 1.50 | W51: =T51-V51 -> 28.50 | X51: 2025-06-10 | Y51: 1.50 | Z51: 陈佳雯 | AA51: 54697484
A52: 50 | B52: 十总镇 | E52: PP2L20253206N000000427 | F52: 冯志达等4户 | G52: 通州区十总镇双墩村八组等 | Q52: 4 | R52: 4.50 | S52: 30.00 | T52: 135.00 | U52: 1.50 | V52: 6.75 | W52: 128.25 | X52: 2025-05-21 | Y52: 432.87 | Z52: 张林莉 | AA52: 81463786
A53: 51 | B53: 十总镇 | E53: PP2L20253206N000000426 | F53: 张坚等10户 | G53: 通州区十总镇新雁村2组等 | Q53: 10 | R53: 12.60 | S53: 30.00 | T53: 378.00 | U53: 1.50 | V53: 18.90 | W53: 359.10 | X53: 2025-06-13 | Y53: 1047.88 | Z53: 季亚楠 | AA53: 47504498
A54: 52 | B54: 十总镇 | E54: PP2L20253206N000000562 | F54: 王国祥 | G54: 通州区十总镇于家坝村11、12组 | Q54: 1 | R54: 210.00 | S54: 30.00 | T54: 6300.00 | U54: 1.50 | V54: 315.00 | W54: 5985.00 | X54: 2025-07-30 | Y54: 320.00 | Z54: 王国祥 | AA54: 15841954
A55: 53 | B55: 石港镇 | E55: PP2L20253206N000000550 | F55: 朱永南 | G55: 通州区石港镇花市街村四十五组等 | Q55: 1 | R55: 19.76 | S55: 30.00 | T55: 592.80 | U55: 1.50 | V55: 29.64 | W55: 563.16 | X55: 2025-06-23 | Y55: 166781.72 | Z55: 南通市通州区石港镇财政集中收付中心 | AA55: 23133671
A56: 54 | B56: 石港镇 | E56: PP2L20253206N000000321 | F56: 高井新 | G56: 通州区石港镇乐观村三十二组 | Q56: 1 | R56: 5.00 | S56: 30.00 | T56: 150.00 | U56: 1.50 | V56: 7.50 | W56: 142.50 | X56: 2025-06-23 | Y56: 166781.72 | Z56: 南通市通州区石港镇财政集中收付中心 | AA56: 23133671
A57: 55 | B57: 刘桥镇 | E57: PP2L20253206N000000539 | F57: 房德林 | G57: 通州区刘桥镇新联居24、25组56.26亩，长岸村16-18组47.04亩 | Q57: 1 | R57: 103.30 | S57: 30.00 | T57: 3099.00 | U57: 1.50 | V57: 154.95 | W57: 2944.05 | X57: 2025-07-09 | Y57: 549.30 | Z57: 房燕 | AA57: 41305320
A58: 56 | B58: 刘桥镇 | E58: PP2L20253206N000000546 | F58: 通州区刘桥镇八里渡家庭农场 | G58: 通州区刘桥镇尹家园村19组等 | Q58: 1 | R58: 41.77 | S58: 30.00 | T58: 1253.10 | U58: 1.50 | V58: 62.66 | W58: 1190.44 | X58: 2025-07-18 | Y58: 343.44 | Z58: 徐标 | AA58: 17546769
A59: 57 | B59: 刘桥镇 | E59: PP2L20253206N000000563 | F59: 成正林 | G59: 通州区刘桥镇新中村26组等 | Q59: 1 | R59: 22.50 | S59: 30.00 | T59: 675.00 | U59: 1.50 | V59: 33.75 | W59: 641.25 | X59: 2025-08-13 | Y59: 322.50 | Z59: 袁亚楠 | AA59: 63156735
A60: 58 | B60: 平潮镇 | E60: PP2L20253206N000000047 | F60: 王步玉等18户 | G60: 通州区平潮镇九圩港村十三组等 | Q60: 18 | R60: 20.18 | S60: 30.00 | T60: 605.40 | U60: 1.50 | V60: 30.27 | W60: 575.13 | X60: 2025-06-09 | Y60: 254.55 | Z60: 张燕 | AA60: 93998478
A61: 59 | B61: 平潮镇 | E61: PP2L20253206N000000048 | F61: 吴继明等6户 | G61: 通州区平潮镇三官殿村四组等 | Q61: 6 | R61: 7.93 | S61: 30.00 | T61: 237.90 | U61: 1.50 | V61: 11.90 | W61: 226.00 | X61: 2025-05-28 | Y61: 156.95 | Z61: 周小丽 | AA61: 61556826
A62: 60 | B62: 平潮镇 | E62: PP2L20253206N000000030 | F62: 朱刘建 | G62: 通州区平潮镇新生村二十二组 | Q62: 1 | R62: 0.40 | S62: 30.00 | T62: 12.00 | U62: 1.50 | V62: 0.60 | W62: 11.40 | X62: 2025-05-28 | Y62: 654.69 | Z62: 姚栋峰 | AA62: 53275831
A63: 61 | B63: 兴仁镇 | E63: PP2L20253206N000000425 | F63: 胡晓兵35等户 | G63: 通州区兴仁镇丁涧店村二十二组等 | Q63: 35 | R63: 28.70 | S63: 30.00 | T63: 861.00 | U63: 1.50 | V63: 43.05 | W63: 817.95 | X63: 2025-06-16 | Y63: 43.05 | Z63: 凌宇杰 | AA63: 91529950
A64: 62 | B64: 兴仁镇 | E64: PP2L20253206N000000070 | F64: 金汉林 | G64: 通州区兴仁镇横港居9组 | Q64: 1 | R64: 2.00 | S64: 30.00 | T64: 60.00 | U64: 1.50 | V64: 3.00 | W64: 57.00 | X64: 2025-06-26 | Y64: 3.00 | Z64: 周艳梅 | AA64: 65326734
A65: 63 | B65: 兴仁镇 | E65: PP2L20253206N000000424 | F65: 葛德兵等8户 | G65: 通州区兴仁镇芦花港村8组等 | Q65: 8 | R65: 7.98 | S65: 30.00 | T65: 239.40 | U65: 1.50 | V65: 11.97 | W65: 227.43 | X65: 2025-06-26 | Y65: 11.97 | Z65: 朱晓俐 | AA65: 69727259
A66: 64 | B66: 兴仁镇 | E66: PP2L20253206N000000423 | F66: 沈锦华等13户 | G66: 通州区兴仁镇温桥村16组 | Q66: 13 | R66: 14.70 | S66: 30.00 | T66: 441.00 | U66: 1.50 | V66: 22.05 | W66: 418.95 | X66: 2025-06-17 | Y66: 22.05 | Z66: 严燕飞 | AA66: 20474961
A67: 65 | B67: 兴仁镇 | E67: PP2L20253206N000000071 | F67: 苏国义 | G67: 通州区兴仁镇兴仁村3组 | Q67: 1 | R67: 1.00 | S67: 30.00 | T67: 30.00 | U67: 1.50 | V67: 1.50 | W67: 28.50 | X67: 2025-06-26 | Y67: 1.50 | Z67: 杨扬 | AA67: 36254735
B68: 合计 | Q68: =SUM(Q3:Q67) -> 488 | R68: =SUM(R3:R67) -> 2085.62 | T68: =SUM(T3:T67) -> 62568.60 | V68: =SUM(V3:V67) -> 3128.48 | W68: =SUM(W3:W67) -> 59440.12

Sheet 棉花
A1: 种植业保险明细表（险种：棉花）
A2: 序号 | B2: 乡镇 | C2: 险种代码 | D2: 投保组织者 | E2: 保单号 | F2: 被保险人或投保人 | G2: 标的地址 | H2: 被保险人身份证号 | I2: 联系电话 | J2: 导入清单号 | K2: 投保单号 | L2: 保单号 | M2: 保单流水号 | N2: 保险金额（元） | O2: 保期启 | P2: 保期止 | Q2: 承保户次 | R2: 承保数量（亩） | S2: 标准保费 | T2: 总保费（元） | U2: 自缴标准 | V2: 农户自缴保费（元） | W2: 各级财政补贴（元） | X2: 汇款日期 | Y2: 汇款金额 | Z2: 汇款人 | AA2: 交易流水号（网银回单） | AB2: 备注
A3: 1 | B3: 东社镇 | E3: PHYN20253206N000000001 | F3: 张学明 | G3: 通州区东社镇白龙庙居25组 | Q3: 1 | R3: 1.00 | S3: 22.00 | T3: =S3*R3 -> 22.00 | U3: 6.60 | V3: =R3*U3 -> 6.60 | W3: =T3-V3 -> 15.40 | X3: 2025/06/26 | Y3: 1481.80 | Z3: 南通市通州区东社镇财政工作办公室收付中心 | AA3: 13127259
A4: 2 | B4: 东社镇 | E4: PHYN20253206N000000002 | F4: 张立其等3户 | G4: 通州区东社镇中和村3组等 | Q4: 3 | R4: 2.50 | S4: 22.00 | T4: =S4*R4 -> 55.00 | U4: 6.60 | V4: =R4*U4 -> 16.50 | W4: =T4-V4 -> 38.50 | X4: 2025/06/26 | Y4: 1481.80 | Z4: 南通市通州区东社镇财政工作办公室收付中心 | AA4: 13127259
B5: 合计 | Q5: =SUM(Q3:Q4) -> 4 | R5: =SUM(R3:R4) -> 3.50 | T5: =SUM(T3:T4) -> 77.00 | V5: =SUM(V3:V4) -> 23.10 | W5: =SUM(W3:W4) -> 53.90

Sheet 大豆
A1: 种植业保险明细表（险种：大豆）
A2: 序号 | B2: 乡镇 | C2: 险种代码 | D2: 投保组织者 | E2: 保单号 | F2: 被保险人或投保人 | G2: 标的地址 | H2: 被保险人身份证号 | I2: 联系电话 | J2: 导入清单号 | K2: 投保单号 | L2: 保单号 | M2: 保单流水号 | N2: 保险金额（元） | O2: 保期启 | P2: 保期止 | Q2: 承保户次 | R2: 承保数量（亩） | S2: 标准保费 | T2: 总保费（元） | U2: 自缴标准 | V2: 农户自缴保费（元） | W2: 各级财政补贴（元） | X2: 汇款日期 | Y2: 汇款金额 | Z2: 汇款人 | AA2: 交易流水号（网银回单） | AB2: 备注
A3: 1 | B3: 金沙街道 | E3: P8UG20253206N000000001 | F3: 邱琴等87户 | G3: 通州区金沙街道金北村8组等 | Q3: 87 | R3: 83.24 | S3: 27.50 | T3: 2289.10 | U3: 5.50 | V3: 457.82 | W3: =T3-V3 -> 1831.28 | X3: 2025-05-27 | Y3: 457.82 | Z3: 张钡 | AA3: 10068784
A4: 2 | B4: 西亭镇 | E4: P8UG20253206N000000030 | F4: 王少华等38户 | G4: 通州区西亭镇八总桥村42组等 | Q4: 38 | R4: 49.50 | S4: 27.50 | T4: 1361.25 | U4: 5.50 | V4: 272.25 | W4: 1089.00 | X4: 2025-05-27 | Y4: 272.25 | Z4: 顾焱 | AA4: 94368427
A5: 3 | B5: 西亭镇 | E5: P8UG20253206N000000029 | F5: 于锦益等2户 | G5: 通州区西亭镇草庙村十二组 | Q5: 2 | R5: 1.30 | S5: 27.50 | T5: 35.75 | U5: 5.50 | V5: 7.15 | W5: 28.60 | X5: 2025-06-23 | Y5: 637.10 | Z5: 于丹丹 | AA5: 17201715
A6: 4 | B6: 西亭镇 | E6: P8UG20253206N000000024 | F6: 王建新等68户 | G6: 通州区西亭镇华芦村1组等 | Q6: 68 | R6: 72.70 | S6: 27.50 | T6: 1999.25 | U6: 5.50 | V6: 399.85 | W6: 1599.40 | X6: 2025-05-22 | Y6: 399.85 | Z6: 朱玲珊 | AA6: 35241791
A7: 5 | B7: 西亭镇 | E7: P8UG20253206N000000025 | F7: 黄金永等11户 | G7: 通州区西亭镇李庄村5组等 | Q7: 11 | R7: 11.60 | S7: 27.50 | T7: 319.00 | U7: 5.50 | V7: 63.80 | W7: 255.20 | X7: 2025-05-19 | Y7: 63.80 | Z7: 张璐 | AA7: 2163393
A8: 6 | B8: 西亭镇 | E8: P8UG20253206N000000026 | F8: 赵建兵 | G8: 通州区西亭镇龙坝村1组 | Q8: 1 | R8: 0.60 | S8: 27.50 | T8: 16.50 | U8: 5.50 | V8: 3.30 | W8: 13.20 | X8: 2025-05-23 | Y8: 3.00 | Z8: 范欢 | AA8: 61097799
A9: 7 | B9: 西亭镇 | E9: P8UG20253206N000000028 | F9: 祁德荣等184户 | G9: 通州区西亭镇纱场居三组等 | Q9: 184 | R9: 232.80 | S9: 27.50 | T9: 6402.00 | U9: 5.50 | V9: 1280.40 | W9: 5121.60 | X9: 2025/05/20 2025/05/28 2025/05/28 | Y9: 1256.75/ 8.25/15.4 | Z9: 易建梅 | AA9: 63792775/41306432/54242831
A10: 8 | B10: 西亭镇 | E10: P8UG20253206N000000027 | F10: 陈永才等12户 | G10: 通州区西亭镇亭东村一组等 | Q10: 12 | R10: 13.15 | S10: 27.50 | T10: 361.63 | U10: 5.50 | V10: 72.33 | W10: 289.30 | X10: 2025-05-23 | Y10: 72.33 | Z10: 陈建平 | AA10: 14247412
A11: 9 | B11: 西亭镇 | E11: P8UG20253206N000000031 | F11: 徐华等76户 | G11: 通州区西亭镇同乐村二十九组等 | Q11: 76 | R11: 76.20 | S11: 27.50 | T11: 2095.50 | U11: 5.50 | V11: 419.10 | W11: 1676.40 | X11: 2025-05-20 | Y11: 419.10 | Z11: 邱晓灵 | AA11: 73477778
A12: 10 | B12: 西亭镇 | E12: P8UG20253206N000000200 | F12: 祖先康等9户 | G12: 通州区西亭镇西禅寺村（亭南村）二十九组等 | Q12: 9 | R12: 17.90 | S12: 27.50 | T12: 492.25 | U12: 5.50 | V12: 98.45 | W12: 393.80 | X12: 2025-05-29 | Y12: 334.32 | Z12: 顾倩倩 | AA12: 5496835
A13: 11 | B13: 西亭镇 | E13: P8UG20253206N000000044 | F13: 姜国华等4户 | G13: 通州区西亭镇西亭社区三十组等 | Q13: 4 | R13: 4.30 | S13: 27.50 | T13: 118.25 | U13: 5.50 | V13: 23.65 | W13: 94.60 | X13: 2025-06-27 | Y13: 717.20 | Z13: 宋圆圆 | AA13: 63196742
A14: 12 | B14: 西亭镇 | E14: P8UG20253206N000000099 | F14: 陆中华 | G14: 通州区西亭镇华芦村15组等 | Q14: 1 | R14: 77.22 | S14: 27.50 | T14: 2123.55 | U14: 5.50 | V14: 424.71 | W14: 1698.84 | X14: 2025-06-18 | Y14: 912.42 | Z14: 陆中华 | AA14: 18857216
A15: 13 | B15: 西亭镇 | E15: P8UG20253206N000000226 | F15: 邱建华 | G15: 通州区西亭镇八总桥村1、14、15组 | Q15: 1 | R15: 43.20 | S15: 27.50 | T15: 1188.00 | U15: 5.50 | V15: 237.60 | W15: 950.40 | X15: 2025-07-30 | Y15: 307.80 | Z15: 邱冬梅 | AA15: 47333409
A16: 14 | B16: 西亭镇 | E16: P8UG20253206N000000248 | F16: 姜春锋 | G16: 通州区西亭镇龙坝村7组等 | Q16: 1 | R16: 22.57 | S16: 27.50 | T16: 620.68 | U16: 5.50 | V16: 124.14 | W16: 496.54 | X16: 2025-08-23 | Y16: 160.83 | Z16: 姜春锋 | AA16: 5097498
A17: 15 | B17: 二甲镇 | E17: P8UG20253206N000000268 | F17: 张记禹 | G17: 通州区二甲镇袁南居40组 | Q17: 1 | R17: 22.00 | S17: 27.50 | T17: 605.00 | U17: 5.50 | V17: 121.00 | W17: 484.00 | X17: 2025/05/29 2025/06/26 | Y17: 2956.53 141 | Z17: 刘静 | AA17: 59129441/33221262
A18: 16 | B18: 二甲镇 | E18: P8UG20253206N000000260 | F18: 李习明 | G18: 通州区二甲镇六甲镇村6组 | Q18: 1 | R18: 34.70 | S18: 27.50 | T18: 954.25 | U18: 5.50 | V18: 190.85 | W18: 763.40 | X18: 2025/05/22 2025/06/26 | Y18: 2203.09 62.35 | Z18: 施爱华 | AA18: 28776788/13554262
A19: 17 | B19: 二甲镇 | E19: P8UG20253206N000000246 | F19: 胡可能 | G19: 通州区二甲镇三甲居40、41组 | Q19: 1 | R19: 14.00 | S19: 27.50 | T19: 385.00 | U19: 5.50 | V19: 77.00 | W19: 308.00 | X19: 2025/05/30 2025/06/28 | Y19: 73 22.05 | Z19: 毛来萍/胡明 | AA19: 79514443/25088268
A20: 18 | B20: 二甲镇 | E20: P8UG20253206N000000215 | F20: 曹竹銮 | G20: 通州区二甲镇定兴桥村38组 | Q20: 1 | R20: 50.00 | S20: 27.50 | T20: 1375.00 | U20: 5.50 | V20: 275.00 | W20: 1100.00 | X20: 2025/06/03 2025/06/24 | Y20: 454.75/25 | Z20: 黄艳/曹竹銮 | AA20: 28594456/59484722
A21: 19 | B21: 二甲镇 | E21: P8UG20253206N000000216 | F21: 武海林 | G21: 通州区二甲镇袁南居12组等 | Q21: 1 | R21: 90.00 | S21: 27.50 | T21: 2475.00 | U21: 5.50 | V21: 495.00 | W21: 1980.00 | X21: 2025/05/29 2024.12.19 | Y21: 2956.53 6930 | Z21: 刘静/武海林 | AA21: 59129441/20710405
A22: 20 | B22: 二甲镇 | E22: P8UG20253206N000000210 | F22: 黄国付 | G22: 通州区二甲镇袁南居9组等 | Q22: 1 | R22: 140.00 | S22: 27.50 | T22: 3850.00 | U22: 5.50 | V22: 770.00 | W22: 3080.00 | X22: 2025/05/29 2025/06/26 | Y22: 2956.53 141 | Z22: 刘静 | AA22: 59129441/33221262
A23: 21 | B23: 二甲镇 | E23: P8UG20253206N000000211 | F23: 李小伟 | G23: 通州区二甲镇袁南居13组等 | Q23: 1 | R23: 120.00 | S23: 27.50 | T23: 3300.00 | U23: 5.50 | V23: 660.00 | W23: 2640.00 | X23: 2025/05/27 2025/06/26 | Y23: 600 141 | Z23: 李小伟 刘静 | AA23: 67099822/33221262
A24: 22 | B24: 二甲镇 | E24: P8UG20253206N000000212 | F24: 张传胜 | G24: 通州区二甲镇六甲镇村23组 | Q24: 1 | R24: 90.00 | S24: 27.50 | T24: 2475.00 | U24: 5.50 | V24: 495.00 | W24: 1980.00 | X24: 2025/05/22 2025/06/26 | Y24: 2203.09 62.35 | Z24: 施爱华 | AA24: 28776788/13554262
A25: 23 | B25: 二甲镇 | E25: P8UG20253206N000000213 | F25: 徐华建 | G25: 通州区二甲镇通运桥村12组等 | Q25: 1 | R25: 30.00 | S25: 27.50 | T25: 825.00 | U25: 5.50 | V25: 165.00 | W25: 660.00 | X25: 2025/5/31 2025/06/28 | Y25: 1289.7 22.05 | Z25: 胡凤珍/胡明 | AA25: 41020848/25088268
A26: 24 | B26: 二甲镇 | E26: P8UG20253206N000000267 | F26: 江顺高 | G26: 通州区二甲镇通运桥村37组等 | Q26: 1 | R26: 10.00 | S26: 27.50 | T26: 275.00 | U26: 5.50 | V26: 55.00 | W26: 220.00 | X26: 2025-05-31 | Y26: 1289.70 | Z26: 胡凤珍 | AA26: 41020848
A27: 25 | B27: 二甲镇 | E27: P8UG20253206N000000247 | F27: 赵庆全 | G27: 通州区二甲镇定兴桥村36组 | Q27: 1 | R27: 31.00 | S27: 27.50 | T27: 852.50 | U27: 5.50 | V27: 170.50 | W27: 682.00 | X27: 2025-06-25 | Y27: 799.50 | Z27: 赵庆全 | AA27: 4070255
A28: 26 | B28: 二甲镇 | E28: P8UG20253206N000000218 | F28: 赵庆全 | G28: 通州区二甲镇定兴桥村35组等70.79亩，六甲镇村19组8.6亩 | Q28: 1 | R28: 79.39 | S28: 27.50 | T28: 2183.23 | U28: 5.50 | V28: 436.65 | W28: 1746.58 | X28: 2025-06-25 | Y28: 799.50 | Z28: 赵庆全 | AA28: 4070255
A29: 27 | B29: 二甲镇 | E29: P8UG20253206N000000312 | F29: 王本好 | G29: 通州区二甲镇袁南居5组 | Q29: 1 | R29: 30.90 | S29: 27.50 | T29: 849.75 | U29: 5.50 | V29: 169.95 | W29: 679.80 | X29: 2025-06-21 | Y29: 280.00 | Z29: 王本好 | AA29: 46388236
A30: 28 | B30: 二甲镇 | E30: P8UG20253206N000000266 | F30: 季昌林 | G30: 通州区二甲镇袁南居15组等 | Q30: 1 | R30: 37.13 | S30: 27.50 | T30: 1021.08 | U30: 5.50 | V30: 204.22 | W30: 816.86 | X30: 2025-06-26 | Y30: 605.00 | Z30: 尹鹏鹏 | AA30: 57343734
A31: 29 | B31: 二甲镇 | E31: P8UG20253206N000000217 | F31: 武海林 | G31: 通州区二甲镇袁南居12组等 | Q31: 1 | R31: 66.00 | S31: 27.50 | T31: 1815.00 | U31: 5.50 | V31: 363.00 | W31: 1452.00 | X31: 2024.12.19 | Y31: 3795 6930 | Z31: 武海林 | AA31: 92664787/20710405
A32: 30 | B32: 二甲镇 | E32: P8UG20253206N000000265 | F32: 徐以梅 | G32: 通州区二甲镇袁南居2组 | Q32: 1 | R32: 17.70 | S32: 27.50 | T32: 486.75 | U32: 5.50 | V32: 97.35 | W32: 389.40 | X32: 2025-06-26 | Y32: 259.00 | Z32: 杨金芝 | AA32: 45483261
A33: 31 | B33: 二甲镇 | E33: P8UG20253206N000000264 | F33: 吴棉江 | G33: 通州区二甲镇六甲镇村35、36组 | Q33: 1 | R33: 43.28 | S33: 27.50 | T33: 1190.20 | U33: 5.50 | V33: 238.04 | W33: 952.16 | X33: 2025-06-26 | Y33: 318.20 | Z33: 徐柳韵 | AA33: 37181261
A34: 32 | B34: 二甲镇 | E34: P8UG20253206N000000214 | F34: 袁春玉 | G34: 通州区二甲镇通运桥村33组19.25亩，六甲镇村19组11.4亩 | Q34: 1 | R34: 30.65 | S34: 27.50 | T34: 842.88 | U34: 5.50 | V34: 168.58 | W34: 674.30 | X34: 2025-06-22 | Y34: 303.40 | Z34: 徐华建 | AA34: 18007707
A35: 33 | B35: 二甲镇 | E35: P8UG20253206N000000307 | F35: 张春香 | G35: 通州区二甲镇六甲镇村16组等，余西居21组等 | Q35: 1 | R35: 100.20 | S35: 27.50 | T35: 2755.50 | U35: 5.50 | V35: 551.10 | W35: 2204.40 | X35: 2025-06-27 | Y35: 782.70 | Z35: 徐华建 | AA35: 62332741
A36: 34 | B36: 二甲镇 | E36: P8UG20253206N000000222 | F36: 徐华建 | G36: 通州区二甲镇通运桥村12组等38.5亩，余西居35组等19.8亩 | Q36: 1 | R36: 58.30 | S36: 27.50 | T36: 1603.25 | U36: 5.50 | V36: 320.65 | W36: 1282.60 | X36: 2025-06-16 | Y36: 403.60 | Z36: 徐华建 | AA36: 8456951
A37: 35 | B37: 二甲镇 | E37: P8UG20253206N000000221 | F37: 陈兴月 | G37: 通州区二甲镇通运桥村8组等 | Q37: 1 | R37: 42.08 | S37: 27.50 | T37: 1157.20 | U37: 5.50 | V37: 231.44 | W37: 925.76 | X37: 2025/06/22 2025/07/23 | Y37: 425.5 74 | Z37: 徐华建 | AA37: 39011706/13248380
A38: 36 | B38: 二甲镇 | E38: P8UG20253206N000000220 | F38: 陈凤英 | G38: 通州区二甲镇通运桥村8组等 | Q38: 1 | R38: 21.79 | S38: 27.50 | T38: 599.23 | U38: 5.50 | V38: 119.85 | W38: 479.38 | X38: 2025-06-27 | Y38: 148.00 | Z38: 李维杰 | AA38: 70126740
A39: 37 | B39: 东社镇 | E39: P8UG20253206N000000015 | F39: 赵金林等15户 | G39: 通州区东社镇白龙庙居3组等 | Q39: 15 | R39: 15.80 | S39: 27.50 | T39: 434.50 | U39: 5.50 | V39: 86.90 | W39: 347.60 | X39: 2025-06-26 | Y39: 1481.80 | Z39: 南通市通州区东社镇财政工作办公室收付中心 | AA39: 13127259
A40: 38 | B40: 东社镇 | E40: P8UG20253206N000000016 | F40: 陈康等4户 | G40: 通州区东社镇福利村二十三组等 | Q40: 4 | R40: 7.28 | S40: 27.50 | T40: 200.20 | U40: 5.50 | V40: 40.04 | W40: 160.16 | X40: 2025-06-26 | Y40: 1481.80 | Z40: 南通市通州区东社镇财政工作办公室收付中心 | AA40: 13127259
A41: 39 | B41: 东社镇 | E41: P8UG20253206N000000017 | F41: 曹金云等8户 | G41: 通州区东社镇河东村4组等 | Q41: 8 | R41: 13.75 | S41: 27.50 | T41: 378.13 | U41: 5.50 | V41: 75.63 | W41: 302.50 | X41: 2025-06-26 | Y41: 1481.80 | Z41: 南通市通州区东社镇财政工作办公室收付中心 | AA41: 13127259
A42: 40 | B42: 东社镇 | E42: P8UG20253206N000000018 | F42: 苏冲等8户 | G42: 通州区东社镇滥港桥村三十六组等 | Q42: 8 | R42: 13.00 | S42: 27.50 | T42: 357.50 | U42: 5.50 | V42: 71.50 | W42: 286.00 | X42: 2025-06-26 | Y42: 1481.80 | Z42: 南通市通州区东社镇财政工作办公室收付中心 | AA42: 13127259
A43: 41 | B43: 东社镇 | E43: P8UG20253206N000000019 | F43: 曹祝芳等15户 | G43: 通州区东社镇平和村四组等 | Q43: 15 | R43: 23.00 | S43: 27.50 | T43: 632.50 | U43: 5.50 | V43: 126.50 | W43: 506.00 | X43: 2025-06-26 | Y43: 1481.80 | Z43: 南通市通州区东社镇财政工作办公室收付中心 | AA43: 13127259
A44: 42 | B44: 东社镇 | E44: P8UG20253206N000000020 | F44: 徐峰等16户 | G44: 通州区东社镇庆丰居8组等 | Q44: 16 | R44: 14.00 | S44: 27.50 | T44: 385.00 | U44: 5.50 | V44: 77.00 | W44: 308.00 | X44: 2025-06-26 | Y44: 1481.80 | Z44: 南通市通州区东社镇财政工作办公室收付中心 | AA44: 13127259
A45: 43 | B45: 东社镇 | E45: P8UG20253206N000000023 | F45: 瞿子成等22华 | G45: 通州区东社镇兴隆灶村三组等 | Q45: 22 | R45: 26.00 | S45: 27.50 | T45: 715.00 | U45: 5.50 | V45: 143.00 | W45: 572.00 | X45: 2025-06-26 | Y45: 1481.80 | Z45: 南通市通州区东社镇财政工作办公室收付中心 | AA45: 13127259
A46: 44 | B46: 东社镇 | E46: P8UG20253206N000000021 | F46: 曹平等3户 | G46: 通州区东社镇横马村六组等 | Q46: 3 | R46: 3.00 | S46: 27.50 | T46: 82.50 | U46: 5.50 | V46: 16.50 | W46: 66.00 | X46: 2025-06-26 | Y46: 1481.80 | Z46: 南通市通州区东社镇财政工作办公室收付中心 | AA46: 13127259
A47: 45 | B47: 东社镇 | E47: P8UG20253206N000000022 | F47: 曹进杰等5户 | G47: 通州区东社镇香台村四组等 | Q47: 5 | R47: 6.10 | S47: 27.50 | T47: 167.75 | U47: 5.50 | V47: 33.55 | W47: 134.20 | X47: 2025-06-26 | Y47: 1481.80 | Z47: 南通市通州区东社镇财政工作办公室收付中心 | AA47: 13127259
A48: 46 | B48: 东社镇 | E48: P8UG20253206N000000251 | F48: 张立峰 | G48: 通州区东社镇严北村15组等 | Q48: 1 | R48: 113.30 | S48: 27.50 | T48: 3115.75 | U48: 5.50 | V48: 623.15 | W48: 2492.60 | X48: 2025-08-25 | Y48: 762.20 | Z48: 张立峰 | AA48: 55134207
A49: 47 | B49: 东社镇 | E49: P8UG20253206N000000253 | F49: 曹汉明 | G49: 通州区东社镇五马路村三组等 | Q49: 1 | R49: 60.00 | S49: 27.50 | T49: 1650.00 | U49: 5.50 | V49: 330.00 | W49: 1320.00 | X49: 2025-08-26 | Y49: 330.00 | Z49: 倪红峰 | AA49: 99103209
A50: 48 | B50: 东社镇 | E50: P8UG20253206N000000249 | F50: 王士平 | G50: 通州区东社镇苴西村19组等 | Q50: 1 | R50: 102.00 | S50: 27.50 | T50: 2805.00 | U50: 5.50 | V50: 561.00 | W50: 2244.00 | X50: 2025-08-26 | Y50: 561.00 | Z50: 王士平 | AA50: 97393203
A51: 49 | B51: 东社镇 | E51: P8UG20253206N000000263 | F51: 邱永进 | G51: 通州区东社镇杨港居2组等、严北村17组等 | Q51: 1 | R51: 63.00 | S51: 27.50 | T51: 1732.50 | U51: 5.50 | V51: 346.50 | W51: =T51-V51 -> 1386.00 | X51: 2025-08-25 | Y51: 387.00 | Z51: 邱永进 | AA51: 46862807
A52: 50 | B52: 十总镇 | E52: P8UG20253206N000000004 | F52: 陈勇等11户 | G52: 通州区十总镇新雁村2组等 | Q52: 11 | R52: 18.00 | S52: 27.50 | T52: 495.00 | U52: 5.50 | V52: 99.00 | W52: 396.00 | X52: 2025-06-13 | Y52: 1047.88 | Z52: 季亚楠 | AA52: 47504498
A53: 51 | B53: 十总镇 | E53: P8UG20253206N000000005 | F53: 周锦成等3户 | G53: 通州区十总镇岸西村三十五组 | Q53: 3 | R53: 3.00 | S53: 27.50 | T53: 82.50 | U53: 5.50 | V53: 16.50 | W53: 66.00 | X53: 2025-06-09 | Y53: 76.89 | Z53: 季亮 | AA53: 42409478
A54: 52 | B54: 十总镇 | E54: P8UG20253206N000000007 | F54: 吴进等23户 | G54: 通州区十总镇柏树墩村一组等 | Q54: 23 | R54: 23.50 | S54: 27.50 | T54: 646.25 | U54: 5.50 | V54: 129.25 | W54: 517.00 | X54: 2025-06-12 | Y54: 129.25 | Z54: 翟允允 | AA54: 34034921
A55: 53 | B55: 十总镇 | E55: P8UG20253206N000000003 | F55: 钱永平等2户 | G55: 通州区十总镇骑岸居二十组等 | Q55: 2 | R55: 4.10 | S55: 27.50 | T55: 112.75 | U55: 5.50 | V55: 22.55 | W55: 90.20 | X55: 2025/06/10 2025/06/11 2025/06/17 | Y55: 169.19/ 4.1/9.8 | Z55: 刘莉 | AA55: 38047604/70009654/58010531
A56: 54 | B56: 十总镇 | E56: P8UG20253206N000000006 | F56: 刘汉琪等8户 | G56: 通州区十总镇双墩村二十三组等 | Q56: 8 | R56: 9.50 | S56: 27.50 | T56: 261.25 | U56: 5.50 | V56: 52.25 | W56: 209.00 | X56: 2025-05-21 | Y56: 432.87 | Z56: 张林莉 | AA56: 81463786
A57: 55 | B57: 十总镇 | E57: P8UG20253206N000000002 | F57: 顾美兰等2户 | G57: 通州区十总镇育民村二十八组等 | Q57: 2 | R57: 6.00 | S57: 27.50 | T57: 165.00 | U57: 5.50 | V57: 33.00 | W57: 132.00 | X57: 2025-06-03 | Y57: 33.00 | Z57: 王培玉 | AA57: 55005000
A58: 56 | B58: 石港镇 | E58: P8UG20253206N000000013 | F58: 高井新 | G58: 通州区石港镇乐观村三十二组 | Q58: 1 | R58: 5.00 | S58: 27.50 | T58: 137.50 | U58: 5.50 | V58: 27.50 | W58: 110.00 | X58: 2025-06-23 | Y58: 166781.72 | Z58: 南通市通州区石港镇财政集中收付中心 | AA58: 23133671
A59: 57 | B59: 石港镇 | E59: P8UG20253206N000000227 | F59: 朱永南 | G59: 通州区石港镇花市街村四十五组等 | Q59: 1 | R59: 18.24 | S59: 27.50 | T59: 501.60 | U59: 5.50 | V59: 100.32 | W59: 401.28 | X59: 2025-06-23 | Y59: 166781.72 | Z59: 南通市通州区石港镇财政集中收付中心 | AA59: 23133671
A60: 58 | B60: 刘桥镇 | E60: P8UG20253206N000000209 | F60: 房德林 | G60: 通州区刘桥镇新联居24、25组40.74亩，长岸村16-18组30.96亩 | Q60: 1 | R60: 71.70 | S60: 27.50 | T60: 1971.75 | U60: 5.50 | V60: 394.35 | W60: 1577.40 | X60: 2025-07-09 | Y60: 549.30 | Z60: 房燕 | AA60: 41305320
A61: 59 | B61: 刘桥镇 | E61: P8UG20253206N000000219 | F61: 通州区刘桥镇八里渡家庭农场 | G61: 通州区刘桥镇尹家园村19组等 | Q61: 1 | R61: 51.05 | S61: 27.50 | T61: 1403.88 | U61: 5.50 | V61: 280.78 | W61: 1123.10 | X61: 2025-07-18 | Y61: 343.44 | Z61: 徐标 | AA61: 17546769
A62: 60 | B62: 刘桥镇 | E62: P8UG20253206N000000233 | F62: 成正林 | G62: 通州区刘桥镇新中村26组等 | Q62: 1 | R62: 52.50 | S62: 27.50 | T62: 1443.75 | U62: 5.50 | V62: 288.75 | W62: 1155.00 | X62: 2025-08-13 | Y62: 322.50 | Z62: 袁亚楠 | AA62: 63156735
A63: 61 | B63: 兴仁镇 | E63: P8UG20253206N000000008 | F63: 徐会英等 28户 | G63: 通州区兴仁镇丁涧店村二十二组等 | Q63: 28 | R63: 20.81 | S63: 27.50 | T63: 572.28 | U63: 5.50 | V63: 114.46 | W63: 457.82 | X63: 2025-06-16 | Y63: 114.46 | Z63: 凌宇杰 | AA63: 73203210
A64: 62 | B64: 兴仁镇 | E64: P8UG20253206N000000009 | F64: 葛汉高 | G64: 通州区兴仁镇葛长路村六组 | Q64: 1 | R64: 2.00 | S64: 27.50 | T64: 55.00 | U64: 5.50 | V64: 11.00 | W64: 44.00 | X64: 2025-06-22 | Y64: 11.00 | Z64: 陈海霞 | AA64: 26390241
A65: 63 | B65: 兴仁镇 | E65: P8UG20253206N000000010 | F65: 张鑑清 | G65: 通州区兴仁镇横港居17组 | Q65: 1 | R65: 0.60 | S65: 27.50 | T65: 16.50 | U65: 5.50 | V65: 3.30 | W65: 13.20 | X65: 2025-06-26 | Y65: 3.30 | Z65: 周艳梅 | AA65: 68308258
A66: 64 | B66: 兴仁镇 | E66: P8UG20253206N000000011 | F66: 邱桂兴等 16户 | G66: 通州区兴仁镇芦花港村7组等 | Q66: 16 | R66: 20.12 | S66: 27.50 | T66: 553.30 | U66: 5.50 | V66: 110.66 | W66: 442.64 | X66: 2025-06-26 | Y66: 110.66 | Z66: 朱晓俐 | AA66: 2753261
A67: 65 | B67: 兴仁镇 | E67: P8UG20253206N000000012 | F67: 彭国芹等 7户 | G67: 通州区兴仁镇温桥村4组等 | Q67: 7 | R67: 7.10 | S67: 27.50 | T67: 195.25 | U67: 5.50 | V67: 39.05 | W67: 156.20 | X67: 2025-06-17 | Y67: 39.05 | Z67: 严燕飞 | AA67: 95493959
A68: 66 | B68: 金新街道 | E68: P8UG20253206N000000394 | F68: 陈兴月 | G68: 通州区金新街道麒麟桥村28组等 | Q68: 1 | R68: 63.25 | S68: 27.50 | T68: 1739.38 | U68: 5.50 | V68: 347.88 | W68: 1391.50 | X68: 2025-09-16 | Y68: 347.88 | Z68: 徐华建 | AA68: 48936933
B69: 合计 | Q69: =SUM(Q3:Q68) -> 725 | R69: =SUM(R3:R68) -> 2702.10 | T69: =SUM(T3:T68) -> 74307.80 | V69: =SUM(V3:V68) -> 14861.60 | W69: =SUM(W3:W68) -> 59446.20

Sheet 花生
A1: 种植业保险明细表（险种：花生）
A2: 序号 | B2: 乡镇 | C2: 险种代码 | D2: 投保组织者 | E2: 保单号 | F2: 被保险人或投保人 | G2: 标的地址 | H2: 被保险人身份证号 | I2: 联系电话 | J2: 导入清单号 | K2: 投保单号 | L2: 保单号 | M2: 保单流水号 | N2: 保险金额（元） | O2: 保期启 | P2: 保期止 | Q2: 承保户次 | R2: 承保数量（亩） | S2: 标准保费 | T2: 总保费（元） | U2: 自缴标准 | V2: 农户自缴保费（元） | W2: 各级财政补贴（元） | X2: 汇款日期 | Y2: 汇款金额 | Z2: 汇款人 | AA2: 交易流水号（网银回单） | AB2: 备注
A3: 1 | B3: 西亭镇 | E3: P8UH20253206N000000007 | F3: 朱汉新等7户 | G3: 通州区西亭镇华芦村2组等 | Q3: 7 | R3: 3.04 | S3: 36.00 | T3: =S3*R3 -> 109.44 | U3: 10.80 | V3: =R3*U3 -> 32.83 | W3: =T3-V3 -> 76.61 | X3: 2025-05-22 | Y3: 32.84 | Z3: 朱玲珊 | AA3: 76240788
A4: 2 | B4: 西亭镇 | E4: P8UH20253206N000000009 | F4: 张武建等8户 | G4: 通州区西亭镇纱场居五组等 | Q4: 8 | R4: 2.40 | S4: 36.00 | T4: =S4*R4 -> 86.40 | U4: 10.80 | V4: 25.92 | W4: 60.48 | X4: 2025/05/20 2025/05/28 | Y4: 20.52 5.4 | Z4: 易建梅 | AA4: 02805772/55283432
A5: 3 | B5: 东社镇 | E5: P8UH20253206N000000006 | F5: 严永兵等2户 | G5: 通州区东社镇白龙庙居14组等 | Q5: 2 | R5: 1.05 | S5: 36.00 | T5: 37.80 | U5: 10.80 | V5: 11.34 | W5: 26.46 | X5: 2025-06-26 | Y5: 1481.80 | Z5: 南通市通州区东社镇财政工作办公室收付中心 | AA5: 13127259
A6: 4 | B6: 东社镇 | E6: P8UH20253206N000000010 | F6: 季甘霖等2户 | G6: 通州区东社镇滥港桥村二十一组等 | Q6: 2 | R6: 1.00 | S6: 36.00 | T6: 36.00 | U6: 10.80 | V6: 10.80 | W6: 25.20 | X6: 2025-06-26 | Y6: 1481.80 | Z6: 南通市通州区东社镇财政工作办公室收付中心 | AA6: 13127259
A7: 5 | B7: 东社镇 | E7: P8UH20253206N000000004 | F7: 张礼等5户 | G7: 通州区东社镇平和村十九组等 | Q7: 5 | R7: 2.50 | S7: 36.00 | T7: 90.00 | U7: 10.80 | V7: 27.00 | W7: 63.00 | X7: 2025-06-26 | Y7: 1481.80 | Z7: 南通市通州区东社镇财政工作办公室收付中心 | AA7: 13127259
A8: 6 | B8: 东社镇 | E8: P8UH20253206N000000003 | F8: 曹国明等2户 | G8: 通州区东社镇庆丰居39组等 | Q8: 2 | R8: 1.00 | S8: 36.00 | T8: 36.00 | U8: 10.80 | V8: 10.80 | W8: 25.20 | X8: 2025-06-26 | Y8: 1481.80 | Z8: 南通市通州区东社镇财政工作办公室收付中心 | AA8: 13127259
A9: 7 | B9: 东社镇 | E9: P8UH20253206N000000005 | F9: 顾宗林等2户 | G9: 通州区东社镇兴隆灶村三十八组等 | Q9: 2 | R9: 1.00 | S9: 36.00 | T9: 36.00 | U9: 10.80 | V9: 10.80 | W9: 25.20 | X9: 2025-06-26 | Y9: 1481.80 | Z9: 南通市通州区东社镇财政工作办公室收付中心 | AA9: 13127259
A10: 8 | B10: 东社镇 | E10: P8UH20253206N000000008 | F10: 姜陆平等3户 | G10: 通州区东社镇河东村12组 | Q10: 3 | R10: 1.00 | S10: 36.00 | T10: 36.00 | U10: 10.80 | V10: 10.80 | W10: 25.20 | X10: 2025-06-26 | Y10: 1481.80 | Z10: 南通市通州区东社镇财政工作办公室收付中心 | AA10: 13127259
A11: 9 | B11: 十总镇 | E11: P8UH20253206N000000001 | F11: 李德清等2户 | G11: 通州区十总镇柏树墩村三十三组 | Q11: 2 | R11: 1.00 | S11: 36.00 | T11: 36.00 | U11: 10.80 | V11: 10.80 | W11: 25.20 | X11: 2025-06-12 | Y11: 10.80 | Z11: 翟允允 | AA11: 21331491
A12: 10 | B12: 兴仁镇 | E12: P8UH20253206N000000002 | F12: 金汉林 | G12: 通州区兴仁镇横港居9组 | Q12: 1 | R12: 0.50 | S12: 36.00 | T12: 18.00 | U12: 10.80 | V12: 5.40 | W12: 12.60 | X12: 2025-06-26 | Y12: 5.40 | Z12: 周艳梅 | AA12: 30348735
B13: 合计 | Q13: =SUM(Q3:Q12) -> 34 | R13: =SUM(R3:R12) -> 14.49 | T13: =SUM(T3:T12) -> 521.64 | V13: =SUM(V3:V12) -> 156.49 | W13: =SUM(W3:W12) -> 365.15

Sheet 高效
A1: 政策性农业保险明细清单（人保财险） | O1: 汇款信息
A2: 序号 | B2: 乡镇 | C2: 保单号 | D2: 被保险人或投保人 | E2: 标的地址 | F2: 联系电话 | G2: 险种名称 | H2: 承保户次 | I2: 承保数量（亩、只、头） | J2: 总保费（元） | K2: 农户自缴保费（元） | L2: 各级财政补贴（元） | M2: 起保日期 | N2: 截止日期 | O2: 汇款日期 | P2: 汇款金额 | Q2: 汇款人 | R2: 交易流水号（网银回单）
A3: 1 | B3: 东社镇 | C3: P8UF20253206N000001557 | D3: 南通万嘉农文旅发展有限公司 | E3: 通州区东社镇东平村3、6组 | F3: 1505****6 | G3: 设施大棚 | H3: 1.00 | I3: 140.00 | J3: 507836.00 | K3: 50783.60 | L3: =J3-K3 -> 457052.40 | M3: 2025-06-01 | N3: 2026-05-31 | O3: 2025-05-20 | P3: 57503.60 | Q3: 南通万嘉农文旅发展有限公司 | R3: 62302187
A4: 2 | B4: 十总镇 | C4: P8UF20253206N000001612 | D4: 陶应军 | E4: 通州区十总镇季庄村五组 | F4: 1385****9 | G4: 设施大棚 | H4: 1.00 | I4: 14.00 | J4: 3528.00 | K4: 352.80 | L4: =J4-K4 -> 3175.20 | M4: 2025-06-10 | N4: 2026-06-09 | O4: 2025-06-06 | P4: 1024.80 | Q4: 陶应军 | R4: 16885884
A5: 3 | B5: 十总镇 | C5: P8UF20253206N000001639 | D5: 刘艳军 | E5: 通州区十总镇柏树墩村3、4组 | F5: 1506****9 | G5: 设施大棚 | H5: 1.00 | I5: 19.50 | J5: 4914.00 | K5: 491.40 | L5: 4422.60 | M5: 2025-06-20 | N5: 2026-06-19 | O5: 2025-06-11 | P5: 1427.40 | Q5: 刘艳军 | R5: 55249489
A6: 4 | B6: 二甲镇 | C6: P8UF20253206N000001641 | D6: 张丽 | E6: 通州区二甲镇坨墩村40-44组 | F6: 1348****5 | G6: 设施大棚 | H6: 1.00 | I6: 15.00 | J6: 3780.00 | K6: 378.00 | L6: 3402.00 | M6: 2025-06-17 | N6: 2026-06-16 | O6: 2025-06-13 | P6: 1098.00 | Q6: 张丽 | R6: 86591497
A7: 5 | B7: 二甲镇 | C7: P8UF20253206N000001642 | D7: 梁顺 | E7: 通州区二甲镇坨墩村40-44组 | F7: 1894****5 | G7: 设施大棚 | H7: 1.00 | I7: 19.00 | J7: 4788.00 | K7: 478.80 | L7: 4309.20 | M7: 2025-06-17 | N7: 2026-06-16 | O7: 2025-06-13 | P7: 1390.80 | Q7: 梁顺 | R7: 33636930
A8: 6 | B8: 东社镇 | C8: P8UF20253206N000001644 | D8: 刘永超 | E8: 通州区东社镇新桥村6组 | F8: 1935****1 | G8: 设施大棚 | H8: 1.00 | I8: 17.00 | J8: 4896.00 | K8: 489.60 | L8: 4406.40 | M8: 2025-06-20 | N8: 2026-06-19 | O8: 2025-06-14 | P8: 1305.60 | Q8: 刘永超 | R8: 38424933
A9: 7 | B9: 十总镇 | C9: P8UF20253206N000001646 | D9: 刘春永 | E9: 通州区十总镇沧南居7组 | F9: 1526****0 | G9: 设施大棚 | H9: 1.00 | I9: 42.00 | J9: 18711.00 | K9: 1871.10 | L9: 16839.90 | M9: 2025-06-25 | N9: 2026-06-24 | O9: 2025-06-13 | P9: 3887.10 | Q9: 刘春永 | R9: 75859499
A10: 8 | B10: 东社镇 | C10: P8UF20253206N000001648 | D10: 唐怀政 | E10: 通州区东社镇五马路村3组 | F10: 1596****0 | G10: 设施大棚 | H10: 1.00 | I10: 20.00 | J10: 5040.00 | K10: 504.00 | L10: 4536.00 | M10: 2025-06-20 | N10: 2026-06-19 | O10: 2025-06-13 | P10: 1464.00 | Q10: 唐怀政 | R10: 21700925
A11: 9 | B11: 东社镇 | C11: P8UF20253206N000001649 | D11: 刘将林 | E11: 通州区东社镇横马村5组等 | F11: 1396****9 | G11: 设施大棚 | H11: 1.00 | I11: 95.00 | J11: 47452.50 | K11: 4745.25 | L11: 42707.25 | M11: 2025-06-25 | N11: 2026-06-24 | O11: 2025-06-13 | P11: 4745.25 | Q11: 刘将林 | R11: 31867931
A12: 10 | B12: 东社镇 | C12: P8UF20253206N000001652 | D12: 邵华林 | E12: 通州区东社镇新桥村27组 | F12: 1890****9 | G12: 设施大棚 | H12: 1.00 | I12: 25.00 | J12: 6300.00 | K12: 630.00 | L12: 5670.00 | M12: 2025-06-20 | N12: 2026-06-19 | O12: 2025-06-16 | P12: 1830.00 | Q12: 邵华林 | R12: 42436212
A13: 11 | B13: 二甲镇 | C13: P8UF20253206N000001653 | D13: 宋加刚 | E13: 通州区二甲镇余西居9组 | F13: 1894****8 | G13: 设施大棚 | H13: 1.00 | I13: 12.00 | J13: 3024.00 | K13: 302.40 | L13: 2721.60 | M13: 2025-06-21 | N13: 2026-06-20 | O13: 2025-06-18 | P13: 878.40 | Q13: 宋加刚 | R13: 26649597
A14: 12 | B14: 十总镇 | C14: P8UF20253206N000001654 | D14: 徐根据 | E14: 通州区十总镇双墩村39组 | F14: 1530****7 | G14: 设施大棚 | H14: 1.00 | I14: 26.00 | J14: 6552.00 | K14: 655.20 | L14: 5896.80 | M14: 2025-06-20 | N14: 2026-06-19 | O14: 2025-06-13 | P14: 1903.20 | Q14: 郭素珍 | R14: 5144925
A15: 13 | B15: 二甲镇 | C15: P8UF20253206N000001661 | D15: 徐刚 | E15: 通州区二甲镇通运桥村25-39组 | F15: 1887****6 | G15: 设施大棚 | H15: 1.00 | I15: 115.00 | J15: 28980.00 | K15: 2898.00 | L15: 26082.00 | M15: 2025-06-29 | N15: 2026-06-28 | O15: 2025-06-18 | P15: 8418.00 | Q15: 徐刚 | R15: 93509577
A16: 14 | B16: 二甲镇 | C16: P8UF20253206N000001662 | D16: 黄盛宾 | E16: 通州区二甲镇宝云山村11组等 | F16: 1375****5 | G16: 设施大棚 | H16: 1.00 | I16: 32.00 | J16: 8064.00 | K16: 806.40 | L16: 7257.60 | M16: 2025-06-22 | N16: 2026-06-21 | O16: 2025-06-20 | P16: 2342.40 | Q16: 黄盛宾 | R16: 24015659
A17: 15 | B17: 二甲镇 | C17: P8UF20253206N000001691 | D17: 杨进 | E17: 通州区二甲镇通运桥村25-39组 | F17: 1363****1 | G17: 设施大棚 | H17: 1.00 | I17: 355.00 | J17: 155277.00 | K17: 15527.70 | L17: 139749.30 | M17: 2025-06-29 | N17: 2026-06-28 | O17: 2025-06-17 | P17: 32567.70 | Q17: 杨进 | R17: 80517896
A18: 16 | B18: 东社镇 | C18: P8UF20253206N000001692 | D18: 曹春其 | E18: 通州区东社镇五马路村2-3组，新街村8、10-12组 | F18: 1381****7 | G18: 设施大棚 | H18: 1.00 | I18: 420.00 | J18: 204120.00 | K18: 20412.00 | L18: 183708.00 | M18: 2025-06-25 | N18: 2026-06-24 | O18: 2025-06-21 | P18: 20412.00 | Q18: 杨进平 | R18: 59337997
A19: 17 | B19: 金沙街道 | C19: P8UF20253206N000001693 | D19: 通州区金沙镇御润家庭农场 | E19: 通州区金沙街道城东村15组 | F19: 1396****1 | G19: 设施大棚 | H19: 1.00 | I19: 140.00 | J19: 52920.00 | K19: 5292.00 | L19: 47628.00 | M19: 2025-06-25 | N19: 2026-06-24 | O19: 2025-06-20 | P19: 12012.00 | Q19: 通州区金沙镇御润家庭农场 | R19: 56519995
A20: 18 | B20: 二甲镇 | C20: P8UF20253206N000001694 | D20: 张毛毛 | E20: 通州区二甲镇宝云山村20组等 | F20: 1802****2 | G20: 设施大棚 | H20: 1.00 | I20: 125.00 | J20: 60750.00 | K20: 6075.00 | L20: 54675.00 | M20: 2025-06-26 | N20: 2026-06-25 | O20: 2025-06-20 | P20: 12075.00 | Q20: 张毛毛 | R20: 508232
A21: 19 | B21: 二甲镇 | C21: P8UF20253206N000001695 | D21: 高怀平 | E21: 通州区二甲镇宝云山村20-36组 | F21: 1596****6 | G21: 设施大棚 | H21: 1.00 | I21: 521.20 | J21: 253303.20 | K21: 25330.32 | L21: 227972.88 | M21: 2025-06-26 | N21: 2026-06-25 | O21: 2025-06-22 | P21: 25330.32 | Q21: 高怀平 | R21: 396241
A22: 20 | B22: 二甲镇 | C22: P8UF20253206N000001696 | D22: 高怀平 | E22: 通州区二甲镇宝云山村37-51组 | F22: 1596****6 | G22: 设施大棚 | H22: 1.00 | I22: 437.95 | J22: 212843.70 | K22: 21284.37 | L22: 191559.33 | M22: 2025-06-26 | N22: 2026-06-25 | O22: 2025-06-22 | P22: 21284.37 | Q22: 高怀平 | R22: 41356240
A23: 21 | B23: 东社镇 | C23: P8UF20253206N000001708 | D23: 启东市鑫静农业科技发展有限公司 | E23: 通州区东社镇严北村15-16组 | F23: 1595****1 | G23: 设施大棚 | H23: 1.00 | I23: 418.00 | J23: 208791.00 | K23: 20879.10 | L23: 187911.90 | M23: 2025-06-29 | N23: 2026-06-28 | O23: 2025-06-24 | P23: 20879.10 | Q23: 徐淑兰 | R23: 11508252
A24: 22 | B24: 二甲镇 | C24: P8UF20253206N000001711 | D24: 陈乃东 | E24: 通州区二甲镇通运桥村15-21组 | F24: 1318****5 | G24: 设施大棚 | H24: 1.00 | I24: 630.00 | J24: 297675.00 | K24: 29767.50 | L24: 267907.50 | M24: 2025-06-30 | N24: 2026-06-29 | O24: 2025-06-25 | P24: 29767.50 | Q24: 陈乃东 | R24: 52553730
A25: 23 | B25: 二甲镇 | C25: P8UF20253206N000001712 | D25: 南通大农农业开发有限公司 | E25: 通州区二甲镇路中村36-41组 | F25: 1318****5 | G25: 设施大棚 | H25: 1.00 | I25: 928.00 | J25: 438480.00 | K25: 43848.00 | L25: 394632.00 | M25: 2025-06-30 | N25: 2026-06-29 | O25: 2025-06-25 | P25: 43848.00 | Q25: 陈乃东 | R25: 84453252
A26: 24 | B26: 二甲镇 | C26: P8UF20253206N000001716 | D26: 唐琼琼 | E26: 通州区二甲镇路中村46、49组等 | F26: 1731****9 | G26: 设施大棚 | H26: 1.00 | I26: 50.00 | J26: 12600.00 | K26: 1260.00 | L26: 11340.00 | M26: 2025-06-30 | N26: 2026-06-29 | O26: 2025-06-25 | P26: 3660.00 | Q26: 唐琼琼 | R26: 23948731
A27: 25 | B27: 二甲镇 | C27: P8UF20253206N000001717 | D27: 劳永好 | E27: 通州区二甲镇余西居11组 | F27: 1536****9 | G27: 设施大棚 | H27: 1.00 | I27: 22.30 | J27: 5619.60 | K27: 561.96 | L27: 5057.64 | M27: 2025-06-30 | N27: 2026-06-29 | O27: 2025-06-27 | P27: 1632.32 | Q27: 劳永好 | R27: 3703264
A28: 26 | B28: 东社镇 | C28: P8UF20253206N000001718 | D28: 王帅 | E28: 通州区东社镇唐洪村12组 | F28: 1855****2 | G28: 设施大棚 | H28: 1.00 | I28: 51.00 | J28: 17901.00 | K28: 1790.10 | L28: 16110.90 | M28: 2025-06-30 | N28: 2026-06-30 | O28: 2025-06-26 | P28: 4238.10 | Q28: 王帅 | R28: 65544261
A29: 27 | B29: 东社镇 | C29: P8UF20253206N000001719 | D29: 杨敬泽 | E29: 通州区东社镇香台村3组 | F29: 1720****0 | G29: 设施大棚 | H29: 1.00 | I29: 35.00 | J29: 8820.00 | K29: 882.00 | L29: 7938.00 | M29: 2025-06-30 | N29: 2026-06-29 | O29: 2025-06-27 | P29: 2562.00 | Q29: 杨敬泽 | R29: 293744
A30: 28 | B30: 东社镇 | C30: P8UF20253206N000001724 | D30: 刘小川 | E30: 通州区东社镇唐洪村通州区东社镇唐洪村12组 | F30: 1835****0 | G30: 设施大棚 | H30: 1.00 | I30: 17.85 | J30: 6265.35 | K30: 626.54 | L30: 5638.81 | M30: 2025-06-30 | N30: 2026-06-29 | O30: 2025-06-26 | P30: 1483.34 | Q30: 纪圣云 | R30: 33376736
A31: 29 | B31: 二甲镇 | C31: P8UF20253206N000001725 | D31: 黄德喜 | E31: 通州区二甲镇路中村44组等 | F31: 1817****6 | G31: 设施大棚 | H31: 1.00 | I31: 29.00 | J31: 7308.00 | K31: 730.80 | L31: 6577.20 | M31: 2025-06-30 | N31: 2026-06-29 | O31: 2025-06-27 | P31: 2122.80 | Q31: 颜喜霞 | R31: 53594265
A32: 30 | B32: 东社镇 | C32: P8UF20253206N000001741 | D32: 苏海荣 | E32: 通州区东社镇新桥村八组 | F32: 1550****9 | G32: 设施大棚 | H32: 1.00 | I32: 12.00 | J32: 3456.00 | K32: 345.60 | L32: 3110.40 | M32: 2025-07-08 | N32: 2026-07-07 | O32: 2025-07-03 | P32: 921.60 | Q32: 苏海荣 | R32: 24293784
A33: 31 | B33: 二甲镇 | C33: P8UF20253206N000001742 | D33: 刘杰 | E33: 通州区二甲镇余西居11组 | F33: 1530****8 | G33: 设施大棚 | H33: 1.00 | I33: 30.00 | J33: 7560.00 | K33: 756.00 | L33: 6804.00 | M33: 2025-07-05 | N33: 2026-07-04 | O33: 2025-07-03 | P33: 2196.00 | Q33: 刘杰 | R33: 84288785
A34: 32 | B34: 东社镇 | C34: P8UF20253206N000001744 | D34: 宋佃祥 | E34: 通州区东社镇中和村6组 | F34: 1822****8 | G34: 设施大棚 | H34: 1.00 | I34: 27.00 | J34: 6075.00 | K34: 607.50 | L34: 5467.50 | M34: 2025-07-05 | N34: 2026-07-04 | O34: 2025-07-02 | P34: 1903.50 | Q34: 胥继浩 | R34: 11567780
A35: 33 | B35: 东社镇 | C35: P8UF20253206N000001745 | D35: 邵林海 | E35: 通州区东社镇香台村8组 | F35: 1771****2 | G35: 设施大棚 | H35: 1.00 | I35: 15.00 | J35: 4320.00 | K35: 432.00 | L35: 3888.00 | M35: 2025-07-08 | N35: 2026-07-07 | O35: 2025-07-03 | P35: 1152.00 | Q35: 邵林海 | R35: 31231292
A36: 34 | B36: 东社镇 | C36: P8UF20253206N000001746 | D36: 姜乐 | E36: 通州区东社镇新桥村13组 | F36: 1771****0 | G36: 设施大棚 | H36: 1.00 | I36: 20.00 | J36: 5760.00 | K36: 576.00 | L36: 5184.00 | M36: 2025-07-08 | N36: 2026-07-07 | O36: 2025-07-03 | P36: 1536.00 | Q36: 姜乐 | R36: 28660278
A37: 35 | B37: 二甲镇 | C37: P8UF20253206N000001748 | D37: 张仕林 | E37: 通州区二甲镇北潭村22-23组等 | F37: 1531****0 | G37: 设施大棚 | H37: 1.00 | I37: 330.00 | J37: 173745.00 | K37: 17374.50 | L37: 156370.50 | M37: 2025-07-08 | N37: 2026-07-07 | O37: 2025-07-07 | P37: 17347.5 27 | Q37: 张仕林 | R37: 97115308/97742811
A38: 36 | B38: 东社镇 | C38: P8UF20253206N000001749 | D38: 郝大伟 | E38: 通州区东社镇香台村5组 | F38: 1896****2 | G38: 设施大棚 | H38: 1.00 | I38: 16.00 | J38: 4608.00 | K38: 460.80 | L38: 4147.20 | M38: 2025-07-08 | N38: 2026-07-07 | O38: 2025-07-03 | P38: 1228.80 | Q38: 郝大伟 | R38: 67839780
A39: 37 | B39: 东社镇 | C39: P8UF20253206N000001763 | D39: 张健壮 | E39: 通州区东社镇河东村22组 | F39: 1896****7 | G39: 设施大棚 | H39: 1.00 | I39: 28.00 | J39: 7056.00 | K39: 705.60 | L39: 6350.40 | M39: 2025-07-16 | N39: 2026-07-15 | O39: 2025-07-11 | P39: 2049.60 | Q39: 张健壮 | R39: 16081326
A40: 38 | B40: 东社镇 | C40: P8UF20253206N000001764 | D40: 岳洲阳 | E40: 通州区东社镇杨港居25组 | F40: 1536****3 | G40: 设施大棚 | H40: 1.00 | I40: 22.00 | J40: 6336.00 | K40: 633.60 | L40: 5702.40 | M40: 2025-07-15 | N40: 2026-07-14 | O40: 2025-07-11 | P40: 1689.60 | Q40: 岳洲阳 | R40: 61655329
A41: 39 | B41: 东社镇 | C41: P8UF20253206N000001766 | D41: 沈其海 | E41: 通州区东社镇严北村9组 | F41: 1383****3 | G41: 设施大棚 | H41: 1.00 | I41: 30.00 | J41: 7560.00 | K41: 756.00 | L41: 6804.00 | M41: 2025-07-16 | N41: 2026-07-15 | O41: 2025-07-11 | P41: 2196.00 | Q41: 沈其海 | R41: 3962327
A42: 40 | B42: 东社镇 | C42: P8UF20253206N000001772 | D42: 王军 | E42: 通州区东社镇杨港居24组 | F42: 1994****4 | G42: 设施大棚 | H42: 1.00 | I42: 17.00 | J42: 4284.00 | K42: 428.40 | L42: 3855.60 | M42: 2025-07-16 | N42: 2026-07-15 | O42: 2025-07-14 | P42: 1244.40 | Q42: 王军 | R42: 97008856
A43: 41 | B43: 东社镇 | C43: P8UF20253206N000001777 | D43: 王春苍 | E43: 通州区东社镇杨港居24组 | F43: 1525****5 | G43: 设施大棚 | H43: 1.00 | I43: 23.00 | J43: 5796.00 | K43: 579.60 | L43: 5216.40 | M43: 2025-07-16 | N43: 2026-07-15 | O43: 2025-07-14 | P43: 1683.60 | Q43: 陈怀磊 | R43: 79320339
A44: 42 | B44: 东社镇 | C44: P8UF20253206N000001778 | D44: 徐同建 | E44: 通州区东社镇中和村6组 | F44: 1595****6 | G44: 设施大棚 | H44: 1.00 | I44: 29.00 | J44: 6525.00 | K44: 652.50 | L44: 5872.50 | M44: 2025-07-16 | N44: 2026-07-15 | O44: 2025-07-10 | P44: 2044.50 | Q44: 朱培培 | R44: 85114321
A45: 43 | B45: 十总镇 | C45: P8UF20253206N000001779 | D45: 陈建国 | E45: 通州区十总镇骑北村21组 | F45: 1855****9 | G45: 设施大棚 | H45: 1.00 | I45: 20.00 | J45: 5040.00 | K45: 504.00 | L45: 4536.00 | M45: 2025-07-16 | N45: 2026-07-15 | O45: 2025-07-15 | P45: 1464.00 | Q45: 陈建国 | R45: 88469341
A46: 44 | B46: 东社镇 | C46: P8UF20253206N000001780 | D46: 王伟杰 | E46: 通州区东社镇唐洪村13、14组 | F46: 1879****8 | G46: 设施大棚 | H46: 1.00 | I46: 27.00 | J46: 6804.00 | K46: 680.40 | L46: 6123.60 | M46: 2025-07-16 | N46: 2026-07-15 | O46: 2025-07-14 | P46: 1976.40 | Q46: 王伟杰 | R46: 4077858
A47: 45 | B47: 东社镇 | C47: P8UF20253206N000001782 | D47: 王飞 | E47: 通州区东社镇杨港居24组 | F47: 1720****1 | G47: 设施大棚 | H47: 1.00 | I47: 42.00 | J47: 10584.00 | K47: 1058.40 | L47: 9525.60 | M47: 2025-07-16 | N47: 2026-07-15 | O47: 2025-07-14 | P47: 3074.40 | Q47: 王飞 | R47: 12385339
A48: 46 | B48: 东社镇 | C48: P8UF20253206N000001783 | D48: 董理想 | E48: 通州区东社镇唐洪村14组 | F48: 1596****1 | G48: 设施大棚 | H48: 1.00 | I48: 26.00 | J48: 6552.00 | K48: 655.20 | L48: 5896.80 | M48: 2025-07-16 | N48: 2026-07-15 | O48: 2025-07-14 | P48: 1903.20 | Q48: 董理想 | R48: 61850335
A49: 47 | B49: 东社镇 | C49: P8UF20253206N000001784 | D49: 宋大利 | E49: 通州区东社镇河东村12组 | F49: 1322****9 | G49: 设施大棚 | H49: 1.00 | I49: 17.00 | J49: 4284.00 | K49: 428.40 | L49: 3855.60 | M49: 2025-07-16 | N49: 2026-07-15 | O49: 2025-07-11 | P49: 1300.00 | Q49: 王巧琴 | R49: 38063327
A50: 48 | B50: 东社镇 | C50: P8UF20253206N000001794 | D50: 王兹欣 | E50: 通州区东社镇东平村43组 | F50: 1528****6 | G50: 设施大棚 | H50: 1.00 | I50: 16.00 | J50: 4032.00 | K50: 403.20 | L50: 3628.80 | M50: 2025-07-20 | N50: 2026-07-19 | O50: 2025-07-16 | P50: 1171.20 | Q50: 王兹欣 | R50: 74526868
A51: 49 | B51: 二甲镇 | C51: P8UF20253206N000001795 | D51: 李成 | E51: 通州区二甲镇定兴桥村29组 | F51: 1801****5 | G51: 设施大棚 | H51: 1.00 | I51: 15.00 | J51: 3780.00 | K51: 378.00 | L51: 3402.00 | M51: 2025-07-20 | N51: 2026-07-19 | O51: 2025-07-16 | P51: 1098.00 | Q51: 李成 | R51: 79612349
A52: 50 | B52: 二甲镇 | C52: P8UF20253206N000001798 | D52: 刘中军 | E52: 通州区二甲镇三甲居27组 | F52: 1990****0 | G52: 设施大棚 | H52: 1.00 | I52: 27.00 | J52: 6804.00 | K52: 680.40 | L52: 6123.60 | M52: 2025-07-20 | N52: 2026-07-19 | O52: 2025-07-17 | P52: 1976.40 | Q52: 贾莉 | R52: 84102877
A53: 51 | B53: 东社镇 | C53: P8UF20253206N000001799 | D53: 张文洁 | E53: 通州区东社镇唐洪村12组 | F53: 1354****8 | G53: 设施大棚 | H53: 1.00 | I53: 32.00 | J53: 9216.00 | K53: 921.60 | L53: 8294.40 | M53: 2025-07-19 | N53: 2026-07-18 | O53: 2025-07-16 | P53: 2457.60 | Q53: 张文洁 | R53: 98136349
A54: 52 | B54: 二甲镇 | C54: P8UF20253206N000001800 | D54: 刘中兵 | E54: 通州区二甲镇三甲居4组等 | F54: 1886****7 | G54: 设施大棚 | H54: 1.00 | I54: 15.00 | J54: 3780.00 | K54: 378.00 | L54: 3402.00 | M54: 2025-07-20 | N54: 2026-07-19 | O54: 2025-07-18 | P54: 1100.00 | Q54: 刘中兵 | R54: 55048000
A55: 53 | B55: 刘桥镇 | C55: P8UF20253206N000001801 | D55: 张小响 | E55: 通州区刘桥镇苏池村19组 | F55: 1776****8 | G55: 设施大棚 | H55: 1.00 | I55: 11.00 | J55: 2772.00 | K55: 277.20 | L55: 2494.80 | M55: 2025-07-23 | N55: 2026-07-22 | O55: 2025-07-18 | P55: 805.20 | Q55: 张小响 | R55: 77814885
A56: 54 | B56: 二甲镇 | C56: P8UF20253206N000001810 | D56: 李明叶 | E56: 通州区二甲镇北潭村4、6-7组 | F56: 1386****4 | G56: 设施大棚 | H56: 1.00 | I56: 94.21 | J56: 43242.39 | K56: 4324.24 | L56: 38918.15 | M56: 2025-07-24 | N56: 2026-07-23 | O56: 2025-07-17 | P56: 8846.32 | Q56: 李元超 | R56: 27080879
A57: 55 | B57: 东社镇 | C57: P8UF20253206N000001819 | D57: 高兴 | E57: 通州区东社镇五马路村1组 | F57: 1761****9 | G57: 设施大棚 | H57: 1.00 | I57: 17.00 | J57: 4284.00 | K57: 428.40 | L57: 3855.60 | M57: 2025-07-31 | N57: 2026-07-30 | O57: 2025-07-27 | P57: 1244.40 | Q57: 高兴 | R57: 15003724
A58: 56 | B58: 东社镇 | C58: P8UF20253206N000001820 | D58: 朱善坤 | E58: 通州区东社镇中和村6组 | F58: 1585****6 | G58: 设施大棚 | H58: 1.00 | I58: 42.00 | J58: 9450.00 | K58: 945.00 | L58: 8505.00 | M58: 2025-07-31 | N58: 2026-07-30 | O58: 2025-07-28 | P58: 2961.00 | Q58: 朱培培 | R58: 52615398
A59: 57 | B59: 东社镇 | C59: P8UF20253206N000001821 | D59: 葛汝冬 | E59: 通州区东社镇新街村13组等 | F59: 1306****0 | G59: 设施大棚 | H59: 1.00 | I59: 18.00 | J59: 4536.00 | K59: 453.60 | L59: 4082.40 | M59: 2025-07-31 | N59: 2026-07-30 | O59: 2025-07-28 | P59: 1317.60 | Q59: 葛汝冬 | R59: 95272475
A60: 58 | B60: 二甲镇 | C60: P8UF20253206N000001823 | D60: 李志明 | E60: 通州区二甲镇路中村三十六组等 | F60: 1995****0 | G60: 设施大棚 | H60: 1.00 | I60: 29.00 | J60: 7308.00 | K60: 730.80 | L60: 6577.20 | M60: 2025-07-31 | N60: 2026-07-30 | O60: 2025-07-25 | P60: 2122.80 | Q60: 李志明 | R60: 65420930
A61: 59 | B61: 东社镇 | C61: P8UF20253206N000001824 | D61: 钱庆跃 | E61: 通州区东社镇横马村五组 | F61: 1520****2 | G61: 设施大棚 | H61: 1.00 | I61: 20.00 | J61: 5040.00 | K61: 504.00 | L61: 4536.00 | M61: 2025-07-31 | N61: 2026-07-30 | O61: 2025-07-27 | P61: 1464.00 | Q61: 钱庆跃 | R61: 60423936
A62: 60 | B62: 东社镇 | C62: P8UF20253206N000001825 | D62: 李武汉 | E62: 通州区东社镇新街村13组等 | F62: 1761****8 | G62: 设施大棚 | H62: 1.00 | I62: 18.00 | J62: 4536.00 | K62: 453.60 | L62: 4082.40 | M62: 2025-07-31 | N62: 2026-07-30 | O62: 2025-07-28 | P62: 1317.60 | Q62: 李武汉 | R62: 73665765
A63: 61 | B63: 十总镇 | C63: P8UF20253206N000001829 | D63: 李常远 | E63: 通州区十总镇季庄村6组等 | F63: 1358****9 | G63: 设施大棚 | H63: 1.00 | I63: 501.00 | J63: 211923.00 | K63: 21192.30 | L63: 190730.70 | M63: 2025-07-31 | N63: 2026-07-30 | O63: 2025-07-28 | P63: 21192.30 | Q63: 李常远 | R63: 60825943
A64: 62 | B64: 东社镇 | C64: P8UF20253206N000001830 | D64: 魏正伟 | E64: 通州区东社镇严北村11组 | F64: 1500****6 | G64: 设施大棚 | H64: 1.00 | I64: 17.20 | J64: 4953.60 | K64: 495.36 | L64: 4458.24 | M64: 2025-08-02 | N64: 2026-08-01 | O64: 2025-07-30 | P64: 1320.96 | Q64: 魏正伟 | R64: 53957956
A65: 63 | B65: 刘桥镇 | C65: P8UF20253206N000001834 | D65: 邱海均 | E65: 通州区刘桥镇徐园村金桥7、8组等 | F65: 1332****1 | G65: 设施大棚 | H65: 1.00 | I65: 29.50 | J65: 9770.40 | K65: 977.04 | L65: 8793.36 | M65: 2025-08-11 | N65: 2026-08-10 | O65: 2025-08-08 | P65: 2393.04 | Q65: 何余秀 | R65: 94016545
A66: 64 | B66: 十总镇 | C66: P8UF20253206N000001838 | D66: 通州区十总镇神艺葡萄种植场 | E66: 通州区十总镇柏树墩村2组 | F66: 1390****1 | G66: 设施大棚 | H66: 1.00 | I66: 32.14 | J66: 12213.20 | K66: 1221.32 | L66: 10991.88 | M66: 2025-08-17 | N66: 2026-08-16 | O66: 2025-08-08 | P66: 1221.32 | Q66: 陈志华 | R66: 74593711
A67: 65 | B67: 十总镇 | C67: P8UF20253206N000001840 | D67: 李前猛 | E67: 通州区十总镇迎阳村28组，二爻居31组 | F67: 1381****8 | G67: 设施大棚 | H67: 1.00 | I67: 118.00 | J67: 54799.20 | K67: 5479.92 | L67: 49319.28 | M67: 2025-08-14 | N67: 2026-08-13 | O67: 2025-08-11 | P67: 11003.00 | Q67: 徐小娟 | R67: 33237450
A68: 66 | B68: 东社镇 | C68: P8UF20253206N000001841 | D68: 马雪锋 | E68: 通州区东社镇五甲苴居26组 | F68: 1776****8 | G68: 设施大棚 | H68: 1.00 | I68: 17.00 | J68: 4284.00 | K68: 428.40 | L68: =J68-K68 -> 3855.60 | M68: 2025-08-15 | N68: 2026-08-14 | O68: 2025-08-12 | P68: 1244.40 | Q68: 马雪锋 | R68: 47337456
A69: 67 | B69: 东社镇 | C69: P8UF20253206N000001846 | D69: 闫克礼 | E69: 通州区东社镇严北村14组 | F69: 1855****3 | G69: 设施大棚 | H69: 1.00 | I69: 28.00 | J69: 8064.00 | K69: 806.40 | L69: 7257.60 | M69: 2025-08-21 | N69: 2026-08-20 | O69: 2025-08-15 | P69: 2150.40 | Q69: 于培 | R69: 56347750
A70: 68 | B70: 二甲镇 | C70: P8UF20253206N000001847 | D70: 张仕林 | E70: 通州区二甲镇北潭村39-42组等 | F70: 1531****0 | G70: 设施大棚 | H70: 1.00 | I70: 505.00 | J70: 224977.50 | K70: 22497.75 | L70: 202479.75 | M70: 2025-08-22 | N70: 2026-08-21 | O70: 2025-08-18 | P70: 35697.75 | Q70: 张仕林 | R70: 50330762
A71: 69 | B71: 二甲镇 | C71: P8UF20253206N000001848 | D71: 金辉辉 | E71: 通州区二甲镇北潭村10-12组等 | F71: 1535****4 | G71: 设施大棚 | H71: 1.00 | I71: 466.00 | J71: 213894.00 | K71: 21389.40 | L71: 192504.60 | M71: 2025-08-24 | N71: 2026-08-23 | O71: 2025-08-19 | P71: 28090.80 | Q71: 金辉辉 | R71: 96440484
A72: 70 | B72: 二甲镇 | C72: P8UF20253206N000001849 | D72: 金辉辉 | E72: 通州区二甲镇余北居12组等 | F72: 1535****4 | G72: 设施大棚 | H72: 1.00 | I72: 146.00 | J72: 67014.00 | K72: 6701.40 | L72: 60312.60 | M72: 2025-08-24 | N72: 2026-08-23 | O72: 2025-08-19 | P72: 28090.80 | Q72: 金辉辉 | R72: 96440484
A73: 71 | B73: 二甲镇 | C73: P8UF20253206N000001850 | D73: 李维杰 | E73: 通州区二甲镇通运桥村7组 | F73: 1525****6 | G73: 设施大棚 | H73: 1.00 | I73: 10.50 | J73: 4509.75 | K73: 450.98 | L73: 4058.77 | M73: 2025-08-29 | N73: 2026-08-28 | O73: 2025-08-20 | P73: 1080.78 | Q73: 李维杰 | R73: 98697777
A74: 72 | B74: 二甲镇 | C74: P8UF20253206N000001851 | D74: 李维杰 | E74: 通州区二甲镇通运桥村64组等 | F74: 1525****6 | G74: 设施大棚 | H74: 1.00 | I74: 382.00 | J74: 175338.00 | K74: 17533.80 | L74: 157804.20 | M74: 2025-08-29 | N74: 2026-08-28 | O74: 2025-08-20 | P74: 25357.80 | Q74: 李维杰 | R74: 82807779
A75: 73 | B75: 二甲镇 | C75: P8UF20253206N000001854 | D75: 赵小芹 | E75: 通州区二甲镇通运桥村83组 | F75: 1995****9 | G75: 设施大棚 | H75: 1.00 | I75: 15.00 | J75: 3780.00 | K75: 378.00 | L75: 3402.00 | M75: 2025-08-31 | N75: 2026-08-30 | O75: 2025-08-22 | P75: 1098.00 | Q75: 赵小芹 | R75: 21439791
A76: 74 | B76: 东社镇 | C76: P8UF20253206N000001855 | D76: 赵情峰 | E76: 通州区东社镇新桥村20组 | F76: 1896****7 | G76: 设施大棚 | H76: 1.00 | I76: 31.00 | J76: 7812.00 | K76: 781.20 | L76: 7030.80 | M76: 2025-08-31 | N76: 2026-08-30 | O76: 2025-08-26 | P76: 2269.20 | Q76: 赵情峰 | R76: 32763212
A77: 75 | B77: 东社镇 | C77: P8UF20253206N000001856 | D77: 周江卫 | E77: 通州区东社镇严北村26组 | F77: 1777****5 | G77: 设施大棚 | H77: 1.00 | I77: 18.00 | J77: 4536.00 | K77: 453.60 | L77: 4082.40 | M77: 2025-08-31 | N77: 2026-08-30 | O77: 2025-08-26 | P77: 1317.60 | Q77: 周江卫 | R77: 2845812
A78: 76 | B78: 东社镇 | C78: P8UF20253206N000001857 | D78: 胡爱发 | E78: 通州区东社镇新桥村23组 | F78: 1886****4 | G78: 设施大棚 | H78: 1.00 | I78: 29.00 | J78: 7308.00 | K78: 730.80 | L78: 6577.20 | M78: 2025-08-31 | N78: 2026-08-30 | O78: 2025-08-26 | P78: 2122.80 | Q78: 胡爱发 | R78: 53565210
A79: 77 | B79: 东社镇 | C79: P8UF20253206N000001858 | D79: 常安 | E79: 通州区东社镇新桥村五组 | F79: 1805****7 | G79: 设施大棚 | H79: 1.00 | I79: 20.00 | J79: 5760.00 | K79: 576.00 | L79: 5184.00 | M79: 2025-08-31 | N79: 2026-08-30 | O79: 2025-08-25 | P79: 1536.00 | Q79: 常安 | R79: 18251808
A80: 78 | B80: 西亭镇 | C80: P8UF20253206N000001859 | D80: 南通市通州区西亭镇龙坝村股份经济合作社 | E80: 通州区西亭镇龙坝村7组 | F80: 1995****8 | G80: 设施大棚 | H80: 1.00 | I80: 23.32 | J80: 20237.10 | K80: 2023.71 | L80: 18213.39 | M80: 2025-08-31 | N80: 2026-08-30 | O80: 2025-08-26 | P80: 2023.71 | Q80: 南通市通州区西亭镇龙坝村股份经济合作社 | R80: 98388278
A81: 79 | B81: 二甲镇 | C81: P8UF20253206N000001863 | D81: 王银叶 | E81: 通州区二甲镇六甲镇村34组等 | F81: 1865****8 | G81: 设施大棚 | H81: 1.00 | I81: 140.00 | J81: 68040.00 | K81: 6804.00 | L81: 61236.00 | M81: 2025-08-31 | N81: 2026-08-30 | O81: 2025-08-25 | P81: 6804.00 | Q81: 王银叶 | R81: 23062806
A82: 80 | B82: 东社镇 | C82: P8UF20253206N000001879 | D82: 江苏正大景瑞农业科技发展有限公司 | E82: 通州区东社镇新街村3组等，东社居11组等 | F82: 1516****9 | G82: 设施大棚 | H82: 1.00 | I82: 435.34 | J82: 195903.00 | K82: 19590.30 | L82: 176312.70 | M82: 2025-09-14 | N82: 2026-09-13 | O82: 2025-09-12 | P82: 34162.50 | Q82: 江苏正大景瑞农业科技发展有限公司 | R82: 87665533
A83: 81 | B83: 二甲镇 | C83: P8UF20253206N000001880 | D83: 江苏正大景瑞农业科技发展有限公司 | E83: 通州区二甲镇北潭村15组等 | F83: 1516****9 | G83: 设施大棚 | H83: 1.00 | I83: 88.20 | J83: 39690.00 | K83: 3969.00 | L83: 35721.00 | M83: 2025-09-14 | N83: 2026-09-13 | O83: 2025-09-12 | P83: 34162.50 | Q83: 江苏正大景瑞农业科技发展有限公司 | R83: 87665533
A84: 82 | B84: 十总镇 | C84: P8UF20253206N000001881 | D84: 王彦彦 | E84: 通州区十总镇志新村17、18组 | F84: 1886****0 | G84: 设施大棚 | H84: 1.00 | I84: 24.00 | J84: 6048.00 | K84: 604.80 | L84: 5443.20 | M84: 2025-09-20 | N84: 2026-09-19 | O84: 2025-09-15 | P84: 1756.80 | Q84: 王彦彦 | R84: 203288
A85: 83 | B85: 十总镇 | C85: P8UF20253206N000001882 | D85: 石玉付 | E85: 通州区十总镇志新村17、18组 | F85: 1593****8 | G85: 设施大棚 | H85: 1.00 | I85: 28.00 | J85: 7056.00 | K85: 705.60 | L85: 6350.40 | M85: 2025-09-20 | N85: 2026-09-19 | O85: 2025-09-15 | P85: 2049.60 | Q85: 石玉付 | R85: 76532286
A86: 84 | B86: 十总镇 | C86: P8UF20253206N000001885 | D86: 石玉来 | E86: 通州区十总镇志新村17、18组 | F86: 1885****1 | G86: 设施大棚 | H86: 1.00 | I86: 26.00 | J86: 6552.00 | K86: 655.20 | L86: 5896.80 | M86: 2025-09-20 | N86: 2026-09-19 | O86: 2025-09-15 | P86: 1903.20 | Q86: 石玉来 | R86: 47895286
A87: 85 | B87: 十总镇 | C87: P8UF20253206N000001887 | D87: 李龙岩 | E87: 通州区十总镇骑岸居7组等 | F87: 1836****8 | G87: 设施大棚 | H87: 1.00 | I87: 80.00 | J87: 20160.00 | K87: 2016.00 | L87: 18144.00 | M87: 2025-09-22 | N87: 2026-09-21 | O87: 2025-09-18 | P87: 5856.00 | Q87: 李龙岩 | R87: 58405944
A88: 86 | B88: 十总镇 | C88: P8UF20253206N000001888 | D88: 赵红军 | E88: 通州区十总镇迎阳村26组 | F88: 1885****5 | G88: 设施大棚 | H88: 1.00 | I88: 20.00 | J88: 5040.00 | K88: 504.00 | L88: 4536.00 | M88: 2025-09-29 | N88: 2026-09-28 | O88: 2025-09-18 | P88: 1464.00 | Q88: 赵红军 | R88: 58535942
A89: 87 | B89: 二甲镇 | C89: P8UF20253206N000001889 | D89: 许万田 | E89: 通州区二甲镇路中村34组 | F89: 151****60 | G89: 设施大棚 | H89: 1.00 | I89: 20.00 | J89: 5040.00 | K89: 504.00 | L89: 4536.00 | M89: 2025-09-30 | N89: 2026-09-29 | O89: 2025-09-19 | P89: 1464.00 | Q89: 许万田 | R89: 28810300
A90: 88 | B90: 二甲镇 | C90: P8UF20253206N000001890 | D90: 许万成 | E90: 通州区二甲镇路中村十组 | F90: 1351****5 | G90: 设施大棚 | H90: 1.00 | I90: 15.00 | J90: 3780.00 | K90: 378.00 | L90: 3402.00 | M90: 2025-09-30 | N90: 2026-09-29 | O90: 2025-09-19 | P90: 1098.00 | Q90: 张磊 | R90: 57013528
A91: 89 | B91: 十总镇 | C91: P8UF20253206N000001891 | D91: 杨耳明 | E91: 通州区十总镇迎阳村20组等 | F91: 1506****3 | G91: 设施大棚 | H91: 1.00 | I91: 11.00 | J91: 2772.00 | K91: 277.20 | L91: 2494.80 | M91: 2025-09-29 | N91: 2026-09-28 | O91: 2025-09-18 | P91: 805.20 | Q91: 杨耳明 | R91: 78235940
A92: 90 | B92: 十总镇 | C92: P8UF20253206N000001892 | D92: 王发宝 | E92: 通州区十总镇迎阳村9、11组 | F92: 1815****6 | G92: 设施大棚 | H92: 1.00 | I92: 9.00 | J92: 2268.00 | K92: 226.80 | L92: 2041.20 | M92: 2025-09-29 | N92: 2026-09-28 | O92: 2025-09-18 | P92: 658.80 | Q92: 王发宝 | R92: 19852300
A93: 91 | B93: 十总镇 | C93: P8UF20253206N000001893 | D93: 戴义飞 | E93: 通州区十总镇迎阳村20组 | F93: 1836****5 | G93: 设施大棚 | H93: 1.00 | I93: 11.00 | J93: 2772.00 | K93: 277.20 | L93: 2494.80 | M93: 2025-09-29 | N93: 2026-09-28 | O93: 2025-09-18 | P93: 805.20 | Q93: 戴义飞 | R93: 70132298
A94: 92 | B94: 二甲镇 | C94: P8UF20253206N000001894 | D94: 张磊 | E94: 通州区二甲镇路中村10组 | F94: 1377****0 | G94: 设施大棚 | H94: 1.00 | I94: 15.00 | J94: 3780.00 | K94: 378.00 | L94: 3402.00 | M94: 2025-09-30 | N94: 2026-09-29 | O94: 2025-09-19 | P94: 1098.00 | Q94: 张磊 | R94: 57017528
A95: 93 | B95: 十总镇 | C95: P8UF20253206N000001895 | D95: 何勇 | E95: 通州区十总镇二爻居30组，十总居18组 | F95: 1773****4 | G95: 设施大棚 | H95: 1.00 | I95: 29.20 | J95: 7358.40 | K95: 735.84 | L95: 6622.56 | M95: 2025-09-29 | N95: 2026-09-28 | O95: 2025-09-19 | P95: 2137.44 | Q95: 何勇 | R95: 11933952
A96: 94 | B96: 东社镇 | C96: P8UF20253206N000001896 | D96: 马善广 | E96: 通州区东社镇兴隆灶村52、53组等 | F96: 1801****8 | G96: 设施大棚 | H96: 1.00 | I96: 450.00 | J96: 184275.00 | K96: 18427.50 | L96: 165847.50 | M96: 2025-09-30 | N96: 2026-09-29 | O96: 2025-09-22 | P96: 18427.50 | Q96: 马善广 | R96: 46771027
A97: 95 | B97: 十总镇 | C97: P8UF20253206N000001897 | D97: 戴少文 | E97: 通州区十总镇二爻居32组 | F97: 1479****7 | G97: 设施大棚 | H97: 1.00 | I97: 9.75 | J97: 2457.00 | K97: 245.70 | L97: 2211.30 | M97: 2025-09-29 | N97: 2026-09-28 | O97: 2025-09-19 | P97: 713.70 | Q97: 戴义飞 | R97: 42300951
A98: 96 | B98: 二甲镇 | C98: P8UF20253206N000001898 | D98: 周娥 | E98: 通州区二甲镇坨墩村46组 | F98: 1515****1 | G98: 设施大棚 | H98: 1.00 | I98: 20.00 | J98: 5040.00 | K98: 504.00 | L98: 4536.00 | M98: 2025-09-30 | N98: 2026-09-29 | O98: 2025-09-17 | P98: 1464.00 | Q98: 邵明月 | R98: 33464298
A99: 97 | B99: 二甲镇 | C99: P8UF20253206N000001899 | D99: 胡乃云 | E99: 通州区二甲镇坨墩村46组 | F99: 1585****8 | G99: 设施大棚 | H99: 1.00 | I99: 18.00 | J99: 4536.00 | K99: 453.60 | L99: 4082.40 | M99: 2025-09-30 | N99: 2026-09-29 | O99: 2025-09-17 | P99: 1317.60 | Q99: 胡克学 | R99: 20360940
A100: 98 | B100: 十总镇 | C100: P8UF20253206N000001900 | D100: 李传田 | E100: 通州区十总镇十总居25组 | F100: 1586****9 | G100: 设施大棚 | H100: 1.00 | I100: 8.40 | J100: 2116.80 | K100: 211.68 | L100: 1905.12 | M100: 2025-09-29 | N100: 2026-09-28 | O100: 2025-09-19 | P100: 614.88 | Q100: 李传田 | R100: 7030949
A101: 99 | B101: 二甲镇 | C101: P8UF20253206N000001901 | D101: 胡克学 | E101: 通州区二甲镇坨墩村四十六组 | F101: 1525****0 | G101: 设施大棚 | H101: 1.00 | I101: 16.00 | J101: 4032.00 | K101: 403.20 | L101: 3628.80 | M101: 2025-09-30 | N101: 2026-09-29 | O101: 2025-09-17 | P101: 1171.20 | Q101: 胡克学 | R101: 99528294
A102: 100 | B102: 二甲镇 | C102: P8UF20253206N000001903 | D102: 许祥巨 | E102: 通州区二甲镇路中村35组 | F102: 1826****6 | G102: 设施大棚 | H102: 1.00 | I102: 10.00 | J102: 2520.00 | K102: 252.00 | L102: 2268.00 | M102: 2025-09-30 | N102: 2026-09-29 | O102: 2025-09-22 | P102: 732.00 | Q102: 许万田 | R102: 46423313
A103: 101 | B103: 二甲镇 | C103: P8UF20253206N000001904 | D103: 胡克杰 | E103: 通州区二甲镇坨墩村四十六组 | F103: 1865****3 | G103: 设施大棚 | H103: 1.00 | I103: 16.00 | J103: 4032.00 | K103: 403.20 | L103: 3628.80 | M103: 2025-09-30 | N103: 2026-09-29 | O103: 2025-09-17 | P103: 1171.20 | Q103: 邵明月 | R103: 97386939
A104: 102 | B104: 二甲镇 | C104: P8UF20253206N000001905 | D104: 张建腾 | E104: 通州区二甲镇宝云山村35组 | F104: 1560****8 | G104: 设施大棚 | H104: 1.00 | I104: 18.00 | J104: 4536.00 | K104: 453.60 | L104: 4082.40 | M104: 2025-09-30 | N104: 2026-09-29 | O104: 2025-09-23 | P104: 1317.60 | Q104: 张建腾 | R104: 80515967
A105: 103 | B105: 二甲镇 | C105: P8UF20253206N000001906 | D105: 裴志豪 | E105: 通州区二甲镇坨墩村3组 | F105: 1871****3 | G105: 设施大棚 | H105: 1.00 | I105: 34.00 | J105: 8568.00 | K105: 856.80 | L105: 7711.20 | M105: 2025-09-30 | N105: 2026-09-29 | O105: 2025-09-22 | P105: 2488.80 | Q105: 裴志豪 | R105: 94596313
A106: 104 | B106: 十总镇 | C106: P8UF20253206N000001907 | D106: 戈善塘 | E106: 通州区十总镇十总居19组 | F106: 1575****4 | G106: 设施大棚 | H106: 1.00 | I106: 11.00 | J106: 2772.00 | K106: 277.20 | L106: 2494.80 | M106: 2025-09-29 | N106: 2026-09-28 | O106: 2025-09-22 | P106: 805.20 | Q106: 邱娟 | R106: 85657312
A107: 105 | B107: 二甲镇 | C107: P8UF20253206N000001908 | D107: 邵磊 | E107: 通州区二甲镇三甲居7组，路中村36组 | F107: 1772****8 | G107: 设施大棚 | H107: 1.00 | I107: 42.00 | J107: 10584.00 | K107: 1058.40 | L107: 9525.60 | M107: 2025-09-30 | N107: 2026-09-29 | O107: 2025-09-23 | P107: 3074.40 | Q107: 邵磊 | R107: 20314320
A108: 106 | B108: 二甲镇 | C108: P8UF20253206N000001909 | D108: 张祥祥 | E108: 通州区二甲镇宝云山村8组 | F108: 1731****8 | G108: 设施大棚 | H108: 1.00 | I108: 8.62 | J108: 2172.24 | K108: 217.23 | L108: 1955.01 | M108: 2025-09-30 | N108: 2026-09-29 | O108: 2025/09/23 2025/09/24 | P108: 630.98 0.01 | Q108: 张祥祥/陈莹 | R108: 72780972/ 31181979
A109: 107 | B109: 二甲镇 | C109: P8UF20253206N000001910 | D109: 张仕林 | E109: 通州区二甲镇北潭村14组、31组 | F109: 1531****0 | G109: 设施大棚 | H109: 1.00 | I109: 73.00 | J109: 34492.50 | K109: 3449.25 | L109: 31043.25 | M109: 2025-09-30 | N109: 2026-09-29 | O109: 2025-09-19 | P109: 3449.25 | Q109: 张仕林 | R109: 10082947
A110: 108 | B110: 西亭镇 | C110: P8UF20253206N000001911 | D110: 孟凡奇 | E110: 通州区西亭镇八总桥村14组 | F110: 1395****9 | G110: 设施大棚 | H110: 1.00 | I110: 10.40 | J110: 2620.80 | K110: 262.08 | L110: 2358.72 | M110: 2025-09-30 | N110: 2026-09-29 | O110: 2025-09-24 | P110: 761.28 | Q110: 孟凡奇 | R110: 8737979
A111: 109 | B111: 西亭镇 | C111: P8UF20253206N000001914 | D111: 李须生 | E111: 通州区西亭镇八总桥村49组 | F111: 1560****1 | G111: 设施大棚 | H111: 1.00 | I111: 16.30 | J111: 4107.60 | K111: 410.76 | L111: 3696.84 | M111: 2025-09-30 | N111: 2026-09-29 | O111: 2025-09-23 | P111: 1193.16 | Q111: 蒋娅楠 | R111: 58911969
A112: 110 | B112: 东社镇 | C112: P8UF20253206N000001917 | D112: 王华新 | E112: 通州区东社镇新桥村1组等 | F112: 1772****9 | G112: 设施大棚 | H112: 1.00 | I112: 341.00 | J112: 156519.00 | K112: 15651.90 | L112: 140867.10 | M112: 2025-09-30 | N112: 2026-09-29 | O112: 2025-09-26 | P112: 15651.90 | Q112: 王华新 | R112: 94422989
A113: 111 | B113: 东社镇 | C113: P8UF20253206N000001918 | D113: 王银叶 | E113: 通州区东社镇五甲苴居23组等 | F113: 1865****8 | G113: 设施大棚 | H113: 1.00 | I113: 273.00 | J113: 106879.50 | K113: 10687.95 | L113: 96191.55 | M113: 2025-09-30 | N113: 2026-09-30 | O113: 2025-09-24 | P113: 10687.95 | Q113: 王银叶 | R113: 77235323
A114: 112 | B114: 二甲镇 | C114: P8UF20253206N000001919 | D114: 王华新 | E114: 通州区二甲镇坨墩村27-33组等 | F114: 1772****9 | G114: 设施大棚 | H114: 1.00 | I114: 776.53 | J114: 328472.19 | K114: 32847.22 | L114: 295624.97 | M114: 2025-09-30 | N114: 2026-09-30 | O114: 2025/03/30 2025/09/26 | P114: 26277.3 19708.57 | Q114: 南通哈谷农业科技有限公司/王华新 | R114: 82264432/01514332
A115: 113 | B115: 二甲镇 | C115: P8UF20253206N000001920 | D115: 曹群 | E115: 通州区二甲镇北潭村1组等 | F115: 1875****4 | G115: 设施大棚 | H115: 1.00 | I115: 171.60 | J115: 70270.20 | K115: 7027.02 | L115: 63243.18 | M115: 2025-09-30 | N115: 2026-09-29 | O115: 2025-09-26 | P115: 7027.02 | Q115: 曹群 | R115: 29095992
A116: 114 | B116: 二甲镇 | C116: P8UF20253206N000001921 | D116: 张永宽 | E116: 通州区二甲镇北潭村10组等 | F116: 1892****2 | G116: 设施大棚 | H116: 1.00 | I116: 32.80 | J116: 8265.60 | K116: 826.56 | L116: 7439.04 | M116: 2025-09-30 | N116: 2026-09-29 | O116: 2025-09-26 | P116: 2400.96 | Q116: 张永宽 | R116: 17086335
A117: 115 | B117: 二甲镇 | C117: P8UF20253206N000001922 | D117: 张永华 | E117: 通州区二甲镇北潭村32组等 | F117: 1475****4 | G117: 设施大棚 | H117: 1.00 | I117: 62.80 | J117: 15825.60 | K117: 1582.56 | L117: 14243.04 | M117: 2025-09-30 | N117: 2026-09-29 | O117: 2025-09-26 | P117: 4596.96 | Q117: 张永华 | R117: 57884990
G118: 设施大棚 汇总 | H118: =SUBTOTAL(9,H3:H117) -> 115.00 | I118: =SUBTOTAL(9,I3:I117) -> 11616.61 | J118: =SUBTOTAL(9,J3:J117) -> 5364191.92 | K118: =SUBTOTAL(9,K3:K117) -> 536419.21 | L118: =SUBTOTAL(9,L3:L117) -> 4827772.71
A119: 116 | B119: 兴仁镇 | C119: PHO320253206N000000001 | D119: 耿云龙 | E119: 通州区兴仁镇芦花港村25组，三庙村20-21组 | F119: 1365****6 | G119: 露地葡萄 | H119: 1.00 | I119: 40.00 | J119: 3200.00 | K119: 960.00 | L119: =J119-K119 -> 2240.00 | M119: 2025-06-30 | N119: 2025-11-30 | O119: 2025-06-23 | P119: 960.00 | Q119: 张金菊 | R119: 68161245
A120: 117 | B120: 东社镇 | C120: PHO320253206N000000002 | D120: 李修多 | E120: 通州区东社镇五马路村7组 | F120: 1805****8 | G120: 露地葡萄 | H120: 1.00 | I120: 45.00 | J120: 3600.00 | K120: 1080.00 | L120: 2520.00 | M120: 2025-07-20 | N120: 2025-12-10 | O120: 2025-07-16 | P120: 1080.00 | Q120: 李修多 | R120: 87906348
A121: 118 | B121: 东社镇 | C121: PHO320253206N000000003 | D121: 王春华 | E121: 通州区东社镇白龙庙居2组 | F121: 1894****1 | G121: 露地葡萄 | H121: 1.00 | I121: 24.00 | J121: 1920.00 | K121: 576.00 | L121: 1344.00 | M121: 2025-07-20 | N121: 2025-12-10 | O121: 2025-07-16 | P121: 576.00 | Q121: 王春华 | R121: 46870869
A122: 119 | B122: 东社镇 | C122: PHO320253206N000000004 | D122: 王华东 | E122: 通州区东社镇五马路村4组 | F122: 1322****2 | G122: 露地葡萄 | H122: 1.00 | I122: 13.00 | J122: 1040.00 | K122: 312.00 | L122: 728.00 | M122: 2025-07-20 | N122: 2025-12-10 | O122: 2025-07-16 | P122: 312.00 | Q122: 王华东 | R122: 28397871
A123: 120 | B123: 东社镇 | C123: PHO320253206N000000005 | D123: 王行根 | E123: 通州区东社镇五马路村2组等 | F123: 1801****2 | G123: 露地葡萄 | H123: 1.00 | I123: 30.00 | J123: 2400.00 | K123: 720.00 | L123: 1680.00 | M123: 2025-07-20 | N123: 2025-12-10 | O123: 2025-07-16 | P123: 720.00 | Q123: 王行根 | R123: 29966352
A124: 121 | B124: 东社镇 | C124: PHO320253206N000000006 | D124: 祝其松 | E124: 通州区东社镇五马路村22组 | F124: 1785****5 | G124: 露地葡萄 | H124: 1.00 | I124: 21.00 | J124: 1680.00 | K124: 504.00 | L124: 1176.00 | M124: 2025-07-20 | N124: 2025-12-10 | O124: 2025-07-16 | P124: 504.00 | Q124: 曹磐玉 | R124: 13070872
G125: 露地葡萄 汇总 | H125: =SUBTOTAL(9,H119:H124) -> 6.00 | I125: =SUBTOTAL(9,I119:I124) -> 173.00 | J125: =SUBTOTAL(9,J119:J124) -> 13840.00 | K125: =SUBTOTAL(9,K119:K124) -> 4152.00 | L125: =SUBTOTAL(9,L119:L124) -> 9688.00
A126: 122 | B126: 刘桥镇 | C126: PHOZ20253206N000000017 | D126: 房德林 | E126: 通州区刘桥镇新联居24、25组，长岸村16-18组 | F126: 1826****9 | G126: 露地旱生蔬菜 | H126: 1.00 | I126: 127.00 | J126: 8890.00 | K126: 1778.00 | L126: =J126-K126 -> 7112.00 | M126: 2025-09-16 | N126: 2026-03-15 | O126: 2025-09-11 | P126: 1778.00 | Q126: 房燕 | R126: 87715271
A127: 123 | B127: 刘桥镇 | C127: PHOZ20253206N000000018 | D127: 通州区刘桥镇八里渡家庭农场 | E127: 通州区刘桥镇尹家园村19组等 | F127: 1396****8 | G127: 露地旱生蔬菜 | H127: 1.00 | I127: 100.00 | J127: 7000.00 | K127: 1400.00 | L127: =J127-K127 -> 5600.00 | M127: 2025-09-19 | N127: 2026-03-18 | O127: 2025-09-15 | P127: 1400.00 | Q127: 徐标 | R127: 91784926
A128: 124 | B128: 刘桥镇 | C128: PHOZ20253206N000000020 | D128: 唐亚洲 | E128: 通州区刘桥镇新联居3组等 | F128: 1314****0 | G128: 露地旱生蔬菜 | H128: 1.00 | I128: 192.52 | J128: 13476.40 | K128: 2695.28 | L128: =J128-K128 -> 10781.12 | M128: 2025-09-30 | N128: 2025-12-30 | O128: 2025-09-22 | P128: 2695.28 | Q128: 唐亚洲 | R128: 75960316
G129: 露地旱生蔬菜 汇总 | H129: =SUBTOTAL(9,H126:H128) -> 3.00 | I129: =SUBTOTAL(9,I126:I128) -> 419.52 | J129: =SUBTOTAL(9,J126:J128) -> 29366.40 | K129: =SUBTOTAL(9,K126:K128) -> 5873.28 | L129: =SUBTOTAL(9,L126:L128) -> 23493.12
A130: 125 | B130: 石港镇 | C130: PIQP20253206N000000422 | D130: 孙卫星 | E130: 通州区石港镇北渡村十七组 | F130: 1307****1 | G130: 蛋鸡 | H130: 1.00 | I130: 12080.00 | J130: 14496.00 | K130: 4348.80 | L130: =J130-K130 -> 10147.20 | M130: 2025-09-30 | N130: 2026-09-29 | O130: 2025-09-22 | P130: 4348.80 | Q130: 孙永锋 | R130: 39513717
A131: 126 | B131: 东社镇 | C131: PIQP20253206N000000423 | D131: 季锦成 | E131: 通州区东社镇福利村9组 | F131: 1806****2 | G131: 蛋鸡 | H131: 1.00 | I131: 31125.00 | J131: 37350.00 | K131: 11205.00 | L131: =J131-K131 -> 26145.00 | M131: 2025-09-30 | N131: 2026-09-29 | O131: 2025-09-24 | P131: 11205.00 | Q131: 季锦成 | R131: 20292322
G132: 蛋鸡 汇总 | H132: =SUBTOTAL(9,H130:H131) -> 2.00 | I132: =SUBTOTAL(9,I130:I131) -> 43205.00 | J132: =SUBTOTAL(9,J130:J131) -> 51846.00 | K132: =SUBTOTAL(9,K130:K131) -> 15553.80 | L132: =SUBTOTAL(9,L130:L131) -> 36292.20
A133: 127 | B133: 刘桥镇 | C133: PIVK20253206N000000424 | D133: 杨笃标 | E133: 通州区刘桥镇尹家园村13组 | F133: 1381****3 | G133: 羊 | H133: 1.00 | I133: 60.00 | J133: 4320.00 | K133: 648.00 | L133: =J133-K133 -> 3672.00 | M133: 2025-06-21 | N133: 2026-06-20 | O133: 2025-06-16 | P133: 648.00 | Q133: 杨德本 | R133: 89013950
A134: 128 | B134: 西亭镇 | C134: PIVK20253206N000000431 | D134: 李红军 | E134: 通州区西亭镇亭东村68、33组 | F134: 1390****2 | G134: 羊 | H134: 1.00 | I134: 1520.00 | J134: 109440.00 | K134: 16416.00 | L134: 93024.00 | M134: 2025-06-25 | N134: 2026-06-24 | O134: 2025-06-24 | P134: 16416.00 | Q134: 李红军 | R134: 99404248
A135: 129 | B135: 东社镇 | C135: PIVK20253206N000000446 | D135: 吴晓巍 | E135: 通州区东社镇平和村1组 | F135: 1500****8 | G135: 羊 | H135: 1.00 | I135: 3387.00 | J135: 243864.00 | K135: 36579.60 | L135: 207284.40 | M135: 2025-06-30 | N135: 2026-06-29 | O135: 2025-06-22 | P135: 36579.60 | Q135: 吴晓巍 | R135: 6768240
A136: 130 | B136: 西亭镇 | C136: PIVK20253206N000000529 | D136: 王苏建 | E136: 通州区西亭镇八总桥村36组 | F136: 1381****9 | G136: 羊 | H136: 1.00 | I136: 1425.00 | J136: 102600.00 | K136: 15390.00 | L136: 87210.00 | M136: 2025-07-03 | N136: 2026-07-02 | O136: 2025-06-27 | P136: 15390.00 | Q136: 王苏建 | R136: 54114747
A137: 131 | B137: 十总镇 | C137: PIVK20253206N000000530 | D137: 瞿建 | E137: 通州区十总镇育民村30组 | F137: 1322****2 | G137: 羊 | H137: 1.00 | I137: 1800.00 | J137: 129600.00 | K137: 19440.00 | L137: 110160.00 | M137: 2025-07-03 | N137: 2026-07-02 | O137: 2025-06-27 | P137: 19440.00 | Q137: 刘萍 | R137: 46091740
A138: 132 | B138: 东社镇 | C138: PIVK20253206N000000562 | D138: 杨春华 | E138: 通州区东社镇严北村11组 | F138: 1396****2 | G138: 羊 | H138: 1.00 | I138: 1383.00 | J138: 99576.00 | K138: 14936.40 | L138: 84639.60 | M138: 2025-07-16 | N138: 2026-07-15 | O138: 2025-07-14 | P138: 14936.40 | Q138: 杨春华 | R138: 18710856
A139: 133 | B139: 十总镇 | C139: PIVK20253206N000000630 | D139: 易军 | E139: 通州区十总镇迎阳村四十九组 | F139: 1348****8 | G139: 羊 | H139: 1.00 | I139: 623.00 | J139: 44856.00 | K139: 6728.40 | L139: 38127.60 | M139: 2025-09-15 | N139: 2026-09-14 | O139: 2025-09-10 | P139: 6728.40 | Q139: 易军 | R139: 62554264
A140: 134 | B140: 西亭镇 | C140: PIVK20253206N000000637 | D140: 邱建华 | E140: 通州区西亭镇八总桥村十五组 | F140: 1526****8 | G140: 羊 | H140: 1.00 | I140: 93.00 | J140: 6696.00 | K140: 1004.40 | L140: 5691.60 | M140: 2025-09-30 | N140: 2026-09-29 | O140: 2025-09-23 | P140: 1004.40 | Q140: 邱冬梅 | R140: 98410974
G141: 羊 汇总 | H141: =SUBTOTAL(9,H133:H140) -> 8.00 | I141: =SUBTOTAL(9,I133:I140) -> 10291.00 | J141: =SUBTOTAL(9,J133:J140) -> 740952.00 | K141: =SUBTOTAL(9,K133:K140) -> 111142.80 | L141: =SUBTOTAL(9,L133:L140) -> 629809.20
A142: 135 | B142: 刘桥镇 | C142: PIZG20253206N000000170 | D142: 马栋华 | E142: 通州区刘桥镇英雄村50组 | F142: 1391****0 | G142: 育肥猪 | H142: 1.00 | I142: 50.00 | J142: 2000.00 | K142: 400.00 | L142: =J142-K142 -> 1600.00 | M142: 2025-06-30 | N142: 2026-06-29 | O142: 2025-06-20 | P142: 400.00 | Q142: 姜茂华 | R142: 5777995
A143: 136 | B143: 刘桥镇 | C143: PIZG20253206N000000180 | D143: 潘建林等4户 | E143: 通州区刘桥镇长岸村6组等 | F143: 1836****5 | G143: 育肥猪 | H143: 4.00 | I143: 190.00 | J143: 7600.00 | K143: 1520.00 | L143: 6080.00 | M143: 2025-07-05 | N143: 2026-07-04 | O143: 2025-06-29 | P143: 1793.00 | Q143: 姜茂华 | R143: 14801762
A144: 137 | B144: 刘桥镇 | C144: PIZG20253206N000000181 | D144: 丁良托等4户 | E144: 通州区刘桥镇米三桥村29组等 | F144: 1825****6 | G144: 育肥猪 | H144: 4.00 | I144: 130.00 | J144: 5200.00 | K144: 1040.00 | L144: 4160.00 | M144: 2025-07-05 | N144: 2026-07-04 | O144: 2025-06-29 | P144: 1208.00 | Q144: 姜茂华 | R144: 2792761
A145: 138 | B145: 刘桥镇 | C145: PIZG20253206N000000182 | D145: 魏建华等3户 | E145: 通州区刘桥镇蒋一村24组等 | F145: 1801****6 | G145: 育肥猪 | H145: 3.00 | I145: 125.00 | J145: 5000.00 | K145: 1000.00 | L145: 4000.00 | M145: 2025-07-05 | N145: 2026-07-04 | O145: 2025-06-29 | P145: 1336.00 | Q145: 姜茂华 | R145: 58762760
A146: 139 | B146: 刘桥镇 | C146: PIZG20253206N000000183 | D146: 陈雄军等11户 | E146: 通州区刘桥镇尹家园村36组等 | F146: 1322****2 | G146: 育肥猪 | H146: 11.00 | I146: 335.00 | J146: 13400.00 | K146: 2680.00 | L146: 10720.00 | M146: 2025-07-05 | N146: 2026-07-04 | O146: 2025-06-29 | P146: 3184.00 | Q146: 姜茂华 | R146: 63823760
A147: 140 | B147: 刘桥镇 | C147: PIZG20253206N000000184 | D147: 张国华等4户 | E147: 通州区刘桥镇新联居45组等 | F147: 1386****5 | G147: 育肥猪 | H147: 4.00 | I147: 238.00 | J147: 9520.00 | K147: 1904.00 | L147: 7616.00 | M147: 2025-07-11 | N147: 2026-07-10 | O147: 2025-07-03 | P147: 12 2341 | Q147: 姜茂华 | R147: 95062288/80114290
A148: 141 | B148: 刘桥镇 | C148: PIZG20253206N000000185 | D148: 钱松林等2户 | E148: 通州区刘桥镇苏池村19组等 | F148: 1589****9 | G148: 育肥猪 | H148: 2.00 | I148: 63.00 | J148: 2520.00 | K148: 504.00 | L148: 2016.00 | M148: 2025-07-11 | N148: 2026-07-10 | O148: 2025-07-03 | P148: 714.00 | Q148: 姜茂华 | R148: 15920290
A149: 142 | B149: 刘桥镇 | C149: PIZG20253206N000000186 | D149: 高振清等4户 | E149: 通州区刘桥镇慎修村11组等 | F149: 1803****5 | G149: 育肥猪 | H149: 4.00 | I149: 253.00 | J149: 10120.00 | K149: 2024.00 | L149: 8096.00 | M149: 2025-07-11 | N149: 2026-07-10 | O149: 2025-07-03 | P149: 12 2272 | Q149: 姜茂华 | R149: 95062288/85911785
A150: 143 | B150: 刘桥镇 | C150: PIZG20253206N000000187 | D150: 严国兴等3户 | E150: 通州区刘桥镇极孝村27组等 | F150: 1392****4 | G150: 育肥猪 | H150: 3.00 | I150: 88.00 | J150: 3520.00 | K150: 704.00 | L150: 2816.00 | M150: 2025-07-11 | N150: 2026-07-10 | O150: 2025-07-03 | P150: 12 /973 | Q150: 姜茂华 | R150: 95062288/37917784
A151: 144 | B151: 十总镇 | C151: PIZG20253206N000000196 | D151: 葛拥军 | E151: 通州区十总镇二爻居35组 | F151: 1518****8 | G151: 育肥猪 | H151: 1.00 | I151: 375.00 | J151: 15000.00 | K151: 3000.00 | L151: 12000.00 | M151: 2025-07-11 | N151: 2026-07-10 | O151: 2025-07-07 | P151: 3420.00 | Q151: 邱爱芳 | R151: 26904813
A152: 145 | B152: 石港镇 | C152: PIZG20253206N000000200 | D152: 杨锦汉等8户 | E152: 通州区石港镇志田村9组等 | F152: 1830****2 | G152: 育肥猪 | H152: 8.00 | I152: 351.00 | J152: 14040.00 | K152: 2808.00 | L152: 11232.00 | M152: 2025-07-19 | N152: 2026-07-18 | O152: 2025-07-12 | P152: 16770.00 | Q152: 姜茂华 | R152: 57193331
A153: 146 | B153: 石港镇 | C153: PIZG20253206N000000201 | D153: 徐少章等3户 | E153: 通州区石港镇金庄居4组等 | F153: 1892****8 | G153: 育肥猪 | H153: 3.00 | I153: 150.00 | J153: 6000.00 | K153: 1200.00 | L153: 4800.00 | M153: 2025-07-19 | N153: 2026-07-18 | O153: 2025-07-12 | P153: 16770.00 | Q153: 姜茂华 | R153: 57193331
A154: 147 | B154: 石港镇 | C154: PIZG20253206N000000202 | D154: 周华等2户 | E154: 通州区石港镇江海村21组等 | F154: 1396****9 | G154: 育肥猪 | H154: 2.00 | I154: 263.00 | J154: 10520.00 | K154: 2104.00 | L154: 8416.00 | M154: 2025-07-19 | N154: 2026-07-18 | O154: 2025-07-12 | P154: 16770.00 | Q154: 姜茂华 | R154: 57193331
A155: 148 | B155: 石港镇 | C155: PIZG20253206N000000203 | D155: 丁新培 | E155: 通州区石港镇石东村31组 | F155: 1845****9 | G155: 育肥猪 | H155: 1.00 | I155: 125.00 | J155: 5000.00 | K155: 1000.00 | L155: 4000.00 | M155: 2025-07-19 | N155: 2026-07-18 | O155: 2025-07-12 | P155: 16770.00 | Q155: 姜茂华 | R155: 57193331
A156: 149 | B156: 石港镇 | C156: PIZG20253206N000000204 | D156: 陈兵 | E156: 通州区石港镇睹史院村34组 | F156: 1596****5 | G156: 育肥猪 | H156: 1.00 | I156: 38.00 | J156: 1520.00 | K156: 304.00 | L156: 1216.00 | M156: 2025-07-19 | N156: 2026-07-18 | O156: 2025-07-12 | P156: 16770.00 | Q156: 姜茂华 | R156: 57193331
A157: 150 | B157: 石港镇 | C157: PIZG20253206N000000205 | D157: 费国建等15户 | E157: 通州区石港镇四港村13组等 | F157: 1586****8 | G157: 育肥猪 | H157: 15.00 | I157: 450.00 | J157: 18000.00 | K157: 3600.00 | L157: 14400.00 | M157: 2025-07-19 | N157: 2026-07-18 | O157: 2025-07-12 | P157: 16770.00 | Q157: 姜茂华 | R157: 57193331
A158: 151 | B158: 石港镇 | C158: PIZG20253206N000000206 | D158: 何宗友等2户 | E158: 通州区石港镇花市街村21组等 | F158: 1515****7 | G158: 育肥猪 | H158: 2.00 | I158: 85.00 | J158: 3400.00 | K158: 680.00 | L158: 2720.00 | M158: 2025-07-19 | N158: 2026-07-18 | O158: 2025-07-12 | P158: 16770.00 | Q158: 姜茂华 | R158: 57193331
A159: 152 | B159: 石港镇 | C159: PIZG20253206N000000207 | D159: 郑建国等2户 | E159: 通州区石港镇新貌村32组等 | F159: 1596****2 | G159: 育肥猪 | H159: 2.00 | I159: 63.00 | J159: 2520.00 | K159: 504.00 | L159: 2016.00 | M159: 2025-07-19 | N159: 2026-07-18 | O159: 2025-07-12 | P159: 16770.00 | Q159: 姜茂华 | R159: 57193331
A160: 153 | B160: 石港镇 | C160: PIZG20253206N000000208 | D160: 孙永付等2户 | E160: 通州区石港镇北渡村16组等 | F160: 1386****9 | G160: 育肥猪 | H160: 2.00 | I160: 125.00 | J160: 5000.00 | K160: 1000.00 | L160: 4000.00 | M160: 2025-07-19 | N160: 2026-07-18 | O160: 2025-07-12 | P160: 16770.00 | Q160: 姜茂华 | R160: 57193331
A161: 154 | B161: 十总镇 | C161: PIZG20253206N000000210 | D161: 江遂益 | E161: 通州区十总镇骑岸居15组 | F161: 1380****0 | G161: 育肥猪 | H161: 1.00 | I161: 250.00 | J161: 10000.00 | K161: 2000.00 | L161: 8000.00 | M161: 2025-07-31 | N161: 2026-07-30 | O161: 2025-07-17 | P161: 2210.00 | Q161: 江遂益 | R161: 440355
A162: 155 | B162: 十总镇 | C162: PIZG20253206N000000223 | D162: 刘雪进 | E162: 通州区十总镇志新村27组 | F162: 1516****1 | G162: 育肥猪 | H162: 1.00 | I162: 200.00 | J162: 8000.00 | K162: 1600.00 | L162: 6400.00 | M162: 2025-08-25 | N162: 2026-08-24 | O162: 2025-08-19 | P162: 1684.00 | Q162: 姜茂华 | R162: 5128768
A163: 156 | B163: 十总镇 | C163: PIZG20253206N000000229 | D163: 葛汉清 | E163: 通州区十总镇迎阳村8组 | F163: 1391****2 | G163: 育肥猪 | H163: 1.00 | I163: 70.00 | J163: 2800.00 | K163: 560.00 | L163: 2240.00 | M163: 2025-09-20 | N163: 2026-09-19 | O163: 2025-09-15 | P163: 665.00 | Q163: 姜茂华 | R163: 57451926
A164: 157 | B164: 十总镇 | C164: PIZG20253206N000000232 | D164: 葛袁建 | E164: 通州区十总镇志新村三十五组 | F164: 1505****9 | G164: 育肥猪 | H164: 1.00 | I164: 250.00 | J164: 10000.00 | K164: 2000.00 | L164: 8000.00 | M164: 2025-09-27 | N164: 2026-09-26 | O164: 2025-09-19 | P164: 2210.00 | Q164: 姜茂华 | R164: 98457303
A165: 158 | B165: 十总镇 | C165: PIZG20253206N000000234 | D165: 葛许华 | E165: 通州区十总镇志新村35组 | F165: 1896****6 | G165: 育肥猪 | H165: 1.00 | I165: 60.00 | J165: 2400.00 | K165: 480.00 | L165: 1920.00 | M165: 2025-09-30 | N165: 2026-09-29 | O165: 2025-09-24 | P165: 585.00 | Q165: 姜茂华 | R165: 43076321
G166: 育肥猪 汇总 | H166: =SUBTOTAL(9,H142:H165) -> 78.00 | I166: =SUBTOTAL(9,I142:I165) -> 4327.00 | J166: =SUBTOTAL(9,J142:J165) -> 173080.00 | K166: =SUBTOTAL(9,K142:K165) -> 34616.00 | L166: =SUBTOTAL(9,L142:L165) -> 138464.00
A167: 159 | B167: 刘桥镇 | C167: PIZM20253206N000000072 | D167: 尹夕爵 | E167: 通州区刘桥镇新中村4组 | F167: 1885****6 | G167: 能繁母猪 | H167: 1.00 | I167: 1.00 | J167: 105.00 | K167: 21.00 | L167: =J167-K167 -> 84.00 | M167: 2025-06-30 | N167: 2026-06-29 | O167: 2025-06-20 | P167: 21.00 | Q167: 姜茂华 | R167: 81016231
A168: 160 | B168: 刘桥镇 | C168: PIZM20253206N000000073 | D168: 王文华 | E168: 通州区刘桥镇新中村1组 | F168: 1515****1 | G168: 能繁母猪 | H168: 1.00 | I168: 1.00 | J168: 105.00 | K168: 21.00 | L168: 84.00 | M168: 2025-06-30 | N168: 2026-06-29 | O168: 2025-06-20 | P168: 21.00 | Q168: 姜茂华 | R168: 45104230
A169: 161 | B169: 刘桥镇 | C169: PIZM20253206N000000074 | D169: 马栋华等5户 | E169: 通州区刘桥镇英雄村50组等 | F169: 1391****0 | G169: 能繁母猪 | H169: 5.00 | I169: 19.00 | J169: 1995.00 | K169: 399.00 | L169: 1596.00 | M169: 2025-06-30 | N169: 2026-06-29 | O169: 2025-06-20 | P169: 399.00 | Q169: 姜茂华 | R169: 43876230
A170: 162 | B170: 刘桥镇 | C170: PIZM20253206N000000075 | D170: 朱承贵等7户 | E170: 通州区刘桥镇长岸村49组等 | F170: 1333****9 | G170: 能繁母猪 | H170: 7.00 | I170: 13.00 | J170: 1365.00 | K170: 273.00 | L170: 1092.00 | M170: 2025-07-05 | N170: 2026-07-04 | O170: 2025-06-29 | P170: 1793.00 | Q170: 姜茂华 | R170: 14801762
A171: 163 | B171: 刘桥镇 | C171: PIZM20253206N000000076 | D171: 丁良托等4户 | E171: 通州区刘桥镇米三桥村29组等 | F171: 1825****6 | G171: 能繁母猪 | H171: 4.00 | I171: 8.00 | J171: 840.00 | K171: 168.00 | L171: 672.00 | M171: 2025-07-05 | N171: 2026-07-04 | O171: 2025-06-29 | P171: 1208.00 | Q171: 姜茂华 | R171: 2792761
A172: 164 | B172: 刘桥镇 | C172: PIZM20253206N000000077 | D172: 魏建华等8户 | E172: 通州区刘桥镇蒋一村24组等 | F172: 1801****6 | G172: 能繁母猪 | H172: 8.00 | I172: 16.00 | J172: 1680.00 | K172: 336.00 | L172: 1344.00 | M172: 2025-07-05 | N172: 2026-07-04 | O172: 2025-06-29 | P172: 1336.00 | Q172: 姜茂华 | R172: 58762760
A173: 165 | B173: 刘桥镇 | C173: PIZM20253206N000000078 | D173: 陈雄军等12户 | E173: 通州区刘桥镇尹家园村36组等 | F173: 1322****2 | G173: 能繁母猪 | H173: 12.00 | I173: 24.00 | J173: 2520.00 | K173: 504.00 | L173: 2016.00 | M173: 2025-07-05 | N173: 2026-07-04 | O173: 2025-06-29 | P173: 3184.00 | Q173: 姜茂华 | R173: 63823760
A174: 166 | B174: 刘桥镇 | C174: PIZM20253206N000000079 | D174: 金爱云 | E174: 通州区刘桥镇刘桥社区66组 | F174: 1300****8 | G174: 能繁母猪 | H174: 1.00 | I174: 1.00 | J174: 105.00 | K174: 21.00 | L174: 84.00 | M174: 2025-07-11 | N174: 2026-07-10 | O174: 2025-07-03 | P174: 21.00 | Q174: 姜茂华 | R174: 82058289
A175: 167 | B175: 刘桥镇 | C175: PIZM20253206N000000080 | D175: 张国华等7户 | E175: 通州区刘桥镇新联居45组等 | F175: 1386****5 | G175: 能繁母猪 | H175: 7.00 | I175: 21.00 | J175: 2205.00 | K175: 441.00 | L175: 1764.00 | M175: 2025-07-11 | N175: 2026-07-10 | O175: 2025-07-03 | P175: 2341.00 | Q175: 姜茂华 | R175: 80114290
A176: 168 | B176: 刘桥镇 | C176: PIZM20253206N000000081 | D176: 朱美华等5户 | E176: 通州区刘桥镇苏池村46组等 | F176: 1892****3 | G176: 能繁母猪 | H176: 5.00 | I176: 10.00 | J176: 1050.00 | K176: 210.00 | L176: 840.00 | M176: 2025-07-11 | N176: 2026-07-10 | O176: 2025-07-03 | P176: 714.00 | Q176: 姜茂华 | R176: 15920290
A177: 169 | B177: 刘桥镇 | C177: PIZM20253206N000000082 | D177: 高振清等4户 | E177: 通州区刘桥镇慎修村11组等 | F177: 1803****5 | G177: 能繁母猪 | H177: 4.00 | I177: 12.00 | J177: 1260.00 | K177: 252.00 | L177: 1008.00 | M177: 2025-07-11 | N177: 2026-07-10 | O177: 2025-07-03 | P177: 2272.00 | Q177: 姜茂华 | R177: 85911785
A178: 170 | B178: 刘桥镇 | C178: PIZM20253206N000000083 | D178: 杨有付等7户 | E178: 通州区刘桥镇极孝村27组等 | F178: 1535****6 | G178: 能繁母猪 | H178: 7.00 | I178: 13.00 | J178: 1365.00 | K178: 273.00 | L178: 1092.00 | M178: 2025-07-11 | N178: 2026-07-10 | O178: 2025-07-03 | P178: 12 /973 | Q178: 姜茂华 | R178: 37917784
A179: 171 | B179: 十总镇 | C179: PIZM20253206N000000087 | D179: 葛拥军 | E179: 通州区十总镇二爻居35组 | F179: 1518****8 | G179: 能繁母猪 | H179: 1.00 | I179: 20.00 | J179: 2100.00 | K179: 420.00 | L179: 1680.00 | M179: 2025-07-11 | N179: 2026-07-10 | O179: 2025-07-07 | P179: 3420.00 | Q179: 邱爱芳 | R179: 26904813
A180: 172 | B180: 石港镇 | C180: PIZM20253206N000000093 | D180: 曹迪等2户 | E180: 通州区石港镇花市街村23组等 | F180: 1392****3 | G180: 能繁母猪 | H180: 2.00 | I180: 4.00 | J180: 420.00 | K180: 84.00 | L180: 336.00 | M180: 2025-07-19 | N180: 2026-07-18 | O180: 2025-07-12 | P180: 16770.00 | Q180: 姜茂华 | R180: 57193331
A181: 173 | B181: 石港镇 | C181: PIZM20253206N000000094 | D181: 李龙泉等9户 | E181: 通州区石港镇睹史院村26组等 | F181: 1321****8 | G181: 能繁母猪 | H181: 9.00 | I181: 18.00 | J181: 1890.00 | K181: 378.00 | L181: 1512.00 | M181: 2025-07-19 | N181: 2026-07-18 | O181: 2025-07-12 | P181: 16770.00 | Q181: 姜茂华 | R181: 57193331
A182: 174 | B182: 石港镇 | C182: PIZM20253206N000000095 | D182: 保让华等5户 | E182: 通州区石港镇新貌村33组等 | F182: 1329****9 | G182: 能繁母猪 | H182: 5.00 | I182: 18.00 | J182: 1890.00 | K182: 378.00 | L182: 1512.00 | M182: 2025-07-19 | N182: 2026-07-18 | O182: 2025-07-12 | P182: 16770.00 | Q182: 姜茂华 | R182: 57193331
A183: 175 | B183: 石港镇 | C183: PIZM20253206N000000096 | D183: 陆志强等9户 | E183: 通州区石港镇北渡村1组等 | F183: 1586****1 | G183: 能繁母猪 | H183: 9.00 | I183: 11.00 | J183: 1155.00 | K183: 231.00 | L183: 924.00 | M183: 2025-07-19 | N183: 2026-07-18 | O183: 2025-07-12 | P183: 16770.00 | Q183: 姜茂华 | R183: 57193331
A184: 176 | B184: 石港镇 | C184: PIZM20253206N000000097 | D184: 宗新民等15户 | E184: 通州区石港镇四港村6组等 | F184: 1586****8 | G184: 能繁母猪 | H184: 15.00 | I184: 33.00 | J184: 3465.00 | K184: 693.00 | L184: 2772.00 | M184: 2025-07-19 | N184: 2026-07-18 | O184: 2025-07-12 | P184: 16770.00 | Q184: 姜茂华 | R184: 57193331
A185: 177 | B185: 石港镇 | C185: PIZM20253206N000000098 | D185: 杨锦汉等9户 | E185: 通州区石港镇志田村9组等 | F185: 1830****2 | G185: 能繁母猪 | H185: 9.00 | I185: 17.00 | J185: 1785.00 | K185: 357.00 | L185: 1428.00 | M185: 2025-07-19 | N185: 2026-07-18 | O185: 2025-07-12 | P185: 16770.00 | Q185: 姜茂华 | R185: 57193331
A186: 178 | B186: 石港镇 | C186: PIZM20253206N000000099 | D186: 徐少章等7户 | E186: 通州区石港镇金庄居4组等 | F186: 1892****8 | G186: 能繁母猪 | H186: 7.00 | I186: 14.00 | J186: 1470.00 | K186: 294.00 | L186: 1176.00 | M186: 2025-07-19 | N186: 2026-07-18 | O186: 2025-07-12 | P186: 16770.00 | Q186: 姜茂华 | R186: 57193331
A187: 179 | B187: 石港镇 | C187: PIZM20253206N000000100 | D187: 杨朝华等9户 | E187: 通州区石港镇江海村5组等 | F187: 1886****2 | G187: 能繁母猪 | H187: 9.00 | I187: 44.00 | J187: 4620.00 | K187: 924.00 | L187: 3696.00 | M187: 2025-07-19 | N187: 2026-07-18 | O187: 2025-07-12 | P187: 16770.00 | Q187: 姜茂华 | R187: 57193331
A188: 180 | B188: 石港镇 | C188: PIZM20253206N000000101 | D188: 宋维云 | E188: 通州区石港镇马道村37组 | F188: 1903****4 | G188: 能繁母猪 | H188: 1.00 | I188: 4.00 | J188: 420.00 | K188: 84.00 | L188: 336.00 | M188: 2025-07-19 | N188: 2026-07-18 | O188: 2025-07-12 | P188: 16770.00 | Q188: 姜茂华 | R188: 57193331
A189: 181 | B189: 石港镇 | C189: PIZM20253206N000000102 | D189: 周建斌 | E189: 通州区石港镇马道村7组 | F189: 1519****9 | G189: 能繁母猪 | H189: 1.00 | I189: 4.00 | J189: 420.00 | K189: 84.00 | L189: 336.00 | M189: 2025-07-19 | N189: 2026-07-18 | O189: 2025-07-12 | P189: 16770.00 | Q189: 姜茂华 | R189: 57193331
A190: 182 | B190: 石港镇 | C190: PIZM20253206N000000103 | D190: 丁新培 | E190: 通州区石港镇石东村31组 | F190: 1845****9 | G190: 能繁母猪 | H190: 1.00 | I190: 3.00 | J190: 315.00 | K190: 63.00 | L190: 252.00 | M190: 2025-07-19 | N190: 2026-07-18 | O190: 2025-07-12 | P190: 16770.00 | Q190: 姜茂华 | R190: 57193331
A191: 183 | B191: 十总镇 | C191: PIZM20253206N000000104 | D191: 江遂益 | E191: 通州区十总镇骑岸居15组 | F191: 1380****0 | G191: 能繁母猪 | H191: 1.00 | I191: 10.00 | J191: 1050.00 | K191: 210.00 | L191: 840.00 | M191: 2025-07-31 | N191: 2026-07-30 | O191: 2025-07-17 | P191: 2210.00 | Q191: 江遂益 | R191: 440355
A192: 184 | B192: 十总镇 | C192: PIZM20253206N000000125 | D192: 刘雪进 | E192: 通州区十总镇志新村27组 | F192: 1516****1 | G192: 能繁母猪 | H192: 1.00 | I192: 4.00 | J192: 420.00 | K192: 84.00 | L192: 336.00 | M192: 2025-08-25 | N192: 2026-08-24 | O192: 2025-08-19 | P192: 1684.00 | Q192: 姜茂华 | R192: 5128768
A193: 185 | B193: 十总镇 | C193: PIZM20253206N000000226 | D193: 葛汉清 | E193: 通州区十总镇迎阳村8组 | F193: 1391****2 | G193: 能繁母猪 | H193: 1.00 | I193: 5.00 | J193: 525.00 | K193: 105.00 | L193: 420.00 | M193: 2025-09-20 | N193: 2026-09-19 | O193: 2025-09-15 | P193: 665.00 | Q193: 姜茂华 | R193: 57451926
A194: 186 | B194: 十总镇 | C194: PIZM20253206N000000274 | D194: 葛袁建 | E194: 通州区十总镇志新村三十五组 | F194: 1505****9 | G194: 能繁母猪 | H194: 1.00 | I194: 10.00 | J194: 1050.00 | K194: 210.00 | L194: 840.00 | M194: 2025-09-27 | N194: 2026-09-26 | O194: 2025-09-19 | P194: 2210.00 | Q194: 姜茂华 | R194: 98457303
A195: 187 | B195: 十总镇 | C195: PIZM20253206N000000276 | D195: 葛许华 | E195: 通州区十总镇志新村35组 | F195: 1896****6 | G195: 能繁母猪 | H195: 1.00 | I195: 5.00 | J195: 525.00 | K195: 105.00 | L195: 420.00 | M195: 2025-09-30 | N195: 2026-09-29 | O195: 2025-09-24 | P195: 585.00 | Q195: 姜茂华 | R195: 43076321
G196: 能繁母猪 汇总 | H196: =SUBTOTAL(9,H167:H195) -> 136.00 | I196: =SUBTOTAL(9,I167:I195) -> 363.00 | J196: =SUBTOTAL(9,J167:J195) -> 38115.00 | K196: =SUBTOTAL(9,K167:K195) -> 7623.00 | L196: =SUBTOTAL(9,L167:L195) -> 30492.00
A197: 188 | B197: 东社镇 | C197: PPB220253206N000001258 | D197: 南通万嘉农文旅发展有限公司 | E197: 通州区东社镇东平村3、6组 | F197: 1505****6 | G197: 棚内作物 | H197: 1.00 | I197: 140.00 | J197: 33600.00 | K197: 6720.00 | L197: =J197-K197 -> 26880.00 | M197: 2025-06-01 | N197: 2026-05-31 | O197: 2025-05-20 | P197: 57503.60 | Q197: 南通万嘉农文旅发展有限公司 | R197: 62302187
A198: 189 | B198: 十总镇 | C198: PPB220253206N000001303 | D198: 陶应军 | E198: 通州区十总镇季庄村五组 | F198: 1385****9 | G198: 棚内作物 | H198: 1.00 | I198: 14.00 | J198: 3360.00 | K198: 672.00 | L198: 2688.00 | M198: 2025-06-10 | N198: 2026-06-09 | O198: 2025-06-06 | P198: 1024.80 | Q198: 陶应军 | R198: 16885884
A199: 190 | B199: 十总镇 | C199: PPB220253206N000001318 | D199: 刘艳军 | E199: 通州区十总镇柏树墩村3、4组 | F199: 1506****9 | G199: 棚内作物 | H199: 1.00 | I199: 19.50 | J199: 4680.00 | K199: 936.00 | L199: 3744.00 | M199: 2025-06-20 | N199: 2026-06-19 | O199: 2025-06-11 | P199: 1427.40 | Q199: 刘艳军 | R199: 55249489
A200: 191 | B200: 二甲镇 | C200: PPB220253206N000001320 | D200: 张丽 | E200: 通州区二甲镇坨墩村40-44组 | F200: 1348****5 | G200: 棚内作物 | H200: 1.00 | I200: 15.00 | J200: 3600.00 | K200: 720.00 | L200: 2880.00 | M200: 2025-06-17 | N200: 2026-06-16 | O200: 2025-06-13 | P200: 1098.00 | Q200: 张丽 | R200: 86591497
... 99 more rows
